Workbook

Sheet Index
B1: AER opex model
B2: Index
B4: Model index
C6: Sheet Name | D6: Sheet Description
C7: Input | General | D7: Inputs NSP name, regulatory years for the prior and forecast regulatory control period etc.
C8: Input | Inflation | D8: Inputs inflation data.
C9: Input | Reported opex | D9: Inputs the reported operating expenditure (opex) from the prior regulatory control period.
C10: Input | Rate of change | D10: Inputs the cost escalation weights, cost escalation forecast, and inflation actuals and forecast
C11: Input | Step changes | D11: Inputs the operating expenditure (opex) data, including historical opex by category, one-off costs, step changes, demand forecasts, carbon costs, self insurance, network growth, and partial factor productivity
C12: Calc | Opex Forecast | D12: Calculates the opex forecast from RY2014 to RY2020
C13: Output | Models | D13: Outputs the opex forecast needed as a post tax revenue model input (which excludes debt raising costs).
C14: Lookup | Tables | D14: Includes the lookup tables used within this opex model.
C15: Check | List | D15: Shows checks on the calculations within the model
B17: End

Sheet Input|General
B1: =Index!$B$1 -> AER opex model | J1: Back to Index | L1: Key: | M1: Input | N1: External Link | O1: Internal Link | R1: Worksheet check: | S1: =IF(COUNTA($S$5:$S$13)=COUNTIF($S5:$S14,"OK"),"OK","Check") -> OK | U1: Overall Check: | V1: ='Check|List'!$S$1 -> Ok
B2: =Index!$C$7 -> Input | General
B4: Input | General inputs
C6: Inputs | D6: Source | G6: Value
C7: NSP name | D7: NSP | G7: AusNet Services Tx | S7: =IF(COUNTBLANK($G7),"Check","Ok") -> Ok
C8: Prior regulatory control period, first year | D8: NSP | G8: 2014-15 | S8: =IF(COUNTBLANK($G8),"Check","Ok") -> Ok
C9: Forecast base year | D9: NSP | G9: 2014-15 | S9: Ok
C10: Prior regulatory control period, last year | D10: NSP | G10: 2016-17 | S10: Ok
C11: Forecast regulatory control period, first year | D11: NSP | G11: 2017-18 | S11: Ok
C12: Forecast regulatory control period, last year | D12: NSP | G12: 2021-22 | S12: Ok
B14: End

Sheet Input|Inflation
B1: =Index!$B$1 -> AER opex model | J1: Back to Index | L1: Key: | M1: Input | N1: External Link | O1: Internal Link | R1: Worksheet check: | S1: =IF(COUNTA($S$5:$S$51)=COUNTIF($S5:$S52,"OK"),"OK","Check") -> OK | U1: Overall Check: | V1: ='Check|List'!$S$1 -> Ok
B2: =Index!$C$7 -> Input | General
B4: Input | General inputs
D6: Index value, old base | E6: Index value, new base
C7: Source | D7: ABS | E7: ABS
C8: Unit | D8: index | E8: index
C9: 2007-03-31 | D9: 155.6 | S9: =IF(COUNTBLANK($D9),"Check","Ok") -> Ok
C10: 2007-06-30 | D10: 157.5 | S10: Ok
C11: 2007-09-30 | D11: 158.6 | S11: Ok
C12: 2007-12-31 | D12: 160.1 | S12: Ok
C13: 2008-03-31 | D13: 162.2 | S13: Ok
C14: 2008-06-30 | D14: 164.6 | S14: Ok
C15: 2008-09-30 | D15: 166.5 | S15: Ok
C16: 2008-12-31 | D16: 166 | S16: Ok
C17: 2009-03-31 | D17: 166.2 | S17: Ok
C18: 2009-06-30 | D18: 167 | S18: Ok
C19: 2009-09-30 | D19: 168.6 | S19: Ok
C20: 2009-12-31 | D20: 169.5 | S20: Ok
C21: 2010-03-31 | D21: 171 | E21: 95.2 | S21: =IF(COUNTBLANK($D21:$E21),"Check","Ok") -> Ok
C22: 2010-06-30 | D22: 172.1 | E22: 95.8 | S22: Ok
C23: 2010-09-30 | D23: 173.3 | E23: 96.5 | S23: Ok
C24: 2010-12-31 | D24: 174 | E24: 96.9 | S24: Ok
C25: 2011-03-31 | D25: 176.7 | E25: 98.3 | S25: Ok
C26: 2011-06-30 | D26: 178.3 | E26: 99.2 | S26: Ok
C27: 2011-09-30 | D27: 179.4 | E27: 99.8 | S27: Ok
C28: 2011-12-31 | D28: 179.4 | E28: 99.8 | S28: Ok
C29: 2012-03-31 | D29: 179.5 | E29: 99.9 | S29: =IF(COUNTBLANK($E29),"Check","Ok") -> Ok
C30: 2012-06-30 | E30: 100.4 | S30: =IF(COUNTBLANK($E30),"Check","Ok") -> Ok
C31: 2012-09-30 | E31: 101.8 | S31: =IF(COUNTBLANK($E31),"Check","Ok") -> Ok
C32: 2012-12-31 | E32: 102 | S32: =IF(COUNTBLANK($E32),"Check","Ok") -> Ok
C33: 2013-03-31 | E33: 102.4 | S33: =IF(COUNTBLANK($E33),"Check","Ok") -> Ok
C34: 2013-06-30 | E34: 102.8 | S34: Ok
C35: 2013-09-30 | E35: 104 | S35: Ok
C36: 2013-12-31 | E36: 104.8 | S36: Ok
C37: 2014-03-31 | E37: 105.4 | S37: Ok
C38: 2014-06-30 | E38: 105.9 | S38: Ok
C39: 2014-09-30 | E39: 106.4 | S39: Ok
C40: 2014-12-31 | E40: 106.6 | S40: Ok
C41: 2015-03-31 | E41: 106.8 | S41: Ok
C42: 2015-06-30 | E42: 107.5 | S42: Ok
C43: 2015-09-30 | E43: 108 | S43: Ok
C44: 2015-12-31 | E44: 108.4 | S44: Ok
C45: 2016-03-31 | E45: 108.2 | S45: Ok
C46: 2016-06-30 | E46: =E42*1.01 -> 108.575 | G46: RBA forecast. May 2016 Statement on Monetary Policy. Update when available. | S46: Ok
C47: 2016-09-30 | E47: =AVERAGE(E46,E48) -> 109.3005 | G47: Interpolated | S47: Ok
C48: 2016-12-31 | E48: =E44*1.015 -> 110.026 | G48: RBA forecast. May 2016 Statement on Monetary Policy. Update when available. | S48: Ok
C49: 2017-03-31 | E49: =AVERAGE(E48,E50) -> 110.38625 | G49: Interpolated | S49: Ok
C50: 2017-06-30 | E50: =E46*1.02 -> 110.7465 | G50: RBA forecast. May 2016 Statement on Monetary Policy. Update when available. | S50: Ok
B52: End

Sheet Input|Reported opex
C1: =Index!$B$1 -> AER opex model | J1: Back to Index | L1: Key: | M1: Input | N1: External Link | O1: Internal Link | R1: Worksheet check: | S1: =IF(COUNTA($W$32:$W$250)=COUNTIF($W$32:$W$250,"OK"),"OK","Check") -> OK | U1: Overall Check: | V1: ='Check|List'!$S$1 -> Ok
C2: =Index!$C$9 -> Input | Reported opex
D4: Source | E4: Unit | F4: Basis | J4: ='Input|General'!$G$8 -> 2014-15 | K4: =IF(OFFSET('Lookup|Tables'!$G$26:$G$43,MATCH('Input|General'!$G$8,'Lookup|Tables'!$G$26:$G$42,0),0,1,1)<='Input|General'!$G$12,OFFSET('Lookup|Tables'!$G$26:$G$43,MATCH('Input|General'!$G$8,'Lookup|Tables'!$G$26:$G$42,0),0,1,1),"") -> 2015-16 | L4: =IF(OFFSET('Lookup|Tables'!$G$28:$G$43,MATCH('Input|General'!$G$8,'Lookup|Tables'!$G$28:$G$42,0)+1,0,1,1)<='Input|General'!$G$12,OFFSET('Lookup|Tables'!$G$28:$G$43,MATCH('Input|General'!$G$8,'Lookup|Tables'!$G$28:$G$42,0)+1,0,1,1),"") -> 2016-17 | M4: =IF(OFFSET('Lookup|Tables'!$G$28:$G$43,MATCH('Input|General'!$G$8,'Lookup|Tables'!$G$28:$G$42,0)+2,0,1,1)<='Input|General'!$G$12,OFFSET('Lookup|Tables'!$G$28:$G$43,MATCH('Input|General'!$G$8,'Lookup|Tables'!$G$28:$G$42,0)+2,0,1,1),"") -> 2017-18 | N4: =IF(OFFSET('Lookup|Tables'!$G$28:$G$43,MATCH('Input|General'!$G$8,'Lookup|Tables'!$G$28:$G$42,0)+3,0,1,1)<='Input|General'!$G$12,OFFSET('Lookup|Tables'!$G$28:$G$43,MATCH('Input|General'!$G$8,'Lookup|Tables'!$G$28:$G$42,0)+3,0,1,1),"") -> 2018-19 | O4: =IF(OFFSET('Lookup|Tables'!$G$28:$G$43,MATCH('Input|General'!$G$8,'Lookup|Tables'!$G$28:$G$42,0)+4,0,1,1)<='Input|General'!$G$12,OFFSET('Lookup|Tables'!$G$28:$G$43,MATCH('Input|General'!$G$8,'Lookup|Tables'!$G$28:$G$42,0)+4,0,1,1),"") -> 2019-20 | P4: =IF(OFFSET('Lookup|Tables'!$G$28:$G$43,MATCH('Input|General'!$G$8,'Lookup|Tables'!$G$28:$G$42,0)+5,0,1,1)<='Input|General'!$G$12,OFFSET('Lookup|Tables'!$G$28:$G$43,MATCH('Input|General'!$G$8,'Lookup|Tables'!$G$28:$G$42,0)+5,0,1,1),"") -> 2020-21 | Q4: =IF(OFFSET('Lookup|Tables'!$G$28:$G$43,MATCH('Input|General'!$G$8,'Lookup|Tables'!$G$28:$G$42,0)+6,0,1,1)<='Input|General'!$G$12,OFFSET('Lookup|Tables'!$G$28:$G$43,MATCH('Input|General'!$G$8,'Lookup|Tables'!$G$28:$G$42,0)+6,0,1,1),"") -> 2021-22 | R4: =IF(OFFSET('Lookup|Tables'!$G$28:$G$43,MATCH('Input|General'!$G$8,'Lookup|Tables'!$G$28:$G$42,0)+7,0,1,1)<='Input|General'!$G$12,OFFSET('Lookup|Tables'!$G$28:$G$43,MATCH('Input|General'!$G$8,'Lookup|Tables'!$G$28:$G$42,0)+7,0,1,1),"") ->  | S4: =IF(OFFSET('Lookup|Tables'!$G$28:$G$43,MATCH('Input|General'!$G$8,'Lookup|Tables'!$G$28:$G$42,0)+8,0,1,1)<='Input|General'!$G$12,OFFSET('Lookup|Tables'!$G$28:$G$43,MATCH('Input|General'!$G$8,'Lookup|Tables'!$G$28:$G$42,0)+8,0,1,1),"") -> 
B8: Input | Opex allowances
C10: Cost category | D10: Source | E10: Unit | F10: Basis | J10: =IF(RIGHT(J$4,2)<=RIGHT('Input|General'!$G$10,2),'Input|Reported opex'!J$4,"") -> 2014-15 | K10: =IF(RIGHT(K$4,2)<=RIGHT('Input|General'!$G$10,2),'Input|Reported opex'!K$4,"") -> 2015-16 | L10: =IF(RIGHT(L$4,2)<=RIGHT('Input|General'!$G$10,2),'Input|Reported opex'!L$4,"") -> 2016-17 | M10: =IF(RIGHT(M$4,2)<=RIGHT('Input|General'!$G$10,2),'Input|Reported opex'!M$4,"") ->  | N10: =IF(RIGHT(N$4,2)<=RIGHT('Input|General'!$G$10,2),'Input|Reported opex'!N$4,"") ->  | O10: =IF(RIGHT(O$4,2)<=RIGHT('Input|General'!$G$10,2),'Input|Reported opex'!O$4,"") ->  | P10: =IF(RIGHT(P$4,2)<=RIGHT('Input|General'!$G$10,2),'Input|Reported opex'!P$4,"") ->  | Q10: =IF(RIGHT(Q$4,2)<=RIGHT('Input|General'!$G$10,2),'Input|Reported opex'!Q$4,"") ->  | R10: =IF(RIGHT(R$4,2)<=RIGHT('Input|General'!$G$10,2),'Input|Reported opex'!R$4,"") ->  | S10: =IF(RIGHT(S$4,2)<=RIGHT('Input|General'!$G$10,2),'Input|Reported opex'!S$4,"") ->  | T10: Notes
C13: Total opex | D13: AER | E13: =$E$24 -> $millions | F13: =$F$24 -> 2013-14 | J13: 185.1351554 | K13: 189.8099122 | L13: 188.0055947
C14: Remove debt raising costs | D14: AER | E14: =$E$24 -> $millions | F14: =$F$24 -> 2013-14 | J14: -1.549610545 | K14: -1.556109859 | L14: -1.577585208
C15: Remove easement tax | D15: AER | E15: $millions | F15: 2013-14 | J15: -100.9190293 | K15: -103.442005 | L15: -100.9190293
C16: Remove AIS rebates | D16: AER | E16: $millions | F16: 2013-14 | J16: -2.281293 | K16: -2.281293 | L16: -2.281293
D17: AER | E17: $millions | F17: 2013-14
D18: AER | E18: $millions | F18: 2013-14
D19: AER | E19: $millions | F19: 2013-14
D20: AER | E20: $millions | F20: 2013-14
D21: AER | E21: $millions | F21: 2013-14
D22: AER | E22: $millions | F22: 2013-14
C24: Total opex | D24: Calculated | E24: $millions | F24: 2013-14 | J24: =SUM(J13:J22) -> 80.3852226 | K24: 82.53050433 | L24: 83.2276872 | M24: 0 | N24: 0 | O24: 0 | P24: 0 | Q24: 0 | R24: 0 | S24: 0
B26: Input | Reported opex
J28: Actual | K28: Estimate | L28: Estimate
C29: Cost category | D29: Source | E29: Unit | F29: Basis | J29: =IF(RIGHT(J4,2)<=RIGHT('Input|General'!$G$10,2),'Input|Reported opex'!J4,"") -> 2014-15 | K29: =IF(RIGHT(K4,2)<=RIGHT('Input|General'!$G$10,2),'Input|Reported opex'!K4,"") -> 2015-16 | L29: =IF(RIGHT(L4,2)<=RIGHT('Input|General'!$G$10,2),'Input|Reported opex'!L4,"") -> 2016-17 | M29: =IF(RIGHT(M4,2)<=RIGHT('Input|General'!$G$10,2),'Input|Reported opex'!M4,"") ->  | N29: =IF(RIGHT(N4,2)<=RIGHT('Input|General'!$G$10,2),'Input|Reported opex'!N4,"") ->  | O29: =IF(RIGHT(O4,2)<=RIGHT('Input|General'!$G$10,2),'Input|Reported opex'!O4,"") ->  | P29: =IF(RIGHT(P4,2)<=RIGHT('Input|General'!$G$10,2),'Input|Reported opex'!P4,"") ->  | Q29: =IF(RIGHT(Q4,2)<=RIGHT('Input|General'!$G$10,2),'Input|Reported opex'!Q4,"") ->  | R29: =IF(RIGHT(R4,2)<=RIGHT('Input|General'!$G$10,2),'Input|Reported opex'!R4,"") ->  | S29: =IF(RIGHT(S4,2)<=RIGHT('Input|General'!$G$10,2),'Input|Reported opex'!S4,"") ->  | T29: Notes
C32: Total opex | D32: RIN | E32: =$E$45 -> $millions | F32: =$F$45 -> nominal | J32: 187.44972
C33: Remove NCIPAP opex | D33: RIN | E33: =$E$45 -> $millions | F33: =$F$45 -> nominal | J33: -0.25119547
D34: RIN | E34: =$E$45 -> $millions | F34: =$F$45 -> nominal
D35: RIN | E35: =$E$45 -> $millions | F35: =$F$45 -> nominal
C36: Remove movement in provisions | D36: RIN | E36: =$E$45 -> $millions | F36: =$F$45 -> nominal | J36: 0.1307895098
C38: Expenditure related to category specific forecasts
C40: Remove debt raising costs | D40: RIN | E40: =$E$45 -> $millions | F40: =$F$45 -> nominal | J40: 0
C41: Remove easement tax | D41: RIN | E41: =$E$45 -> $millions | F41: =$F$45 -> nominal | J41: -103.442005
C42: Remove AIS rebate | D42: RIN | E42: =$E$45 -> $millions | F42: =$F$45 -> nominal | J42: -2.40279536
D43: RIN | E43: =$E$45 -> $millions | F43: =$F$45 -> nominal
C45: Total opex | D45: Calculated | E45: $millions | F45: nominal | J45: =SUM(J32:J43) -> 81.4845137 | K45: 0 | L45: 0 | M45: 0 | N45: 0 | O45: 0 | P45: 0 | Q45: 0 | R45: 0 | S45: 0
B47: Input | Adjustments
C49: Adjustment | D49: Source | E49: Unit | F49: Basis | J49: =IF(RIGHT(J$4,2)=RIGHT('Input|General'!$G$10,2),J$4,"") ->  | K49: =IF(RIGHT(K$4,2)=RIGHT('Input|General'!$G$10,2),K$4,"") ->  | L49: =IF(RIGHT(L$4,2)=RIGHT('Input|General'!$G$10,2),L$4,"") -> 2016-17 | M49: =IF(RIGHT(M4,2)=RIGHT('Input|General'!$G$10,2),'Input|Reported opex'!M4,"") ->  | N49: =IF(RIGHT(N$4,2)=RIGHT('Input|General'!$G$10,2),N$4,"") -> 
C50: Adjustment 1 | D50: External | E50: =$E$45 -> $millions | F50: 2016-17 | L50: 0
C51: Adjustment 2 | D51: External | E51: =$E$45 -> $millions | F51: 2016-17 | L51: 0
C52: Adjustment 3 | D52: External | E52: =$E$45 -> $millions | F52: 2016-17 | L52: 0
C53: Adjustment 4 | D53: External | E53: $millions | F53: 2016-17 | L53: 0
C54: Adjustment 5 | D54: External | E54: $millions | F54: 2016-17 | L54: 0
C55: Efficiency adjustment | D55: External | E55: Per cent | L55: 0
B57: End

Sheet Input|Rate of change
B1: =Index!$B$1 -> AER opex model | K1: Back to Index | M1: Key: | N1: Input | O1: External Link | P1: Internal Link | S1: Worksheet check: | T1: =IF(COUNTIF(W5:W90,"Check")=0,"Ok","Check") -> Ok | V1: Overall Check: | W1: ='Check|List'!$S$1 -> Ok
B2: =Index!$C$10 -> Input | Rate of change
D4: Source | E4: Unit | F4: Basis | J4: =IF(OFFSET('Lookup|Tables'!$G$26:$G$43,MATCH('Input|General'!$G$8,'Lookup|Tables'!$G$26:$G$42,0)-2,0,1,1)<='Input|General'!$G$12,OFFSET('Lookup|Tables'!$G$26:$G$43,MATCH('Input|General'!$G$8,'Lookup|Tables'!$G$26:$G$42,0)-2,0,1,1),"") -> 2013-14 | K4: ='Input|General'!$G$8 -> 2014-15 | L4: =IF(OFFSET('Lookup|Tables'!$G$26:$G$43,MATCH('Input|General'!$G$8,'Lookup|Tables'!$G$26:$G$42,0),0,1,1)<='Input|General'!$G$12,OFFSET('Lookup|Tables'!$G$26:$G$43,MATCH('Input|General'!$G$8,'Lookup|Tables'!$G$26:$G$42,0),0,1,1),"") -> 2015-16 | M4: =IF(OFFSET('Lookup|Tables'!$G$26:$G$43,MATCH('Input|General'!$G$8,'Lookup|Tables'!$G$26:$G$42,0)+1,0,1,1)<='Input|General'!$G$12,OFFSET('Lookup|Tables'!$G$26:$G$43,MATCH('Input|General'!$G$8,'Lookup|Tables'!$G$26:$G$42,0)+1,0,1,1),"") -> 2016-17 | N4: =IF(OFFSET('Lookup|Tables'!$G$26:$G$43,MATCH('Input|General'!$G$8,'Lookup|Tables'!$G$26:$G$42,0)+2,0,1,1)<='Input|General'!$G$12,OFFSET('Lookup|Tables'!$G$26:$G$43,MATCH('Input|General'!$G$8,'Lookup|Tables'!$G$26:$G$42,0)+2,0,1,1),"") -> 2017-18 | O4: =IF(OFFSET('Lookup|Tables'!$G$26:$G$43,MATCH('Input|General'!$G$8,'Lookup|Tables'!$G$26:$G$42,0)+3,0,1,1)<='Input|General'!$G$12,OFFSET('Lookup|Tables'!$G$26:$G$43,MATCH('Input|General'!$G$8,'Lookup|Tables'!$G$26:$G$42,0)+3,0,1,1),"") -> 2018-19 | P4: =IF(OFFSET('Lookup|Tables'!$G$26:$G$43,MATCH('Input|General'!$G$8,'Lookup|Tables'!$G$26:$G$42,0)+4,0,1,1)<='Input|General'!$G$12,OFFSET('Lookup|Tables'!$G$26:$G$43,MATCH('Input|General'!$G$8,'Lookup|Tables'!$G$26:$G$42,0)+4,0,1,1),"") -> 2019-20 | Q4: =IF(OFFSET('Lookup|Tables'!$G$26:$G$43,MATCH('Input|General'!$G$8,'Lookup|Tables'!$G$26:$G$42,0)+5,0,1,1)<='Input|General'!$G$12,OFFSET('Lookup|Tables'!$G$26:$G$43,MATCH('Input|General'!$G$8,'Lookup|Tables'!$G$26:$G$42,0)+5,0,1,1),"") -> 2020-21 | R4: =IF(OFFSET('Lookup|Tables'!$G$26:$G$43,MATCH('Input|General'!$G$8,'Lookup|Tables'!$G$26:$G$42,0)+6,0,1,1)<='Input|General'!$G$12,OFFSET('Lookup|Tables'!$G$26:$G$43,MATCH('Input|General'!$G$8,'Lookup|Tables'!$G$26:$G$42,0)+6,0,1,1),"") -> 2021-22 | S4: =IF(OFFSET('Lookup|Tables'!$G$26:$G$43,MATCH('Input|General'!$G$8,'Lookup|Tables'!$G$26:$G$42,0)+7,0,1,1)<='Input|General'!$G$12,OFFSET('Lookup|Tables'!$G$26:$G$43,MATCH('Input|General'!$G$8,'Lookup|Tables'!$G$26:$G$42,0)+7,0,1,1),"") ->  | T4: =IF(OFFSET('Lookup|Tables'!$G$28:$G$43,MATCH('Input|General'!$G$8,'Lookup|Tables'!$G$28:$G$42,0)+8,0,1,1)<='Input|General'!$G$12,OFFSET('Lookup|Tables'!$G$28:$G$43,MATCH('Input|General'!$G$8,'Lookup|Tables'!$G$28:$G$42,0)+8,0,1,1),"") -> 
B8: Input | Inflation
C10: Inflation | J10: =J$4 -> 2013-14 | K10: =K$4 -> 2014-15 | L10: =L$4 -> 2015-16 | M10: 2016-17 | N10: 2017-18 | O10: 2018-19 | P10: 2019-20 | Q10: 2020-21 | R10: 2021-22
C12: Inflation | D12: calculated | E12: =percent -> Per cent | J12: ='Input|Inflation'!E37/'Input|Inflation'!E33-1 -> 0.029296875 | K12: ='Input|Inflation'!E41/'Input|Inflation'!E37-1 -> 0.01328273245 | L12: ='Input|Inflation'!E45/'Input|Inflation'!E41-1 -> 0.01310861423 | M12: ='Input|Inflation'!E49/'Input|Inflation'!E45-1 -> 0.02020563771
C14: CPI indexes (real to real) | J14: =J$4 -> 2013-14 | K14: =K$4 -> 2014-15 | L14: =L4 -> 2015-16 | M14: =M4 -> 2016-17
C16: =+TRANSPOSE(J10:M10) -> 2013-14 | D16: calculated | E16: index | J16: 1 | K16: =J16*(1+K$12) -> 1.013282732 | L16: 1.026565465 | M16: 1.047307875
C17: 2014-15 | D17: calculated | E17: index | J17: =K17/(1+K$12) -> 0.9868913858 | K17: 1 | L17: =K17*(1+L$12) -> 1.013108614 | M17: =L17*(1+M$12) -> 1.03357912
C18: 2015-16 | D18: calculated | E18: index | J18: =K18/(1+K$12) -> 0.9741219963 | K18: =L18/(1+L$12) -> 0.9870609982 | L18: 1 | M18: =L18*(1+M$12) -> 1.020205638
C19: 2016-17 | D19: calculated | E19: index | J19: =K19/(1+K$12) -> 0.9548290661 | K19: 0.9675118051 | L19: 0.9801945442 | M19: 1
C21: CPI indexes (nominal to real) | J21: =J10 -> 2013-14 | K21: =K10 -> 2014-15 | L21: =L10 -> 2015-16 | M21: =M10 -> 2016-17
C23: =+TRANSPOSE(J10:M10) -> 2013-14 | D23: calculated | E23: index | J23: =1/J16*(1+J$12)^0.5 -> 1.014542693 | K23: 0.9934240715 | L23: 0.9804859034 | M23: 0.9644272891
C24: 2014-15 | D24: calculated | E24: index | J24: 1.028018592 | K24: 1.006619458 | L24: 0.9935094354 | M24: 0.9772375188
C25: 2015-16 | D25: calculated | E25: index | J25: 1.041494491 | K25: 1.019814844 | L25: 1.006532967 | M25: 0.9900477484
C26: 2016-17 | D26: calculated | E26: index | J26: 1.062538551 | K26: 1.040420853 | L26: 1.026870608 | M26: 1.010052295
B28: Input | Forecast price change
C30: Forecast price change | D30: Source | E30: Unit | K30: =IF(RIGHT(K$4,2)>=RIGHT('Input|General'!$G$11,2),IF(RIGHT(K$4,2)<=RIGHT('Input|General'!$G$12,2),K$4,""),"") ->  | L30: =IF(RIGHT(L$4,2)>=RIGHT('Input|General'!$G$11,2),IF(RIGHT(L$4,2)<=RIGHT('Input|General'!$G$12,2),L$4,""),"") ->  | M30: =IF(RIGHT(M$4,2)>=RIGHT('Input|General'!$G$11,2),IF(RIGHT(M$4,2)<=RIGHT('Input|General'!$G$12,2),M$4,""),"") ->  | N30: =IF(RIGHT(N$4,2)>=RIGHT('Input|General'!$G$11,2),IF(RIGHT(N$4,2)<=RIGHT('Input|General'!$G$12,2),N$4,""),"") -> 2017-18 | O30: =IF(RIGHT(O$4,2)>=RIGHT('Input|General'!$G$11,2),IF(RIGHT(O$4,2)<=RIGHT('Input|General'!$G$12,2),O$4,""),"") -> 2018-19 | P30: =IF(RIGHT(P$4,2)>=RIGHT('Input|General'!$G$11,2),IF(RIGHT(P$4,2)<=RIGHT('Input|General'!$G$12,2),P$4,""),"") -> 2019-20 | Q30: =IF(RIGHT(Q$4,2)>=RIGHT('Input|General'!$G$11,2),IF(RIGHT(Q$4,2)<=RIGHT('Input|General'!$G$12,2),Q$4,""),"") -> 2020-21 | R30: =IF(RIGHT(R$4,2)>=RIGHT('Input|General'!$G$11,2),IF(RIGHT(R$4,2)<=RIGHT('Input|General'!$G$12,2),R$4,""),"") -> 2021-22
C32: WPI | D32: external | E32: =percent -> Per cent | N32: 0.004749654866 | O32: 0.008280938503 | P32: 0.009728492309 | Q32: 0.01020740284 | R32: 0.01025087266
D33: external | E33: Per cent
D34: external | E34: Per cent
D35: external | E35: Per cent
D36: external | E36: Per cent
D37: external | E37: Per cent
D38: external | E38: Per cent
C39: CPI | D39: external | E39: Per cent | N39: 0 | O39: 0 | P39: 0 | Q39: 0 | R39: 0
C41: Weights | D41: Source | E41: Unit | K41: =IF(RIGHT(K$4,2)>=RIGHT('Input|General'!$G$11,2),IF(RIGHT(K$4,2)<=RIGHT('Input|General'!$G$12,2),K$4,""),"") ->  | L41: =IF(RIGHT(L$4,2)>=RIGHT('Input|General'!$G$11,2),IF(RIGHT(L$4,2)<=RIGHT('Input|General'!$G$12,2),L$4,""),"") ->  | M41: =IF(RIGHT(M$4,2)>=RIGHT('Input|General'!$G$11,2),IF(RIGHT(M$4,2)<=RIGHT('Input|General'!$G$12,2),M$4,""),"") ->  | N41: =IF(RIGHT(N$4,2)>=RIGHT('Input|General'!$G$11,2),IF(RIGHT(N$4,2)<=RIGHT('Input|General'!$G$12,2),N$4,""),"") -> 2017-18 | O41: =IF(RIGHT(O$4,2)>=RIGHT('Input|General'!$G$11,2),IF(RIGHT(O$4,2)<=RIGHT('Input|General'!$G$12,2),O$4,""),"") -> 2018-19 | P41: =IF(RIGHT(P$4,2)>=RIGHT('Input|General'!$G$11,2),IF(RIGHT(P$4,2)<=RIGHT('Input|General'!$G$12,2),P$4,""),"") -> 2019-20 | Q41: =IF(RIGHT(Q$4,2)>=RIGHT('Input|General'!$G$11,2),IF(RIGHT(Q$4,2)<=RIGHT('Input|General'!$G$12,2),Q$4,""),"") -> 2020-21 | R41: =IF(RIGHT(R$4,2)>=RIGHT('Input|General'!$G$11,2),IF(RIGHT(R$4,2)<=RIGHT('Input|General'!$G$12,2),R$4,""),"") -> 2021-22
C43: =C32 -> WPI | D43: external | E43: =percent -> Per cent | N43: 0.62 | O43: 0.62 | P43: 0.62 | Q43: 0.62 | R43: 0.62
C44: =C33 -> 0 | D44: external | E44: Per cent
C45: 0 | D45: external | E45: Per cent
C46: 0 | D46: external | E46: Per cent
C47: 0 | D47: external | E47: Per cent
C48: 0 | D48: external | E48: Per cent
C49: 0 | D49: external | E49: Per cent
C50: CPI | D50: external | E50: Per cent | N50: 0.38 | O50: 0.38 | P50: 0.38 | Q50: 0.38 | R50: 0.38
C52: Check | D52: calculated | E52: Ok/Check | F52: n/a | N52: =IF(SUM(N43:N50)=1,"Ok","Check") -> Ok | O52: Ok | P52: =IF(SUM(P43:P50)=1,"Ok","Check") -> Ok | Q52: =IF(SUM(Q43:Q50)=1,"Ok","Check") -> Ok | R52: Ok | W52: =IF(COUNTIF(K52:T52,"Check")=0,"Ok","Check") -> Ok
B54: Input | Forecast output growth
C56: Output measure | D56: Source | E56: Unit | F56: Basis | M56: 2016-17 | N56: 2017-18 | O56: 2018-19 | P56: 2019-20 | Q56: 2020-21 | R56: 2021-22
D58: external | E58: number | F58: n/a
D59: external | E59: number | F59: n/a
D60: external | E60: number | F60: n/a
D61: external | E61: number | F61: n/a
D62: external | E62: number | F62: n/a
D63: external | E63: number | F63: n/a
C65: Growth rate | D65: Source | E65: Unit | F65: Basis | N65: 2017-18 | O65: 2018-19 | P65: 2019-20 | Q65: 2020-21 | R65: 2021-22
C67: =C58 -> 0 | D67: calculated | E67: number | F67: n/a | K67: =IF(ISBLANK(J58),"",LN(K58)-LN(J58)) ->  | R67: =IF(ISBLANK(Q58),"",LN(R58)-LN(Q58)) ->  | S67: =IF(ISBLANK(S58),"",LN(S58)-LN(R58)) -> 
C68: =C59 -> 0 | D68: calculated | E68: number | F68: n/a | R68: =IF(ISBLANK(Q59),"",LN(R59)-LN(Q59)) -> 
C69: 0 | D69: calculated | E69: number | F69: n/a
C70: 0 | D70: calculated | E70: number | F70: n/a
C71: 0 | D71: calculated | E71: number | F71: n/a
C72: 0 | D72: calculated | E72: number | F72: n/a
C74: Weights
C76: =C58 -> 0 | D76: external | E76: number | F76: n/a | M76: 1
C77: =C59 -> 0 | D77: external | E77: number | F77: n/a
C78: 0 | D78: external | E78: number | F78: n/a
C79: 0 | D79: external | E79: number | F79: n/a
C80: 0 | D80: external | E80: number | F80: n/a
C81: 0 | D81: external | E81: number | F81: n/a
C83: Check | D83: calculated | E83: Ok/Check | F83: n/a | M83: =IF(SUM(M76:M81)=1,"Ok","Check") -> Ok | W83: =IF(COUNTIF(K83:T83,"Check")=0,"Ok","Check") -> Ok
B85: Input | Forecast productivity
C87: Partial factor productivity | D87: Source | E87: Unit | F87: Basis | K87: =IF(RIGHT(K$4,2)>=RIGHT('Input|General'!$G$11,2),IF(RIGHT(K$4,2)<=RIGHT('Input|General'!$G$12,2),K$4,""),"") ->  | L87: =IF(RIGHT(L$4,2)>=RIGHT('Input|General'!$G$11,2),IF(RIGHT(L$4,2)<=RIGHT('Input|General'!$G$12,2),L$4,""),"") ->  | M87: =IF(RIGHT(M$4,2)>=RIGHT('Input|General'!$G$11,2),IF(RIGHT(M$4,2)<=RIGHT('Input|General'!$G$12,2),M$4,""),"") ->  | N87: =IF(RIGHT(N$4,2)>=RIGHT('Input|General'!$G$11,2),IF(RIGHT(N$4,2)<=RIGHT('Input|General'!$G$12,2),N$4,""),"") -> 2017-18 | O87: =IF(RIGHT(O$4,2)>=RIGHT('Input|General'!$G$11,2),IF(RIGHT(O$4,2)<=RIGHT('Input|General'!$G$12,2),O$4,""),"") -> 2018-19 | P87: =IF(RIGHT(P$4,2)>=RIGHT('Input|General'!$G$11,2),IF(RIGHT(P$4,2)<=RIGHT('Input|General'!$G$12,2),P$4,""),"") -> 2019-20 | Q87: =IF(RIGHT(Q$4,2)>=RIGHT('Input|General'!$G$11,2),IF(RIGHT(Q$4,2)<=RIGHT('Input|General'!$G$12,2),Q$4,""),"") -> 2020-21 | R87: =IF(RIGHT(R$4,2)>=RIGHT('Input|General'!$G$11,2),IF(RIGHT(R$4,2)<=RIGHT('Input|General'!$G$12,2),R$4,""),"") -> 2021-22 | S87: =IF(RIGHT(S$4,2)>=RIGHT('Input|General'!$G$11,2),IF(RIGHT(S$4,2)<=RIGHT('Input|General'!$G$12,2),S$4,""),"") ->  | T87: =IF(RIGHT(T$4,2)>=RIGHT('Input|General'!$G$11,2),IF(RIGHT(T$4,2)<=RIGHT('Input|General'!$G$12,2),T$4,""),"") -> 
C89: Partial factor productivity | D89: external | E89: =percent -> Per cent | F89: n/a | N89: 0.002 | O89: 0.002 | P89: 0.002 | Q89: 0.002 | R89: 0.002
B91: End

Sheet Input|Step changes
B1: =Index!$B$1 -> AER opex model | J1: Back to Index | L1: Key: | M1: Input | N1: External Link | O1: Internal Link | R1: Worksheet check: | S1: =IF(COUNTA($W$8:$W$232)=COUNTIF($W$8:$W$232,"OK"),"OK","Check") -> OK | U1: Overall Check: | V1: ='Check|List'!$S$1 -> Ok
B2: =Index!$C$11 -> Input | Step changes
D4: Source | E4: Unit | F4: Basis | J4: ='Input|General'!$G$8 -> 2014-15 | K4: =IF(OFFSET('Lookup|Tables'!$G$26:$G$43,MATCH('Input|General'!$G$8,'Lookup|Tables'!$G$26:$G$42,0),0,1,1)<='Input|General'!$G$12,OFFSET('Lookup|Tables'!$G$26:$G$43,MATCH('Input|General'!$G$8,'Lookup|Tables'!$G$26:$G$42,0),0,1,1),"") -> 2015-16 | L4: =IF(OFFSET('Lookup|Tables'!$G$28:$G$43,MATCH('Input|General'!$G$8,'Lookup|Tables'!$G$28:$G$42,0)+1,0,1,1)<='Input|General'!$G$12,OFFSET('Lookup|Tables'!$G$28:$G$43,MATCH('Input|General'!$G$8,'Lookup|Tables'!$G$28:$G$42,0)+1,0,1,1),"") -> 2016-17 | M4: =IF(OFFSET('Lookup|Tables'!$G$28:$G$43,MATCH('Input|General'!$G$8,'Lookup|Tables'!$G$28:$G$42,0)+2,0,1,1)<='Input|General'!$G$12,OFFSET('Lookup|Tables'!$G$28:$G$43,MATCH('Input|General'!$G$8,'Lookup|Tables'!$G$28:$G$42,0)+2,0,1,1),"") -> 2017-18 | N4: =IF(OFFSET('Lookup|Tables'!$G$28:$G$43,MATCH('Input|General'!$G$8,'Lookup|Tables'!$G$28:$G$42,0)+3,0,1,1)<='Input|General'!$G$12,OFFSET('Lookup|Tables'!$G$28:$G$43,MATCH('Input|General'!$G$8,'Lookup|Tables'!$G$28:$G$42,0)+3,0,1,1),"") -> 2018-19 | O4: =IF(OFFSET('Lookup|Tables'!$G$28:$G$43,MATCH('Input|General'!$G$8,'Lookup|Tables'!$G$28:$G$42,0)+4,0,1,1)<='Input|General'!$G$12,OFFSET('Lookup|Tables'!$G$28:$G$43,MATCH('Input|General'!$G$8,'Lookup|Tables'!$G$28:$G$42,0)+4,0,1,1),"") -> 2019-20 | P4: =IF(OFFSET('Lookup|Tables'!$G$28:$G$43,MATCH('Input|General'!$G$8,'Lookup|Tables'!$G$28:$G$42,0)+5,0,1,1)<='Input|General'!$G$12,OFFSET('Lookup|Tables'!$G$28:$G$43,MATCH('Input|General'!$G$8,'Lookup|Tables'!$G$28:$G$42,0)+5,0,1,1),"") -> 2020-21 | Q4: =IF(OFFSET('Lookup|Tables'!$G$28:$G$43,MATCH('Input|General'!$G$8,'Lookup|Tables'!$G$28:$G$42,0)+6,0,1,1)<='Input|General'!$G$12,OFFSET('Lookup|Tables'!$G$28:$G$43,MATCH('Input|General'!$G$8,'Lookup|Tables'!$G$28:$G$42,0)+6,0,1,1),"") -> 2021-22 | R4: =IF(OFFSET('Lookup|Tables'!$G$28:$G$43,MATCH('Input|General'!$G$8,'Lookup|Tables'!$G$28:$G$42,0)+7,0,1,1)<='Input|General'!$G$12,OFFSET('Lookup|Tables'!$G$28:$G$43,MATCH('Input|General'!$G$8,'Lookup|Tables'!$G$28:$G$42,0)+7,0,1,1),"") ->  | S4: =IF(OFFSET('Lookup|Tables'!$G$28:$G$43,MATCH('Input|General'!$G$8,'Lookup|Tables'!$G$28:$G$42,0)+8,0,1,1)<='Input|General'!$G$12,OFFSET('Lookup|Tables'!$G$28:$G$43,MATCH('Input|General'!$G$8,'Lookup|Tables'!$G$28:$G$42,0)+8,0,1,1),"") -> 
B8: Input |Step changes
C10: Step change | D10: Source | E10: Unit | F10: Basis | J10: =IF(RIGHT(J$4,2)>=RIGHT('Input|General'!$G$11,2),IF(RIGHT(J$4,2)<=RIGHT('Input|General'!$G$12,2),J$4,""),"") ->  | K10: =IF(RIGHT(K$4,2)>=RIGHT('Input|General'!$G$11,2),IF(RIGHT(K$4,2)<=RIGHT('Input|General'!$G$12,2),K$4,""),"") ->  | L10: =IF(RIGHT(L$4,2)>=RIGHT('Input|General'!$G$11,2),IF(RIGHT(L$4,2)<=RIGHT('Input|General'!$G$12,2),L$4,""),"") ->  | M10: =IF(RIGHT(M$4,2)>=RIGHT('Input|General'!$G$11,2),IF(RIGHT(M$4,2)<=RIGHT('Input|General'!$G$12,2),M$4,""),"") -> 2017-18 | N10: =IF(RIGHT(N$4,2)>=RIGHT('Input|General'!$G$11,2),IF(RIGHT(N$4,2)<=RIGHT('Input|General'!$G$12,2),N$4,""),"") -> 2018-19 | O10: =IF(RIGHT(O$4,2)>=RIGHT('Input|General'!$G$11,2),IF(RIGHT(O$4,2)<=RIGHT('Input|General'!$G$12,2),O$4,""),"") -> 2019-20 | P10: =IF(RIGHT(P$4,2)>=RIGHT('Input|General'!$G$11,2),IF(RIGHT(P$4,2)<=RIGHT('Input|General'!$G$12,2),P$4,""),"") -> 2020-21 | Q10: =IF(RIGHT(Q$4,2)>=RIGHT('Input|General'!$G$11,2),IF(RIGHT(Q$4,2)<=RIGHT('Input|General'!$G$12,2),Q$4,""),"") -> 2021-22 | R10: =IF(RIGHT(R$4,2)>=RIGHT('Input|General'!$G$11,2),IF(RIGHT(R$4,2)<=RIGHT('Input|General'!$G$12,2),R$4,""),"") ->  | S10: =IF(RIGHT(S$4,2)>=RIGHT('Input|General'!$G$11,2),IF(RIGHT(S$4,2)<=RIGHT('Input|General'!$G$12,2),S$4,""),"") -> 
C12: Synchronous condenser decommissioning | D12: AER | E12: $millions | F12: 2016-17 | M12: 0 | N12: 0 | O12: 0 | P12: 0 | Q12: 0
C13: SAIP roll out | D13: AER | E13: $millions | F13: 2016-17 | M13: 0 | N13: 0 | O13: 0 | P13: 0 | Q13: 0
C14: Establishment of IT security team | D14: AER | E14: $millions | F14: 2016-17 | M14: 0 | N14: 0 | O14: 0 | P14: 0 | Q14: 0
C15: New emergency response arrangements | D15: AER | E15: $millions | F15: 2016-17 | M15: 0 | N15: 0 | O15: 0 | P15: 0 | Q15: 0
C16: WMTS mobile switchboard | D16: AER | E16: $millions | F16: 2016-17 | M16: 0 | N16: 0 | O16: 0 | P16: 0 | Q16: 0
C17: MPS decommissioning | D17: AER | E17: $millions | F17: 2016-17 | M17: 0 | N17: 0 | O17: 0 | P17: 0 | Q17: 0
D18: AER | E18: $millions | F18: 2016-17
D19: AER | E19: $millions | F19: 2016-17
D20: AER | E20: $millions | F20: 2016-17
D21: AER | E21: $millions | F21: 2016-17
D22: AER | E22: $millions | F22: 2016-17
D23: AER | E23: $millions | F23: 2016-17
B25: Input | Category specifc forecasts
C27: Category specific forecasts | D27: Source | E27: Unit | F27: Basis | J27: =IF(RIGHT(J$4,2)>=RIGHT('Input|General'!$G$11,2),IF(RIGHT(J$4,2)<=RIGHT('Input|General'!$G$12,2),J$4,""),"") ->  | K27: =IF(RIGHT(K$4,2)>=RIGHT('Input|General'!$G$11,2),IF(RIGHT(K$4,2)<=RIGHT('Input|General'!$G$12,2),K$4,""),"") ->  | L27: =IF(RIGHT(L$4,2)>=RIGHT('Input|General'!$G$11,2),IF(RIGHT(L$4,2)<=RIGHT('Input|General'!$G$12,2),L$4,""),"") ->  | M27: =IF(RIGHT(M$4,2)>=RIGHT('Input|General'!$G$11,2),IF(RIGHT(M$4,2)<=RIGHT('Input|General'!$G$12,2),M$4,""),"") -> 2017-18 | N27: =IF(RIGHT(N$4,2)>=RIGHT('Input|General'!$G$11,2),IF(RIGHT(N$4,2)<=RIGHT('Input|General'!$G$12,2),N$4,""),"") -> 2018-19 | O27: =IF(RIGHT(O$4,2)>=RIGHT('Input|General'!$G$11,2),IF(RIGHT(O$4,2)<=RIGHT('Input|General'!$G$12,2),O$4,""),"") -> 2019-20 | P27: =IF(RIGHT(P$4,2)>=RIGHT('Input|General'!$G$11,2),IF(RIGHT(P$4,2)<=RIGHT('Input|General'!$G$12,2),P$4,""),"") -> 2020-21 | Q27: =IF(RIGHT(Q$4,2)>=RIGHT('Input|General'!$G$11,2),IF(RIGHT(Q$4,2)<=RIGHT('Input|General'!$G$12,2),Q$4,""),"") -> 2021-22 | R27: =IF(RIGHT(R$4,2)>=RIGHT('Input|General'!$G$11,2),IF(RIGHT(R$4,2)<=RIGHT('Input|General'!$G$12,2),R$4,""),"") ->  | S27: =IF(RIGHT(S$4,2)>=RIGHT('Input|General'!$G$11,2),IF(RIGHT(S$4,2)<=RIGHT('Input|General'!$G$12,2),S$4,""),"") -> 
C29: Easement tax | D29: AER | E29: $millions | F29: 2016-17 | M29: 114.3142551 | N29: 114.3142551 | O29: 114.3142551 | P29: 114.3142551 | Q29: 114.3142551
C30: Group 3 roll in | D30: AER | E30: $millions | F30: 2016-17 | M30: 2.004413448 | N30: 2.004413448 | O30: 2.004413448 | P30: 2.004413448 | Q30: 2.004413448
D31: AER | E31: $millions | F31: 2016-17
B33: Input | Debt raising costs
C35: Debt Raising Costs | D35: Source | E35: Unit | F35: Basis | J35: =IF(RIGHT(J$4,2)>=RIGHT('Input|General'!$G$11,2),IF(RIGHT(J$4,2)<=RIGHT('Input|General'!$G$12,2),J$4,""),"") ->  | K35: =IF(RIGHT(K$4,2)>=RIGHT('Input|General'!$G$11,2),IF(RIGHT(K$4,2)<=RIGHT('Input|General'!$G$12,2),K$4,""),"") ->  | L35: =IF(RIGHT(L$4,2)>=RIGHT('Input|General'!$G$11,2),IF(RIGHT(L$4,2)<=RIGHT('Input|General'!$G$12,2),L$4,""),"") ->  | M35: =IF(RIGHT(M$4,2)>=RIGHT('Input|General'!$G$11,2),IF(RIGHT(M$4,2)<=RIGHT('Input|General'!$G$12,2),M$4,""),"") -> 2017-18 | N35: =IF(RIGHT(N$4,2)>=RIGHT('Input|General'!$G$11,2),IF(RIGHT(N$4,2)<=RIGHT('Input|General'!$G$12,2),N$4,""),"") -> 2018-19 | O35: =IF(RIGHT(O$4,2)>=RIGHT('Input|General'!$G$11,2),IF(RIGHT(O$4,2)<=RIGHT('Input|General'!$G$12,2),O$4,""),"") -> 2019-20 | P35: =IF(RIGHT(P$4,2)>=RIGHT('Input|General'!$G$11,2),IF(RIGHT(P$4,2)<=RIGHT('Input|General'!$G$12,2),P$4,""),"") -> 2020-21 | Q35: =IF(RIGHT(Q$4,2)>=RIGHT('Input|General'!$G$11,2),IF(RIGHT(Q$4,2)<=RIGHT('Input|General'!$G$12,2),Q$4,""),"") -> 2021-22 | R35: =IF(RIGHT(R$4,2)>=RIGHT('Input|General'!$G$11,2),IF(RIGHT(R$4,2)<=RIGHT('Input|General'!$G$12,2),R$4,""),"") ->  | S35: =IF(RIGHT(S$4,2)>=RIGHT('Input|General'!$G$11,2),IF(RIGHT(S$4,2)<=RIGHT('Input|General'!$G$12,2),S$4,""),"") -> 
C37: Debt raising costs | D37: PTRM | E37: $millions | F37: 2016-17 | M37: 1.612021704 | N37: 1.603575361 | O37: 1.578565749 | P37: 1.544013453 | Q37: 1.506526657
B39: End

Sheet Calc|Opex forecast
B1: =Index!$B$1 -> AER opex model | J1: Back to Index | L1: Key: | M1: Input | N1: External Link | O1: Internal Link | R1: Worksheet check: | S1: n/a | U1: Overall Check: | V1: ='Check|List'!$S$1 -> Ok
B2: =Index!$C$12 -> Calc | Opex Forecast
D4: Source | E4: Unit | F4: Basis | J4: ='Input|General'!$G$8 -> 2014-15 | K4: =IF(OFFSET('Lookup|Tables'!$G$26:$G$43,MATCH('Input|General'!$G$8,'Lookup|Tables'!$G$26:$G$42,0),0,1,1)<='Input|General'!$G$12,OFFSET('Lookup|Tables'!$G$26:$G$43,MATCH('Input|General'!$G$8,'Lookup|Tables'!$G$26:$G$42,0),0,1,1),"") -> 2015-16 | L4: =IF(OFFSET('Lookup|Tables'!$G$28:$G$43,MATCH('Input|General'!$G$8,'Lookup|Tables'!$G$28:$G$42,0)+1,0,1,1)<='Input|General'!$G$12,OFFSET('Lookup|Tables'!$G$28:$G$43,MATCH('Input|General'!$G$8,'Lookup|Tables'!$G$28:$G$42,0)+1,0,1,1),"") -> 2016-17 | M4: =IF(OFFSET('Lookup|Tables'!$G$28:$G$43,MATCH('Input|General'!$G$8,'Lookup|Tables'!$G$28:$G$42,0)+2,0,1,1)<='Input|General'!$G$12,OFFSET('Lookup|Tables'!$G$28:$G$43,MATCH('Input|General'!$G$8,'Lookup|Tables'!$G$28:$G$42,0)+2,0,1,1),"") -> 2017-18 | N4: =IF(OFFSET('Lookup|Tables'!$G$28:$G$43,MATCH('Input|General'!$G$8,'Lookup|Tables'!$G$28:$G$42,0)+3,0,1,1)<='Input|General'!$G$12,OFFSET('Lookup|Tables'!$G$28:$G$43,MATCH('Input|General'!$G$8,'Lookup|Tables'!$G$28:$G$42,0)+3,0,1,1),"") -> 2018-19 | O4: =IF(OFFSET('Lookup|Tables'!$G$28:$G$43,MATCH('Input|General'!$G$8,'Lookup|Tables'!$G$28:$G$42,0)+4,0,1,1)<='Input|General'!$G$12,OFFSET('Lookup|Tables'!$G$28:$G$43,MATCH('Input|General'!$G$8,'Lookup|Tables'!$G$28:$G$42,0)+4,0,1,1),"") -> 2019-20 | P4: =IF(OFFSET('Lookup|Tables'!$G$28:$G$43,MATCH('Input|General'!$G$8,'Lookup|Tables'!$G$28:$G$42,0)+5,0,1,1)<='Input|General'!$G$12,OFFSET('Lookup|Tables'!$G$28:$G$43,MATCH('Input|General'!$G$8,'Lookup|Tables'!$G$28:$G$42,0)+5,0,1,1),"") -> 2020-21 | Q4: =IF(OFFSET('Lookup|Tables'!$G$28:$G$43,MATCH('Input|General'!$G$8,'Lookup|Tables'!$G$28:$G$42,0)+6,0,1,1)<='Input|General'!$G$12,OFFSET('Lookup|Tables'!$G$28:$G$43,MATCH('Input|General'!$G$8,'Lookup|Tables'!$G$28:$G$42,0)+6,0,1,1),"") -> 2021-22 | R4: =IF(OFFSET('Lookup|Tables'!$G$28:$G$43,MATCH('Input|General'!$G$8,'Lookup|Tables'!$G$28:$G$42,0)+7,0,1,1)<='Input|General'!$G$12,OFFSET('Lookup|Tables'!$G$28:$G$43,MATCH('Input|General'!$G$8,'Lookup|Tables'!$G$28:$G$42,0)+7,0,1,1),"") ->  | S4: =IF(OFFSET('Lookup|Tables'!$G$28:$G$43,MATCH('Input|General'!$G$8,'Lookup|Tables'!$G$28:$G$42,0)+8,0,1,1)<='Input|General'!$G$12,OFFSET('Lookup|Tables'!$G$28:$G$43,MATCH('Input|General'!$G$8,'Lookup|Tables'!$G$28:$G$42,0)+8,0,1,1),"") -> 
B8: Calc | Estimated final year expenditure | E8: $millions | F8: 2016-17
D10: Source | E10: Unit | F10: Basis | J10: =IF(RIGHT(J$4,2)>=RIGHT('Input|General'!$G$9,2),IF(RIGHT(J$4,2)<=RIGHT('Input|General'!$G$10,2),J$4,""),"") -> 2014-15 | K10: =IF(RIGHT(K$4,2)>=RIGHT('Input|General'!$G$9,2),IF(RIGHT(K$4,2)<=RIGHT('Input|General'!$G$10,2),K$4,""),"") -> 2015-16 | L10: =IF(RIGHT(L$4,2)>=RIGHT('Input|General'!$G$9,2),IF(RIGHT(L$4,2)<=RIGHT('Input|General'!$G$10,2),L$4,""),"") -> 2016-17 | M10: =IF(RIGHT(M$4,2)>=RIGHT('Input|General'!$G$9,2),IF(RIGHT(M$4,2)<=RIGHT('Input|General'!$G$10,2),M$4,""),"") ->  | N10: =IF(RIGHT(N$4,2)>=RIGHT('Input|General'!$G$9,2),IF(RIGHT(N$4,2)<=RIGHT('Input|General'!$G$10,2),N$4,""),"") ->  | O10: =IF(RIGHT(O$4,2)>=RIGHT('Input|General'!$G$9,2),IF(RIGHT(O$4,2)<=RIGHT('Input|General'!$G$10,2),O$4,""),"") ->  | P10: =IF(RIGHT(P$4,2)>=RIGHT('Input|General'!$G$9,2),IF(RIGHT(P$4,2)<=RIGHT('Input|General'!$G$10,2),P$4,""),"") ->  | Q10: =IF(RIGHT(Q$4,2)>=RIGHT('Input|General'!$G$9,2),IF(RIGHT(Q$4,2)<=RIGHT('Input|General'!$G$10,2),Q$4,""),"") ->  | R10: =IF(RIGHT(R$4,2)>=RIGHT('Input|General'!$G$9,2),IF(RIGHT(R$4,2)<=RIGHT('Input|General'!$G$10,2),R$4,""),"") ->  | S10: =IF(RIGHT(S$4,2)>=RIGHT('Input|General'!$G$9,2),IF(RIGHT(S$4,2)<=RIGHT('Input|General'!$G$10,2),S$4,""),"") -> 
C12: Total reported opex | D12: Inputs|Reported opex | E12: ='Input|Reported opex'!E45 -> $millions | F12: ='Input|Reported opex'!F45 -> nominal | J12: =IF(J$10='Input|General'!$G$9,'Input|Reported opex'!J45,0) -> 81.4845137 | K12: =IF(K$10='Input|General'!$G$9,'Input|Reported opex'!K45,0) -> 0 | L12: =IF(L$10='Input|General'!$G$9,'Input|Reported opex'!L45,0) -> 0 | M12: =IF(M$10='Input|General'!$G$9,'Input|Reported opex'!M45,0) -> 0 | N12: =IF(N$10='Input|General'!$G$9,'Input|Reported opex'!N45,0) -> 0 | O12: =IF(O$10='Input|General'!$G$9,'Input|Reported opex'!O45,0) -> 0 | P12: =IF(P$10='Input|General'!$G$9,'Input|Reported opex'!P45,0) -> 0 | Q12: =IF(Q$10='Input|General'!$G$9,'Input|Reported opex'!Q45,0) -> 0 | R12: =IF(R$10='Input|General'!$G$9,'Input|Reported opex'!R45,0) -> 0 | S12: =IF(S$10='Input|General'!$G$9,'Input|Reported opex'!S45,0) -> 0
C13: Total reported opex | D13: Calculated | E13: =$E$8 -> $millions | F13: =$F$8 -> 2016-17 | J13: =J12*IF($F12="nominal",LOOKUP($F13,Nominal_to_Real,'Input|Rate of change'!K$23:K$26),INDEX('Input|Rate of change'!$C$14:$O$19,MATCH('Calc|Opex forecast'!$F12,'Input|Rate of change'!$C$14:$C$19,0),MATCH('Calc|Opex forecast'!$F13,'Input|Rate of change'!$C$14:$O$14,0)))*IF($E12="$millions",1000000,IF($E12="$000",1000,1))/IF($E13="$millions",1000000,IF($E13="$000",1000,1)) -> 84.77818725 | K13: =K12*IF($F12="nominal",LOOKUP($F13,Nominal_to_Real,'Input|Rate of change'!L$23:L$26),INDEX('Input|Rate of change'!$C$14:$O$19,MATCH('Calc|Opex forecast'!$F12,'Input|Rate of change'!$C$14:$C$19,0),MATCH('Calc|Opex forecast'!$F13,'Input|Rate of change'!$C$14:$O$14,0)))*IF($E12="$millions",1000000,IF($E12="$000",1000,1))/IF($E13="$millions",1000000,IF($E13="$000",1000,1)) -> 0 | L13: =L12*IF($F12="nominal",LOOKUP($F13,Nominal_to_Real,'Input|Rate of change'!M$23:M$26),INDEX('Input|Rate of change'!$C$14:$O$19,MATCH('Calc|Opex forecast'!$F12,'Input|Rate of change'!$C$14:$C$19,0),MATCH('Calc|Opex forecast'!$F13,'Input|Rate of change'!$C$14:$O$14,0)))*IF($E12="$millions",1000000,IF($E12="$000",1000,1))/IF($E13="$millions",1000000,IF($E13="$000",1000,1)) -> 0 | M13: =M12*IF($F12="nominal",LOOKUP($F13,Nominal_to_Real,'Input|Rate of change'!N$23:N$26),INDEX('Input|Rate of change'!$C$14:$O$19,MATCH('Calc|Opex forecast'!$F12,'Input|Rate of change'!$C$14:$C$19,0),MATCH('Calc|Opex forecast'!$F13,'Input|Rate of change'!$C$14:$O$14,0)))*IF($E12="$millions",1000000,IF($E12="$000",1000,1))/IF($E13="$millions",1000000,IF($E13="$000",1000,1)) -> 0 | N13: =N12*IF($F12="nominal",LOOKUP($F13,Nominal_to_Real,'Input|Rate of change'!O$23:O$26),INDEX('Input|Rate of change'!$C$14:$O$19,MATCH('Calc|Opex forecast'!$F12,'Input|Rate of change'!$C$14:$C$19,0),MATCH('Calc|Opex forecast'!$F13,'Input|Rate of change'!$C$14:$O$14,0)))*IF($E12="$millions",1000000,IF($E12="$000",1000,1))/IF($E13="$millions",1000000,IF($E13="$000",1000,1)) -> 0 | O13: =O12*IF($F12="nominal",LOOKUP($F13,Nominal_to_Real,'Input|Rate of change'!P$23:P$26),INDEX('Input|Rate of change'!$C$14:$O$19,MATCH('Calc|Opex forecast'!$F12,'Input|Rate of change'!$C$14:$C$19,0),MATCH('Calc|Opex forecast'!$F13,'Input|Rate of change'!$C$14:$O$14,0)))*IF($E12="$millions",1000000,IF($E12="$000",1000,1))/IF($E13="$millions",1000000,IF($E13="$000",1000,1)) -> 0 | P13: =P12*IF($F12="nominal",LOOKUP($F13,Nominal_to_Real,'Input|Rate of change'!Q$23:Q$26),INDEX('Input|Rate of change'!$C$14:$O$19,MATCH('Calc|Opex forecast'!$F12,'Input|Rate of change'!$C$14:$C$19,0),MATCH('Calc|Opex forecast'!$F13,'Input|Rate of change'!$C$14:$O$14,0)))*IF($E12="$millions",1000000,IF($E12="$000",1000,1))/IF($E13="$millions",1000000,IF($E13="$000",1000,1)) -> 0 | Q13: =Q12*IF($F12="nominal",LOOKUP($F13,Nominal_to_Real,'Input|Rate of change'!R$23:R$26),INDEX('Input|Rate of change'!$C$14:$O$19,MATCH('Calc|Opex forecast'!$F12,'Input|Rate of change'!$C$14:$C$19,0),MATCH('Calc|Opex forecast'!$F13,'Input|Rate of change'!$C$14:$O$14,0)))*IF($E12="$millions",1000000,IF($E12="$000",1000,1))/IF($E13="$millions",1000000,IF($E13="$000",1000,1)) -> 0 | R13: =R12*IF($F12="nominal",LOOKUP($F13,Nominal_to_Real,'Input|Rate of change'!S$23:S$26),INDEX('Input|Rate of change'!$C$14:$O$19,MATCH('Calc|Opex forecast'!$F12,'Input|Rate of change'!$C$14:$C$19,0),MATCH('Calc|Opex forecast'!$F13,'Input|Rate of change'!$C$14:$O$14,0)))*IF($E12="$millions",1000000,IF($E12="$000",1000,1))/IF($E13="$millions",1000000,IF($E13="$000",1000,1)) -> 0 | S13: =S12*IF($F12="nominal",LOOKUP($F13,Nominal_to_Real,'Input|Rate of change'!T$23:T$26),INDEX('Input|Rate of change'!$C$14:$O$19,MATCH('Calc|Opex forecast'!$F12,'Input|Rate of change'!$C$14:$C$19,0),MATCH('Calc|Opex forecast'!$F13,'Input|Rate of change'!$C$14:$O$14,0)))*IF($E12="$millions",1000000,IF($E12="$000",1000,1))/IF($E13="$millions",1000000,IF($E13="$000",1000,1)) -> 0
C14: Total base year opex allowance | D14: Inputs|Reported opex | E14: ='Input|Reported opex'!E24 -> $millions | F14: ='Input|Reported opex'!F24 -> 2013-14 | J14: =IF(J$10='Input|General'!$G$9,'Input|Reported opex'!J24,0) -> 80.3852226 | K14: =IF(K$10='Input|General'!$G$9,'Input|Reported opex'!K24,0) -> 0 | L14: =IF(L$10='Input|General'!$G$9,'Input|Reported opex'!L24,0) -> 0 | M14: =IF(M$10='Input|General'!$G$9,'Input|Reported opex'!M24,0) -> 0 | N14: =IF(N$10='Input|General'!$G$9,'Input|Reported opex'!N24,0) -> 0 | O14: =IF(O$10='Input|General'!$G$9,'Input|Reported opex'!O24,0) -> 0 | P14: =IF(P$10='Input|General'!$G$9,'Input|Reported opex'!P24,0) -> 0 | Q14: =IF(Q$10='Input|General'!$G$9,'Input|Reported opex'!Q24,0) -> 0 | R14: =IF(R$10='Input|General'!$G$9,'Input|Reported opex'!R24,0) -> 0 | S14: =IF(S$10='Input|General'!$G$9,'Input|Reported opex'!S24,0) -> 0
C15: Total base year opex allowance | D15: Calculated | E15: =$E$8 -> $millions | F15: =$F$8 -> 2016-17 | J15: =J14*IF($F14="nominal",LOOKUP($F15,Nominal_to_Real,'Input|Rate of change'!K$23:K$26),INDEX('Input|Rate of change'!$C$14:$O$19,MATCH('Calc|Opex forecast'!$F14,'Input|Rate of change'!$C$14:$C$19,0),MATCH('Calc|Opex forecast'!$F15,'Input|Rate of change'!$C$14:$O$14,0)))*IF($E14="$millions",1000000,IF($E14="$000",1000,1))/IF($E15="$millions",1000000,IF($E15="$000",1000,1)) -> 84.18807664 | K15: =K14*IF($F14="nominal",LOOKUP($F15,Nominal_to_Real,'Input|Rate of change'!L$23:L$26),INDEX('Input|Rate of change'!$C$14:$O$19,MATCH('Calc|Opex forecast'!$F14,'Input|Rate of change'!$C$14:$C$19,0),MATCH('Calc|Opex forecast'!$F15,'Input|Rate of change'!$C$14:$O$14,0)))*IF($E14="$millions",1000000,IF($E14="$000",1000,1))/IF($E15="$millions",1000000,IF($E15="$000",1000,1)) -> 0 | L15: =L14*IF($F14="nominal",LOOKUP($F15,Nominal_to_Real,'Input|Rate of change'!M$23:M$26),INDEX('Input|Rate of change'!$C$14:$O$19,MATCH('Calc|Opex forecast'!$F14,'Input|Rate of change'!$C$14:$C$19,0),MATCH('Calc|Opex forecast'!$F15,'Input|Rate of change'!$C$14:$O$14,0)))*IF($E14="$millions",1000000,IF($E14="$000",1000,1))/IF($E15="$millions",1000000,IF($E15="$000",1000,1)) -> 0 | M15: =M14*IF($F14="nominal",LOOKUP($F15,Nominal_to_Real,'Input|Rate of change'!N$23:N$26),INDEX('Input|Rate of change'!$C$14:$O$19,MATCH('Calc|Opex forecast'!$F14,'Input|Rate of change'!$C$14:$C$19,0),MATCH('Calc|Opex forecast'!$F15,'Input|Rate of change'!$C$14:$O$14,0)))*IF($E14="$millions",1000000,IF($E14="$000",1000,1))/IF($E15="$millions",1000000,IF($E15="$000",1000,1)) -> 0 | N15: =N14*IF($F14="nominal",LOOKUP($F15,Nominal_to_Real,'Input|Rate of change'!O$23:O$26),INDEX('Input|Rate of change'!$C$14:$O$19,MATCH('Calc|Opex forecast'!$F14,'Input|Rate of change'!$C$14:$C$19,0),MATCH('Calc|Opex forecast'!$F15,'Input|Rate of change'!$C$14:$O$14,0)))*IF($E14="$millions",1000000,IF($E14="$000",1000,1))/IF($E15="$millions",1000000,IF($E15="$000",1000,1)) -> 0 | O15: =O14*IF($F14="nominal",LOOKUP($F15,Nominal_to_Real,'Input|Rate of change'!P$23:P$26),INDEX('Input|Rate of change'!$C$14:$O$19,MATCH('Calc|Opex forecast'!$F14,'Input|Rate of change'!$C$14:$C$19,0),MATCH('Calc|Opex forecast'!$F15,'Input|Rate of change'!$C$14:$O$14,0)))*IF($E14="$millions",1000000,IF($E14="$000",1000,1))/IF($E15="$millions",1000000,IF($E15="$000",1000,1)) -> 0 | P15: =P14*IF($F14="nominal",LOOKUP($F15,Nominal_to_Real,'Input|Rate of change'!Q$23:Q$26),INDEX('Input|Rate of change'!$C$14:$O$19,MATCH('Calc|Opex forecast'!$F14,'Input|Rate of change'!$C$14:$C$19,0),MATCH('Calc|Opex forecast'!$F15,'Input|Rate of change'!$C$14:$O$14,0)))*IF($E14="$millions",1000000,IF($E14="$000",1000,1))/IF($E15="$millions",1000000,IF($E15="$000",1000,1)) -> 0 | Q15: =Q14*IF($F14="nominal",LOOKUP($F15,Nominal_to_Real,'Input|Rate of change'!R$23:R$26),INDEX('Input|Rate of change'!$C$14:$O$19,MATCH('Calc|Opex forecast'!$F14,'Input|Rate of change'!$C$14:$C$19,0),MATCH('Calc|Opex forecast'!$F15,'Input|Rate of change'!$C$14:$O$14,0)))*IF($E14="$millions",1000000,IF($E14="$000",1000,1))/IF($E15="$millions",1000000,IF($E15="$000",1000,1)) -> 0 | R15: =R14*IF($F14="nominal",LOOKUP($F15,Nominal_to_Real,'Input|Rate of change'!S$23:S$26),INDEX('Input|Rate of change'!$C$14:$O$19,MATCH('Calc|Opex forecast'!$F14,'Input|Rate of change'!$C$14:$C$19,0),MATCH('Calc|Opex forecast'!$F15,'Input|Rate of change'!$C$14:$O$14,0)))*IF($E14="$millions",1000000,IF($E14="$000",1000,1))/IF($E15="$millions",1000000,IF($E15="$000",1000,1)) -> 0 | S15: =S14*IF($F14="nominal",LOOKUP($F15,Nominal_to_Real,'Input|Rate of change'!T$23:T$26),INDEX('Input|Rate of change'!$C$14:$O$19,MATCH('Calc|Opex forecast'!$F14,'Input|Rate of change'!$C$14:$C$19,0),MATCH('Calc|Opex forecast'!$F15,'Input|Rate of change'!$C$14:$O$14,0)))*IF($E14="$millions",1000000,IF($E14="$000",1000,1))/IF($E15="$millions",1000000,IF($E15="$000",1000,1)) -> 0
C16: Total final year opex allowance | D16: Inputs|Reported opex | E16: ='Input|Reported opex'!E24 -> $millions | F16: ='Input|Reported opex'!F24 -> 2013-14 | J16: =IF(J$10='Input|General'!$G$10,'Input|Reported opex'!J24,0) -> 0 | K16: =IF(K$10='Input|General'!$G$10,'Input|Reported opex'!K24,0) -> 0 | L16: =IF(L$10='Input|General'!$G$10,'Input|Reported opex'!L24,0) -> 83.2276872 | M16: =IF(M$10='Input|General'!$G$10,'Input|Reported opex'!M24,0) -> 0 | N16: =IF(N$10='Input|General'!$G$10,'Input|Reported opex'!N24,0) -> 0 | O16: =IF(O$10='Input|General'!$G$10,'Input|Reported opex'!O24,0) -> 0 | P16: =IF(P$10='Input|General'!$G$10,'Input|Reported opex'!P24,0) -> 0 | Q16: =IF(Q$10='Input|General'!$G$10,'Input|Reported opex'!Q24,0) -> 0 | R16: =IF(R$10='Input|General'!$G$10,'Input|Reported opex'!R24,0) -> 0 | S16: =IF(S$10='Input|General'!$G$10,'Input|Reported opex'!S24,0) -> 0
C17: Total final year opex allowance | D17: Calculated | E17: =$E$8 -> $millions | F17: =$F$8 -> 2016-17 | J17: =J16*IF($F16="nominal",LOOKUP($F17,Nominal_to_Real,'Input|Rate of change'!K$23:K$26),INDEX('Input|Rate of change'!$C$14:$O$19,MATCH('Calc|Opex forecast'!$F16,'Input|Rate of change'!$C$14:$C$19,0),MATCH('Calc|Opex forecast'!$F17,'Input|Rate of change'!$C$14:$O$14,0)))*IF($E16="$millions",1000000,IF($E16="$000",1000,1))/IF($E17="$millions",1000000,IF($E17="$000",1000,1)) -> 0 | K17: =K16*IF($F16="nominal",LOOKUP($F17,Nominal_to_Real,'Input|Rate of change'!L$23:L$26),INDEX('Input|Rate of change'!$C$14:$O$19,MATCH('Calc|Opex forecast'!$F16,'Input|Rate of change'!$C$14:$C$19,0),MATCH('Calc|Opex forecast'!$F17,'Input|Rate of change'!$C$14:$O$14,0)))*IF($E16="$millions",1000000,IF($E16="$000",1000,1))/IF($E17="$millions",1000000,IF($E17="$000",1000,1)) -> 0 | L17: =L16*IF($F16="nominal",LOOKUP($F17,Nominal_to_Real,'Input|Rate of change'!M$23:M$26),INDEX('Input|Rate of change'!$C$14:$O$19,MATCH('Calc|Opex forecast'!$F16,'Input|Rate of change'!$C$14:$C$19,0),MATCH('Calc|Opex forecast'!$F17,'Input|Rate of change'!$C$14:$O$14,0)))*IF($E16="$millions",1000000,IF($E16="$000",1000,1))/IF($E17="$millions",1000000,IF($E17="$000",1000,1)) -> 87.1650122 | M17: =M16*IF($F16="nominal",LOOKUP($F17,Nominal_to_Real,'Input|Rate of change'!N$23:N$26),INDEX('Input|Rate of change'!$C$14:$O$19,MATCH('Calc|Opex forecast'!$F16,'Input|Rate of change'!$C$14:$C$19,0),MATCH('Calc|Opex forecast'!$F17,'Input|Rate of change'!$C$14:$O$14,0)))*IF($E16="$millions",1000000,IF($E16="$000",1000,1))/IF($E17="$millions",1000000,IF($E17="$000",1000,1)) -> 0 | N17: =N16*IF($F16="nominal",LOOKUP($F17,Nominal_to_Real,'Input|Rate of change'!O$23:O$26),INDEX('Input|Rate of change'!$C$14:$O$19,MATCH('Calc|Opex forecast'!$F16,'Input|Rate of change'!$C$14:$C$19,0),MATCH('Calc|Opex forecast'!$F17,'Input|Rate of change'!$C$14:$O$14,0)))*IF($E16="$millions",1000000,IF($E16="$000",1000,1))/IF($E17="$millions",1000000,IF($E17="$000",1000,1)) -> 0 | O17: =O16*IF($F16="nominal",LOOKUP($F17,Nominal_to_Real,'Input|Rate of change'!P$23:P$26),INDEX('Input|Rate of change'!$C$14:$O$19,MATCH('Calc|Opex forecast'!$F16,'Input|Rate of change'!$C$14:$C$19,0),MATCH('Calc|Opex forecast'!$F17,'Input|Rate of change'!$C$14:$O$14,0)))*IF($E16="$millions",1000000,IF($E16="$000",1000,1))/IF($E17="$millions",1000000,IF($E17="$000",1000,1)) -> 0 | P17: =P16*IF($F16="nominal",LOOKUP($F17,Nominal_to_Real,'Input|Rate of change'!Q$23:Q$26),INDEX('Input|Rate of change'!$C$14:$O$19,MATCH('Calc|Opex forecast'!$F16,'Input|Rate of change'!$C$14:$C$19,0),MATCH('Calc|Opex forecast'!$F17,'Input|Rate of change'!$C$14:$O$14,0)))*IF($E16="$millions",1000000,IF($E16="$000",1000,1))/IF($E17="$millions",1000000,IF($E17="$000",1000,1)) -> 0 | Q17: =Q16*IF($F16="nominal",LOOKUP($F17,Nominal_to_Real,'Input|Rate of change'!R$23:R$26),INDEX('Input|Rate of change'!$C$14:$O$19,MATCH('Calc|Opex forecast'!$F16,'Input|Rate of change'!$C$14:$C$19,0),MATCH('Calc|Opex forecast'!$F17,'Input|Rate of change'!$C$14:$O$14,0)))*IF($E16="$millions",1000000,IF($E16="$000",1000,1))/IF($E17="$millions",1000000,IF($E17="$000",1000,1)) -> 0 | R17: =R16*IF($F16="nominal",LOOKUP($F17,Nominal_to_Real,'Input|Rate of change'!S$23:S$26),INDEX('Input|Rate of change'!$C$14:$O$19,MATCH('Calc|Opex forecast'!$F16,'Input|Rate of change'!$C$14:$C$19,0),MATCH('Calc|Opex forecast'!$F17,'Input|Rate of change'!$C$14:$O$14,0)))*IF($E16="$millions",1000000,IF($E16="$000",1000,1))/IF($E17="$millions",1000000,IF($E17="$000",1000,1)) -> 0 | S17: =S16*IF($F16="nominal",LOOKUP($F17,Nominal_to_Real,'Input|Rate of change'!T$23:T$26),INDEX('Input|Rate of change'!$C$14:$O$19,MATCH('Calc|Opex forecast'!$F16,'Input|Rate of change'!$C$14:$C$19,0),MATCH('Calc|Opex forecast'!$F17,'Input|Rate of change'!$C$14:$O$14,0)))*IF($E16="$millions",1000000,IF($E16="$000",1000,1))/IF($E17="$millions",1000000,IF($E17="$000",1000,1)) -> 0
C19: Estimated final year opex | D19: Calculated | E19: =$E$8 -> $millions | F19: =$F$8 -> 2016-17 | J19: =IF(J$10='Input|General'!$G$10,SUM($J13:$S13)-SUM($J15:$S15)+SUM($J17:$S17),0) -> 0 | K19: =IF(K$10='Input|General'!$G$10,SUM($J13:$S13)-SUM($J15:$S15)+SUM($J17:$S17),0) -> 0 | L19: =IF(L$10='Input|General'!$G$10,SUM($J13:$S13)-SUM($J15:$S15)+SUM($J17:$S17),0) -> 87.75512281 | M19: =IF(M$10='Input|General'!$G$10,SUM($J13:$S13)-SUM($J15:$S15)+SUM($J17:$S17),0) -> 0 | N19: =IF(N$10='Input|General'!$G$10,SUM($J13:$S13)-SUM($J15:$S15)+SUM($J17:$S17),0) -> 0 | O19: =IF(O$10='Input|General'!$G$10,SUM($J13:$S13)-SUM($J15:$S15)+SUM($J17:$S17),0) -> 0 | P19: =IF(P$10='Input|General'!$G$10,SUM($J13:$S13)-SUM($J15:$S15)+SUM($J17:$S17),0) -> 0 | Q19: =IF(Q$10='Input|General'!$G$10,SUM($J13:$S13)-SUM($J15:$S15)+SUM($J17:$S17),0) -> 0 | R19: =IF(R$10='Input|General'!$G$10,SUM($J13:$S13)-SUM($J15:$S15)+SUM($J17:$S17),0) -> 0 | S19: =IF(S$10='Input|General'!$G$10,SUM($J13:$S13)-SUM($J15:$S15)+SUM($J17:$S17),0) -> 0
C21: ='Input|Reported opex'!$C$50 -> Adjustment 1 | D21: Inputs|Reported opex | E21: ='Input|Reported opex'!E50 -> $millions | F21: ='Input|Reported opex'!F50 -> 2016-17 | I21: =IF(I$10='Input|General'!$G$10,'Input|Reported opex'!I50,0) -> 0 | J21: =IF(J$10='Input|General'!$G$10,'Input|Reported opex'!J50,0) -> 0 | K21: =IF(K$10='Input|General'!$G$10,'Input|Reported opex'!K50,0) -> 0 | L21: =IF(L$10='Input|General'!$G$10,'Input|Reported opex'!L50,0) -> 0 | M21: =IF(M$10='Input|General'!$G$10,'Input|Reported opex'!M50,0) -> 0 | N21: =IF(N$10='Input|General'!$G$10,'Input|Reported opex'!N50,0) -> 0 | O21: =IF(O$10='Input|General'!$G$10,'Input|Reported opex'!O50,0) -> 0 | P21: =IF(P$10='Input|General'!$G$10,'Input|Reported opex'!P50,0) -> 0 | Q21: =IF(Q$10='Input|General'!$G$10,'Input|Reported opex'!Q50,0) -> 0 | R21: =IF(R$10='Input|General'!$G$10,'Input|Reported opex'!R50,0) -> 0 | S21: =IF(S$10='Input|General'!$G$10,'Input|Reported opex'!S50,0) -> 0
C22: =C21 -> Adjustment 1 | D22: Calculated | E22: =$E$8 -> $millions | F22: =$F$8 -> 2016-17 | J22: =J21*IF($F21="nominal",LOOKUP($F22,Nominal_to_Real,'Input|Rate of change'!K$23:K$26),INDEX('Input|Rate of change'!$C$14:$O$19,MATCH('Calc|Opex forecast'!$F21,'Input|Rate of change'!$C$14:$C$19,0),MATCH('Calc|Opex forecast'!$F22,'Input|Rate of change'!$C$14:$O$14,0)))*IF($E21="$millions",1000000,IF($E21="$000",1000,1))/IF($E22="$millions",1000000,IF($E22="$000",1000,1)) -> 0 | K22: =K21*IF($F21="nominal",LOOKUP($F22,Nominal_to_Real,'Input|Rate of change'!L$23:L$26),INDEX('Input|Rate of change'!$C$14:$O$19,MATCH('Calc|Opex forecast'!$F21,'Input|Rate of change'!$C$14:$C$19,0),MATCH('Calc|Opex forecast'!$F22,'Input|Rate of change'!$C$14:$O$14,0)))*IF($E21="$millions",1000000,IF($E21="$000",1000,1))/IF($E22="$millions",1000000,IF($E22="$000",1000,1)) -> 0 | L22: =L21*IF($F21="nominal",LOOKUP($F22,Nominal_to_Real,'Input|Rate of change'!M$23:M$26),INDEX('Input|Rate of change'!$C$14:$O$19,MATCH('Calc|Opex forecast'!$F21,'Input|Rate of change'!$C$14:$C$19,0),MATCH('Calc|Opex forecast'!$F22,'Input|Rate of change'!$C$14:$O$14,0)))*IF($E21="$millions",1000000,IF($E21="$000",1000,1))/IF($E22="$millions",1000000,IF($E22="$000",1000,1)) -> 0 | M22: =M21*IF($F21="nominal",LOOKUP($F22,Nominal_to_Real,'Input|Rate of change'!N$23:N$26),INDEX('Input|Rate of change'!$C$14:$O$19,MATCH('Calc|Opex forecast'!$F21,'Input|Rate of change'!$C$14:$C$19,0),MATCH('Calc|Opex forecast'!$F22,'Input|Rate of change'!$C$14:$O$14,0)))*IF($E21="$millions",1000000,IF($E21="$000",1000,1))/IF($E22="$millions",1000000,IF($E22="$000",1000,1)) -> 0 | N22: =N21*IF($F21="nominal",LOOKUP($F22,Nominal_to_Real,'Input|Rate of change'!O$23:O$26),INDEX('Input|Rate of change'!$C$14:$O$19,MATCH('Calc|Opex forecast'!$F21,'Input|Rate of change'!$C$14:$C$19,0),MATCH('Calc|Opex forecast'!$F22,'Input|Rate of change'!$C$14:$O$14,0)))*IF($E21="$millions",1000000,IF($E21="$000",1000,1))/IF($E22="$millions",1000000,IF($E22="$000",1000,1)) -> 0 | O22: =O21*IF($F21="nominal",LOOKUP($F22,Nominal_to_Real,'Input|Rate of change'!P$23:P$26),INDEX('Input|Rate of change'!$C$14:$O$19,MATCH('Calc|Opex forecast'!$F21,'Input|Rate of change'!$C$14:$C$19,0),MATCH('Calc|Opex forecast'!$F22,'Input|Rate of change'!$C$14:$O$14,0)))*IF($E21="$millions",1000000,IF($E21="$000",1000,1))/IF($E22="$millions",1000000,IF($E22="$000",1000,1)) -> 0 | P22: =P21*IF($F21="nominal",LOOKUP($F22,Nominal_to_Real,'Input|Rate of change'!Q$23:Q$26),INDEX('Input|Rate of change'!$C$14:$O$19,MATCH('Calc|Opex forecast'!$F21,'Input|Rate of change'!$C$14:$C$19,0),MATCH('Calc|Opex forecast'!$F22,'Input|Rate of change'!$C$14:$O$14,0)))*IF($E21="$millions",1000000,IF($E21="$000",1000,1))/IF($E22="$millions",1000000,IF($E22="$000",1000,1)) -> 0 | Q22: =Q21*IF($F21="nominal",LOOKUP($F22,Nominal_to_Real,'Input|Rate of change'!R$23:R$26),INDEX('Input|Rate of change'!$C$14:$O$19,MATCH('Calc|Opex forecast'!$F21,'Input|Rate of change'!$C$14:$C$19,0),MATCH('Calc|Opex forecast'!$F22,'Input|Rate of change'!$C$14:$O$14,0)))*IF($E21="$millions",1000000,IF($E21="$000",1000,1))/IF($E22="$millions",1000000,IF($E22="$000",1000,1)) -> 0 | R22: =R21*IF($F21="nominal",LOOKUP($F22,Nominal_to_Real,'Input|Rate of change'!S$23:S$26),INDEX('Input|Rate of change'!$C$14:$O$19,MATCH('Calc|Opex forecast'!$F21,'Input|Rate of change'!$C$14:$C$19,0),MATCH('Calc|Opex forecast'!$F22,'Input|Rate of change'!$C$14:$O$14,0)))*IF($E21="$millions",1000000,IF($E21="$000",1000,1))/IF($E22="$millions",1000000,IF($E22="$000",1000,1)) -> 0 | S22: =S21*IF($F21="nominal",LOOKUP($F22,Nominal_to_Real,'Input|Rate of change'!T$23:T$26),INDEX('Input|Rate of change'!$C$14:$O$19,MATCH('Calc|Opex forecast'!$F21,'Input|Rate of change'!$C$14:$C$19,0),MATCH('Calc|Opex forecast'!$F22,'Input|Rate of change'!$C$14:$O$14,0)))*IF($E21="$millions",1000000,IF($E21="$000",1000,1))/IF($E22="$millions",1000000,IF($E22="$000",1000,1)) -> 0
C24: ='Input|Reported opex'!$C$51 -> Adjustment 2 | D24: Inputs|Reported opex | E24: ='Input|Reported opex'!E51 -> $millions | F24: ='Input|Reported opex'!F51 -> 2016-17 | J24: =IF(J$10='Input|General'!$G$10,'Input|Reported opex'!J51,0) -> 0 | K24: =IF(K$10='Input|General'!$G$10,'Input|Reported opex'!K51,0) -> 0 | L24: =IF(L$10='Input|General'!$G$10,'Input|Reported opex'!L51,0) -> 0 | M24: =IF(M$10='Input|General'!$G$10,'Input|Reported opex'!M51,0) -> 0 | N24: =IF(N$10='Input|General'!$G$10,'Input|Reported opex'!N51,0) -> 0 | O24: =IF(O$10='Input|General'!$G$10,'Input|Reported opex'!O51,0) -> 0 | P24: =IF(P$10='Input|General'!$G$10,'Input|Reported opex'!P51,0) -> 0 | Q24: =IF(Q$10='Input|General'!$G$10,'Input|Reported opex'!Q51,0) -> 0
C25: =C24 -> Adjustment 2 | D25: Calculated | E25: =$E$8 -> $millions | F25: =$F$8 -> 2016-17 | J25: =J24*IF($F24="nominal",LOOKUP($F25,Nominal_to_Real,'Input|Rate of change'!K$23:K$26),INDEX('Input|Rate of change'!$C$14:$O$19,MATCH('Calc|Opex forecast'!$F24,'Input|Rate of change'!$C$14:$C$19,0),MATCH('Calc|Opex forecast'!$F25,'Input|Rate of change'!$C$14:$O$14,0)))*IF($E24="$millions",1000000,IF($E24="$000",1000,1))/IF($E25="$millions",1000000,IF($E25="$000",1000,1)) -> 0 | K25: =K24*IF($F24="nominal",LOOKUP($F25,Nominal_to_Real,'Input|Rate of change'!L$23:L$26),INDEX('Input|Rate of change'!$C$14:$O$19,MATCH('Calc|Opex forecast'!$F24,'Input|Rate of change'!$C$14:$C$19,0),MATCH('Calc|Opex forecast'!$F25,'Input|Rate of change'!$C$14:$O$14,0)))*IF($E24="$millions",1000000,IF($E24="$000",1000,1))/IF($E25="$millions",1000000,IF($E25="$000",1000,1)) -> 0 | L25: =L24*IF($F24="nominal",LOOKUP($F25,Nominal_to_Real,'Input|Rate of change'!M$23:M$26),INDEX('Input|Rate of change'!$C$14:$O$19,MATCH('Calc|Opex forecast'!$F24,'Input|Rate of change'!$C$14:$C$19,0),MATCH('Calc|Opex forecast'!$F25,'Input|Rate of change'!$C$14:$O$14,0)))*IF($E24="$millions",1000000,IF($E24="$000",1000,1))/IF($E25="$millions",1000000,IF($E25="$000",1000,1)) -> 0 | M25: =M24*IF($F24="nominal",LOOKUP($F25,Nominal_to_Real,'Input|Rate of change'!N$23:N$26),INDEX('Input|Rate of change'!$C$14:$O$19,MATCH('Calc|Opex forecast'!$F24,'Input|Rate of change'!$C$14:$C$19,0),MATCH('Calc|Opex forecast'!$F25,'Input|Rate of change'!$C$14:$O$14,0)))*IF($E24="$millions",1000000,IF($E24="$000",1000,1))/IF($E25="$millions",1000000,IF($E25="$000",1000,1)) -> 0 | N25: =N24*IF($F24="nominal",LOOKUP($F25,Nominal_to_Real,'Input|Rate of change'!O$23:O$26),INDEX('Input|Rate of change'!$C$14:$O$19,MATCH('Calc|Opex forecast'!$F24,'Input|Rate of change'!$C$14:$C$19,0),MATCH('Calc|Opex forecast'!$F25,'Input|Rate of change'!$C$14:$O$14,0)))*IF($E24="$millions",1000000,IF($E24="$000",1000,1))/IF($E25="$millions",1000000,IF($E25="$000",1000,1)) -> 0 | O25: =O24*IF($F24="nominal",LOOKUP($F25,Nominal_to_Real,'Input|Rate of change'!P$23:P$26),INDEX('Input|Rate of change'!$C$14:$O$19,MATCH('Calc|Opex forecast'!$F24,'Input|Rate of change'!$C$14:$C$19,0),MATCH('Calc|Opex forecast'!$F25,'Input|Rate of change'!$C$14:$O$14,0)))*IF($E24="$millions",1000000,IF($E24="$000",1000,1))/IF($E25="$millions",1000000,IF($E25="$000",1000,1)) -> 0 | P25: =P24*IF($F24="nominal",LOOKUP($F25,Nominal_to_Real,'Input|Rate of change'!Q$23:Q$26),INDEX('Input|Rate of change'!$C$14:$O$19,MATCH('Calc|Opex forecast'!$F24,'Input|Rate of change'!$C$14:$C$19,0),MATCH('Calc|Opex forecast'!$F25,'Input|Rate of change'!$C$14:$O$14,0)))*IF($E24="$millions",1000000,IF($E24="$000",1000,1))/IF($E25="$millions",1000000,IF($E25="$000",1000,1)) -> 0 | Q25: =Q24*IF($F24="nominal",LOOKUP($F25,Nominal_to_Real,'Input|Rate of change'!R$23:R$26),INDEX('Input|Rate of change'!$C$14:$O$19,MATCH('Calc|Opex forecast'!$F24,'Input|Rate of change'!$C$14:$C$19,0),MATCH('Calc|Opex forecast'!$F25,'Input|Rate of change'!$C$14:$O$14,0)))*IF($E24="$millions",1000000,IF($E24="$000",1000,1))/IF($E25="$millions",1000000,IF($E25="$000",1000,1)) -> 0 | R25: =R24*IF($F24="nominal",LOOKUP($F25,Nominal_to_Real,'Input|Rate of change'!S$23:S$26),INDEX('Input|Rate of change'!$C$14:$O$19,MATCH('Calc|Opex forecast'!$F24,'Input|Rate of change'!$C$14:$C$19,0),MATCH('Calc|Opex forecast'!$F25,'Input|Rate of change'!$C$14:$O$14,0)))*IF($E24="$millions",1000000,IF($E24="$000",1000,1))/IF($E25="$millions",1000000,IF($E25="$000",1000,1)) -> 0 | S25: =S24*IF($F24="nominal",LOOKUP($F25,Nominal_to_Real,'Input|Rate of change'!T$23:T$26),INDEX('Input|Rate of change'!$C$14:$O$19,MATCH('Calc|Opex forecast'!$F24,'Input|Rate of change'!$C$14:$C$19,0),MATCH('Calc|Opex forecast'!$F25,'Input|Rate of change'!$C$14:$O$14,0)))*IF($E24="$millions",1000000,IF($E24="$000",1000,1))/IF($E25="$millions",1000000,IF($E25="$000",1000,1)) -> 0
C27: ='Input|Reported opex'!$C$52 -> Adjustment 3 | D27: Inputs|Reported opex | E27: ='Input|Reported opex'!$E$52 -> $millions | F27: ='Input|Reported opex'!$F$52 -> 2016-17 | J27: =IF(J$10='Input|General'!$G$10,'Input|Reported opex'!J52,0) -> 0 | K27: =IF(K$10='Input|General'!$G$10,'Input|Reported opex'!K52,0) -> 0 | L27: =IF(L$10='Input|General'!$G$10,'Input|Reported opex'!L52,0) -> 0 | M27: =IF(M$10='Input|General'!$G$10,'Input|Reported opex'!M52,0) -> 0 | N27: =IF(N$10='Input|General'!$G$10,'Input|Reported opex'!N52,0) -> 0 | O27: =IF(O$10='Input|General'!$G$10,'Input|Reported opex'!O52,0) -> 0 | P27: =IF(P$10='Input|General'!$G$10,'Input|Reported opex'!P52,0) -> 0 | Q27: =IF(Q$10='Input|General'!$G$10,'Input|Reported opex'!Q52,0) -> 0
C28: =C27 -> Adjustment 3 | D28: Calculated | E28: =$E$8 -> $millions | F28: =$F$8 -> 2016-17 | J28: =J27*IF($F27="nominal",LOOKUP($F28,Nominal_to_Real,'Input|Rate of change'!K$23:K$26),INDEX('Input|Rate of change'!$C$14:$O$19,MATCH('Calc|Opex forecast'!$F27,'Input|Rate of change'!$C$14:$C$19,0),MATCH('Calc|Opex forecast'!$F28,'Input|Rate of change'!$C$14:$O$14,0)))*IF($E27="$millions",1000000,IF($E27="$000",1000,1))/IF($E28="$millions",1000000,IF($E28="$000",1000,1)) -> 0 | K28: =K27*IF($F27="nominal",LOOKUP($F28,Nominal_to_Real,'Input|Rate of change'!L$23:L$26),INDEX('Input|Rate of change'!$C$14:$O$19,MATCH('Calc|Opex forecast'!$F27,'Input|Rate of change'!$C$14:$C$19,0),MATCH('Calc|Opex forecast'!$F28,'Input|Rate of change'!$C$14:$O$14,0)))*IF($E27="$millions",1000000,IF($E27="$000",1000,1))/IF($E28="$millions",1000000,IF($E28="$000",1000,1)) -> 0 | L28: =L27*IF($F27="nominal",LOOKUP($F28,Nominal_to_Real,'Input|Rate of change'!M$23:M$26),INDEX('Input|Rate of change'!$C$14:$O$19,MATCH('Calc|Opex forecast'!$F27,'Input|Rate of change'!$C$14:$C$19,0),MATCH('Calc|Opex forecast'!$F28,'Input|Rate of change'!$C$14:$O$14,0)))*IF($E27="$millions",1000000,IF($E27="$000",1000,1))/IF($E28="$millions",1000000,IF($E28="$000",1000,1)) -> 0 | M28: =M27*IF($F27="nominal",LOOKUP($F28,Nominal_to_Real,'Input|Rate of change'!N$23:N$26),INDEX('Input|Rate of change'!$C$14:$O$19,MATCH('Calc|Opex forecast'!$F27,'Input|Rate of change'!$C$14:$C$19,0),MATCH('Calc|Opex forecast'!$F28,'Input|Rate of change'!$C$14:$O$14,0)))*IF($E27="$millions",1000000,IF($E27="$000",1000,1))/IF($E28="$millions",1000000,IF($E28="$000",1000,1)) -> 0 | N28: =N27*IF($F27="nominal",LOOKUP($F28,Nominal_to_Real,'Input|Rate of change'!O$23:O$26),INDEX('Input|Rate of change'!$C$14:$O$19,MATCH('Calc|Opex forecast'!$F27,'Input|Rate of change'!$C$14:$C$19,0),MATCH('Calc|Opex forecast'!$F28,'Input|Rate of change'!$C$14:$O$14,0)))*IF($E27="$millions",1000000,IF($E27="$000",1000,1))/IF($E28="$millions",1000000,IF($E28="$000",1000,1)) -> 0 | O28: =O27*IF($F27="nominal",LOOKUP($F28,Nominal_to_Real,'Input|Rate of change'!P$23:P$26),INDEX('Input|Rate of change'!$C$14:$O$19,MATCH('Calc|Opex forecast'!$F27,'Input|Rate of change'!$C$14:$C$19,0),MATCH('Calc|Opex forecast'!$F28,'Input|Rate of change'!$C$14:$O$14,0)))*IF($E27="$millions",1000000,IF($E27="$000",1000,1))/IF($E28="$millions",1000000,IF($E28="$000",1000,1)) -> 0 | P28: =P27*IF($F27="nominal",LOOKUP($F28,Nominal_to_Real,'Input|Rate of change'!Q$23:Q$26),INDEX('Input|Rate of change'!$C$14:$O$19,MATCH('Calc|Opex forecast'!$F27,'Input|Rate of change'!$C$14:$C$19,0),MATCH('Calc|Opex forecast'!$F28,'Input|Rate of change'!$C$14:$O$14,0)))*IF($E27="$millions",1000000,IF($E27="$000",1000,1))/IF($E28="$millions",1000000,IF($E28="$000",1000,1)) -> 0 | Q28: =Q27*IF($F27="nominal",LOOKUP($F28,Nominal_to_Real,'Input|Rate of change'!R$23:R$26),INDEX('Input|Rate of change'!$C$14:$O$19,MATCH('Calc|Opex forecast'!$F27,'Input|Rate of change'!$C$14:$C$19,0),MATCH('Calc|Opex forecast'!$F28,'Input|Rate of change'!$C$14:$O$14,0)))*IF($E27="$millions",1000000,IF($E27="$000",1000,1))/IF($E28="$millions",1000000,IF($E28="$000",1000,1)) -> 0
C30: ='Input|Reported opex'!$C$53 -> Adjustment 4 | D30: Inputs|Reported opex | E30: ='Input|Reported opex'!$E$53 -> $millions | F30: ='Input|Reported opex'!$F$53 -> 2016-17 | J30: =IF(J$10='Input|General'!$G$10,'Input|Reported opex'!J53,0) -> 0 | K30: =IF(K$10='Input|General'!$G$10,'Input|Reported opex'!K53,0) -> 0 | L30: =IF(L$10='Input|General'!$G$10,'Input|Reported opex'!L53,0) -> 0 | M30: =IF(M$10='Input|General'!$G$10,'Input|Reported opex'!M53,0) -> 0 | N30: =IF(N$10='Input|General'!$G$10,'Input|Reported opex'!N53,0) -> 0 | O30: =IF(O$10='Input|General'!$G$10,'Input|Reported opex'!O53,0) -> 0 | P30: =IF(P$10='Input|General'!$G$10,'Input|Reported opex'!P53,0) -> 0 | Q30: =IF(Q$10='Input|General'!$G$10,'Input|Reported opex'!Q53,0) -> 0
C31: =C30 -> Adjustment 4 | D31: Calculated | E31: =$E$8 -> $millions | F31: =$F$8 -> 2016-17 | J31: =J30*IF($F30="nominal",LOOKUP($F31,Nominal_to_Real,'Input|Rate of change'!K$23:K$26),INDEX('Input|Rate of change'!$C$14:$O$19,MATCH('Calc|Opex forecast'!$F30,'Input|Rate of change'!$C$14:$C$19,0),MATCH('Calc|Opex forecast'!$F31,'Input|Rate of change'!$C$14:$O$14,0)))*IF($E30="$millions",1000000,IF($E30="$000",1000,1))/IF($E31="$millions",1000000,IF($E31="$000",1000,1)) -> 0 | K31: =K30*IF($F30="nominal",LOOKUP($F31,Nominal_to_Real,'Input|Rate of change'!L$23:L$26),INDEX('Input|Rate of change'!$C$14:$O$19,MATCH('Calc|Opex forecast'!$F30,'Input|Rate of change'!$C$14:$C$19,0),MATCH('Calc|Opex forecast'!$F31,'Input|Rate of change'!$C$14:$O$14,0)))*IF($E30="$millions",1000000,IF($E30="$000",1000,1))/IF($E31="$millions",1000000,IF($E31="$000",1000,1)) -> 0 | L31: =L30*IF($F30="nominal",LOOKUP($F31,Nominal_to_Real,'Input|Rate of change'!M$23:M$26),INDEX('Input|Rate of change'!$C$14:$O$19,MATCH('Calc|Opex forecast'!$F30,'Input|Rate of change'!$C$14:$C$19,0),MATCH('Calc|Opex forecast'!$F31,'Input|Rate of change'!$C$14:$O$14,0)))*IF($E30="$millions",1000000,IF($E30="$000",1000,1))/IF($E31="$millions",1000000,IF($E31="$000",1000,1)) -> 0 | M31: =M30*IF($F30="nominal",LOOKUP($F31,Nominal_to_Real,'Input|Rate of change'!N$23:N$26),INDEX('Input|Rate of change'!$C$14:$O$19,MATCH('Calc|Opex forecast'!$F30,'Input|Rate of change'!$C$14:$C$19,0),MATCH('Calc|Opex forecast'!$F31,'Input|Rate of change'!$C$14:$O$14,0)))*IF($E30="$millions",1000000,IF($E30="$000",1000,1))/IF($E31="$millions",1000000,IF($E31="$000",1000,1)) -> 0 | N31: =N30*IF($F30="nominal",LOOKUP($F31,Nominal_to_Real,'Input|Rate of change'!O$23:O$26),INDEX('Input|Rate of change'!$C$14:$O$19,MATCH('Calc|Opex forecast'!$F30,'Input|Rate of change'!$C$14:$C$19,0),MATCH('Calc|Opex forecast'!$F31,'Input|Rate of change'!$C$14:$O$14,0)))*IF($E30="$millions",1000000,IF($E30="$000",1000,1))/IF($E31="$millions",1000000,IF($E31="$000",1000,1)) -> 0 | O31: =O30*IF($F30="nominal",LOOKUP($F31,Nominal_to_Real,'Input|Rate of change'!P$23:P$26),INDEX('Input|Rate of change'!$C$14:$O$19,MATCH('Calc|Opex forecast'!$F30,'Input|Rate of change'!$C$14:$C$19,0),MATCH('Calc|Opex forecast'!$F31,'Input|Rate of change'!$C$14:$O$14,0)))*IF($E30="$millions",1000000,IF($E30="$000",1000,1))/IF($E31="$millions",1000000,IF($E31="$000",1000,1)) -> 0 | P31: =P30*IF($F30="nominal",LOOKUP($F31,Nominal_to_Real,'Input|Rate of change'!Q$23:Q$26),INDEX('Input|Rate of change'!$C$14:$O$19,MATCH('Calc|Opex forecast'!$F30,'Input|Rate of change'!$C$14:$C$19,0),MATCH('Calc|Opex forecast'!$F31,'Input|Rate of change'!$C$14:$O$14,0)))*IF($E30="$millions",1000000,IF($E30="$000",1000,1))/IF($E31="$millions",1000000,IF($E31="$000",1000,1)) -> 0 | Q31: =Q30*IF($F30="nominal",LOOKUP($F31,Nominal_to_Real,'Input|Rate of change'!R$23:R$26),INDEX('Input|Rate of change'!$C$14:$O$19,MATCH('Calc|Opex forecast'!$F30,'Input|Rate of change'!$C$14:$C$19,0),MATCH('Calc|Opex forecast'!$F31,'Input|Rate of change'!$C$14:$O$14,0)))*IF($E30="$millions",1000000,IF($E30="$000",1000,1))/IF($E31="$millions",1000000,IF($E31="$000",1000,1)) -> 0
C33: ='Input|Reported opex'!$C$54 -> Adjustment 5 | D33: Inputs|Reported opex | E33: ='Input|Reported opex'!$E$54 -> $millions | F33: ='Input|Reported opex'!$F$54 -> 2016-17 | J33: =IF(J$10='Input|General'!$G$10,'Input|Reported opex'!J54,0) -> 0 | K33: =IF(K$10='Input|General'!$G$10,'Input|Reported opex'!K54,0) -> 0 | L33: =IF(L$10='Input|General'!$G$10,'Input|Reported opex'!L54,0) -> 0 | M33: =IF(M$10='Input|General'!$G$10,'Input|Reported opex'!M54,0) -> 0 | N33: =IF(N$10='Input|General'!$G$10,'Input|Reported opex'!N54,0) -> 0 | O33: =IF(O$10='Input|General'!$G$10,'Input|Reported opex'!O54,0) -> 0 | P33: =IF(P$10='Input|General'!$G$10,'Input|Reported opex'!P54,0) -> 0 | Q33: =IF(Q$10='Input|General'!$G$10,'Input|Reported opex'!Q54,0) -> 0
C34: =C33 -> Adjustment 5 | D34: Calculated | E34: =$E$8 -> $millions | F34: =$F$8 -> 2016-17 | J34: =J33*IF($F33="nominal",LOOKUP($F34,Nominal_to_Real,'Input|Rate of change'!K$23:K$26),INDEX('Input|Rate of change'!$C$14:$O$19,MATCH('Calc|Opex forecast'!$F33,'Input|Rate of change'!$C$14:$C$19,0),MATCH('Calc|Opex forecast'!$F34,'Input|Rate of change'!$C$14:$O$14,0)))*IF($E33="$millions",1000000,IF($E33="$000",1000,1))/IF($E34="$millions",1000000,IF($E34="$000",1000,1)) -> 0 | K34: =K33*IF($F33="nominal",LOOKUP($F34,Nominal_to_Real,'Input|Rate of change'!L$23:L$26),INDEX('Input|Rate of change'!$C$14:$O$19,MATCH('Calc|Opex forecast'!$F33,'Input|Rate of change'!$C$14:$C$19,0),MATCH('Calc|Opex forecast'!$F34,'Input|Rate of change'!$C$14:$O$14,0)))*IF($E33="$millions",1000000,IF($E33="$000",1000,1))/IF($E34="$millions",1000000,IF($E34="$000",1000,1)) -> 0 | L34: =L33*IF($F33="nominal",LOOKUP($F34,Nominal_to_Real,'Input|Rate of change'!M$23:M$26),INDEX('Input|Rate of change'!$C$14:$O$19,MATCH('Calc|Opex forecast'!$F33,'Input|Rate of change'!$C$14:$C$19,0),MATCH('Calc|Opex forecast'!$F34,'Input|Rate of change'!$C$14:$O$14,0)))*IF($E33="$millions",1000000,IF($E33="$000",1000,1))/IF($E34="$millions",1000000,IF($E34="$000",1000,1)) -> 0 | M34: =M33*IF($F33="nominal",LOOKUP($F34,Nominal_to_Real,'Input|Rate of change'!N$23:N$26),INDEX('Input|Rate of change'!$C$14:$O$19,MATCH('Calc|Opex forecast'!$F33,'Input|Rate of change'!$C$14:$C$19,0),MATCH('Calc|Opex forecast'!$F34,'Input|Rate of change'!$C$14:$O$14,0)))*IF($E33="$millions",1000000,IF($E33="$000",1000,1))/IF($E34="$millions",1000000,IF($E34="$000",1000,1)) -> 0 | N34: =N33*IF($F33="nominal",LOOKUP($F34,Nominal_to_Real,'Input|Rate of change'!O$23:O$26),INDEX('Input|Rate of change'!$C$14:$O$19,MATCH('Calc|Opex forecast'!$F33,'Input|Rate of change'!$C$14:$C$19,0),MATCH('Calc|Opex forecast'!$F34,'Input|Rate of change'!$C$14:$O$14,0)))*IF($E33="$millions",1000000,IF($E33="$000",1000,1))/IF($E34="$millions",1000000,IF($E34="$000",1000,1)) -> 0 | O34: =O33*IF($F33="nominal",LOOKUP($F34,Nominal_to_Real,'Input|Rate of change'!P$23:P$26),INDEX('Input|Rate of change'!$C$14:$O$19,MATCH('Calc|Opex forecast'!$F33,'Input|Rate of change'!$C$14:$C$19,0),MATCH('Calc|Opex forecast'!$F34,'Input|Rate of change'!$C$14:$O$14,0)))*IF($E33="$millions",1000000,IF($E33="$000",1000,1))/IF($E34="$millions",1000000,IF($E34="$000",1000,1)) -> 0 | P34: =P33*IF($F33="nominal",LOOKUP($F34,Nominal_to_Real,'Input|Rate of change'!Q$23:Q$26),INDEX('Input|Rate of change'!$C$14:$O$19,MATCH('Calc|Opex forecast'!$F33,'Input|Rate of change'!$C$14:$C$19,0),MATCH('Calc|Opex forecast'!$F34,'Input|Rate of change'!$C$14:$O$14,0)))*IF($E33="$millions",1000000,IF($E33="$000",1000,1))/IF($E34="$millions",1000000,IF($E34="$000",1000,1)) -> 0 | Q34: =Q33*IF($F33="nominal",LOOKUP($F34,Nominal_to_Real,'Input|Rate of change'!R$23:R$26),INDEX('Input|Rate of change'!$C$14:$O$19,MATCH('Calc|Opex forecast'!$F33,'Input|Rate of change'!$C$14:$C$19,0),MATCH('Calc|Opex forecast'!$F34,'Input|Rate of change'!$C$14:$O$14,0)))*IF($E33="$millions",1000000,IF($E33="$000",1000,1))/IF($E34="$millions",1000000,IF($E34="$000",1000,1)) -> 0
C36: Efficiency adjustment | D36: calculated | E36: =$E$8 -> $millions | F36: =$F$8 -> 2016-17 | J36: =SUM(J19,J22,J25)*'Input|Reported opex'!$N$55 -> 0 | K36: =SUM(K19,K22,K25)*'Input|Reported opex'!$N$55 -> 0 | L36: =SUM(L19,L22,L25,L28,L31,L34)*'Input|Reported opex'!$N$55 -> 0 | M36: =SUM(M19,M22,M25)*'Input|Reported opex'!$N$55 -> 0 | N36: =SUM(N19,N22,N25)*'Input|Reported opex'!$N$55 -> 0 | O36: =SUM(O19,O22,O25)*'Input|Reported opex'!$N$55 -> 0 | P36: =SUM(P19,P22,P25)*'Input|Reported opex'!$N$55 -> 0 | Q36: =SUM(Q19,Q22,Q25)*'Input|Reported opex'!$N$55 -> 0 | R36: =SUM(R19,R22,R25)*'Input|Reported opex'!$N$55 -> 0 | S36: =SUM(S19,S22,S25)*'Input|Reported opex'!$N$55 -> 0
C38: Efficiency adjustment final year opex | D38: calculated | E38: =$E$8 -> $millions | F38: =$F$8 -> 2016-17 | J38: =SUM(J19,J22,J25,J36) -> 0 | K38: 0 | L38: =SUM(L19,L22,L25,L28,L31,L34,L36) -> 87.75512281 | M38: 0 | N38: =SUM(N19,N22,N25,N36) -> 0 | O38: 0 | P38: 0 | Q38: 0 | R38: 0 | S38: =SUM(S19,S22,S25,S36) -> 0
B40: Calc | Rate of change
C42: Rate of change | D42: Source | E42: Unit | F42: Basis | J42: =IF(RIGHT(J$4,2)>=RIGHT('Input|General'!$G$11,2),IF(RIGHT(J$4,2)<=RIGHT('Input|General'!$G$12,2),J$4,""),"") ->  | K42: =IF(RIGHT(K$4,2)>=RIGHT('Input|General'!$G$11,2),IF(RIGHT(K$4,2)<=RIGHT('Input|General'!$G$12,2),K$4,""),"") ->  | L42: =IF(RIGHT(L$4,2)>=RIGHT('Input|General'!$G$11,2),IF(RIGHT(L$4,2)<=RIGHT('Input|General'!$G$12,2),L$4,""),"") ->  | M42: =IF(RIGHT(M$4,2)>=RIGHT('Input|General'!$G$11,2),IF(RIGHT(M$4,2)<=RIGHT('Input|General'!$G$12,2),M$4,""),"") -> 2017-18 | N42: =IF(RIGHT(N$4,2)>=RIGHT('Input|General'!$G$11,2),IF(RIGHT(N$4,2)<=RIGHT('Input|General'!$G$12,2),N$4,""),"") -> 2018-19 | O42: =IF(RIGHT(O$4,2)>=RIGHT('Input|General'!$G$11,2),IF(RIGHT(O$4,2)<=RIGHT('Input|General'!$G$12,2),O$4,""),"") -> 2019-20 | P42: =IF(RIGHT(P$4,2)>=RIGHT('Input|General'!$G$11,2),IF(RIGHT(P$4,2)<=RIGHT('Input|General'!$G$12,2),P$4,""),"") -> 2020-21 | Q42: =IF(RIGHT(Q$4,2)>=RIGHT('Input|General'!$G$11,2),IF(RIGHT(Q$4,2)<=RIGHT('Input|General'!$G$12,2),Q$4,""),"") -> 2021-22 | R42: =IF(RIGHT(R$4,2)>=RIGHT('Input|General'!$G$11,2),IF(RIGHT(R$4,2)<=RIGHT('Input|General'!$G$12,2),R$4,""),"") ->  | S42: =IF(RIGHT(S$4,2)>=RIGHT('Input|General'!$G$11,2),IF(RIGHT(S$4,2)<=RIGHT('Input|General'!$G$12,2),S$4,""),"") -> 
C45: Forecast output change | D45: Calculated | E45: Per cent | F45: n/a | J45: =SUMPRODUCT('Input|Rate of change'!K67:K72,'Input|Rate of change'!$M$76:$M$81) -> 0 | K45: =SUMPRODUCT('Input|Rate of change'!L67:L72,'Input|Rate of change'!$M$76:$M$81) -> 0 | L45: =SUMPRODUCT('Input|Rate of change'!M67:M72,'Input|Rate of change'!$M$76:$M$81) -> 0 | M45: =SUMPRODUCT('Input|Rate of change'!N67:N72,'Input|Rate of change'!$M$76:$M$81) -> 0 | N45: =SUMPRODUCT('Input|Rate of change'!O67:O72,'Input|Rate of change'!$M$76:$M$81) -> 0 | O45: =SUMPRODUCT('Input|Rate of change'!P67:P72,'Input|Rate of change'!$M$76:$M$81) -> 0 | P45: =SUMPRODUCT('Input|Rate of change'!Q67:Q72,'Input|Rate of change'!$M$76:$M$81) -> 0 | Q45: =SUMPRODUCT('Input|Rate of change'!R67:R72,'Input|Rate of change'!$M$76:$M$81) -> 0 | R45: =SUMPRODUCT('Input|Rate of change'!S67:S72,'Input|Rate of change'!$M$76:$M$81) -> 0 | S45: =SUMPRODUCT('Input|Rate of change'!T67:T72,'Input|Rate of change'!$M$76:$M$81) -> 0
C47: Forecast price change | D47: Calculated | E47: Per cent | F47: n/a | J47: =SUMPRODUCT('Input|Rate of change'!K32:K39,'Input|Rate of change'!K43:K50) -> 0 | K47: =SUMPRODUCT('Input|Rate of change'!L32:L39,'Input|Rate of change'!L43:L50) -> 0 | L47: =SUMPRODUCT('Input|Rate of change'!M32:M39,'Input|Rate of change'!M43:M50) -> 0 | M47: =SUMPRODUCT('Input|Rate of change'!N32:N39,'Input|Rate of change'!N43:N50) -> 0.002944786017 | N47: =SUMPRODUCT('Input|Rate of change'!O32:O39,'Input|Rate of change'!O43:O50) -> 0.005134181872 | O47: =SUMPRODUCT('Input|Rate of change'!P32:P39,'Input|Rate of change'!P43:P50) -> 0.006031665231 | P47: =SUMPRODUCT('Input|Rate of change'!Q32:Q39,'Input|Rate of change'!Q43:Q50) -> 0.006328589763 | Q47: =SUMPRODUCT('Input|Rate of change'!R32:R39,'Input|Rate of change'!R43:R50) -> 0.006355541049 | R47: =SUMPRODUCT('Input|Rate of change'!S32:S39,'Input|Rate of change'!S43:S50) -> 0 | S47: =SUMPRODUCT('Input|Rate of change'!T32:T39,'Input|Rate of change'!T43:T50) -> 0
C49: Forecast productivity change | D49: Calculated | E49: Per cent | F49: n/a | J49: ='Input|Rate of change'!K89 -> 0 | K49: ='Input|Rate of change'!L89 -> 0 | L49: ='Input|Rate of change'!M89 -> 0 | M49: ='Input|Rate of change'!N89 -> 0.002 | N49: ='Input|Rate of change'!O89 -> 0.002 | O49: ='Input|Rate of change'!P89 -> 0.002 | P49: ='Input|Rate of change'!Q89 -> 0.002 | Q49: ='Input|Rate of change'!R89 -> 0.002 | R49: ='Input|Rate of change'!S89 -> 0 | S49: ='Input|Rate of change'!T89 -> 0
C51: Forecast rate of change | D51: Calculated | E51: Per cent | F51: n/a | J51: =(1+J45)*(1+J47)*(1-J49)-1 -> 0 | K51: =(1+K45)*(1+K47)*(1-K49)-1 -> 0 | L51: 0 | M51: 0.000938896445 | N51: 0.003123913508 | O51: 0.004019601901 | P51: 0.004315932584 | Q51: 0.004342829966 | R51: 0 | S51: 0
B53: Calc | Step changes
C55: Step changes | D55: Source | E55: Unit | F55: Basis | J55: =IF(RIGHT(J$4,2)>=RIGHT('Input|General'!$G$11,2),IF(RIGHT(J$4,2)<=RIGHT('Input|General'!$G$12,2),J$4,""),"") ->  | K55: =IF(RIGHT(K$4,2)>=RIGHT('Input|General'!$G$11,2),IF(RIGHT(K$4,2)<=RIGHT('Input|General'!$G$12,2),K$4,""),"") ->  | L55: =IF(RIGHT(L$4,2)>=RIGHT('Input|General'!$G$11,2),IF(RIGHT(L$4,2)<=RIGHT('Input|General'!$G$12,2),L$4,""),"") ->  | M55: =IF(RIGHT(M$4,2)>=RIGHT('Input|General'!$G$11,2),IF(RIGHT(M$4,2)<=RIGHT('Input|General'!$G$12,2),M$4,""),"") -> 2017-18 | N55: =IF(RIGHT(N$4,2)>=RIGHT('Input|General'!$G$11,2),IF(RIGHT(N$4,2)<=RIGHT('Input|General'!$G$12,2),N$4,""),"") -> 2018-19 | O55: =IF(RIGHT(O$4,2)>=RIGHT('Input|General'!$G$11,2),IF(RIGHT(O$4,2)<=RIGHT('Input|General'!$G$12,2),O$4,""),"") -> 2019-20 | P55: =IF(RIGHT(P$4,2)>=RIGHT('Input|General'!$G$11,2),IF(RIGHT(P$4,2)<=RIGHT('Input|General'!$G$12,2),P$4,""),"") -> 2020-21 | Q55: =IF(RIGHT(Q$4,2)>=RIGHT('Input|General'!$G$11,2),IF(RIGHT(Q$4,2)<=RIGHT('Input|General'!$G$12,2),Q$4,""),"") -> 2021-22 | R55: =IF(RIGHT(R$4,2)>=RIGHT('Input|General'!$G$11,2),IF(RIGHT(R$4,2)<=RIGHT('Input|General'!$G$12,2),R$4,""),"") ->  | S55: =IF(RIGHT(S$4,2)>=RIGHT('Input|General'!$G$11,2),IF(RIGHT(S$4,2)<=RIGHT('Input|General'!$G$12,2),S$4,""),"") -> 
C57: ='Input|Step changes'!C12 -> Synchronous condenser decommissioning | D57: Calculated | E57: =$E$8 -> $millions | F57: =$F$8 -> 2016-17 | J57: ='Input|Step changes'!J12*IF('Input|Step changes'!$F12="nominal",LOOKUP($F57,Nominal_to_Real,'Input|Rate of change'!N$23:N$26),INDEX('Input|Rate of change'!$C$14:$O$19,MATCH('Input|Step changes'!$F12,'Input|Rate of change'!$C$14:$C$19,0),MATCH('Calc|Opex forecast'!$F57,'Input|Rate of change'!$C$14:$O$14,0)))*IF('Input|Step changes'!$E12="$millions",1000000,IF('Input|Step changes'!$E12="$000",1000,1))/IF($E57="$millions",1000000,IF($E57="$000",1000,1)) -> 0 | K57: ='Input|Step changes'!K12*IF('Input|Step changes'!$F12="nominal",LOOKUP($F57,Nominal_to_Real,'Input|Rate of change'!O$23:O$26),INDEX('Input|Rate of change'!$C$14:$O$19,MATCH('Input|Step changes'!$F12,'Input|Rate of change'!$C$14:$C$19,0),MATCH('Calc|Opex forecast'!$F57,'Input|Rate of change'!$C$14:$O$14,0)))*IF('Input|Step changes'!$E12="$millions",1000000,IF('Input|Step changes'!$E12="$000",1000,1))/IF($E57="$millions",1000000,IF($E57="$000",1000,1)) -> 0 | L57: ='Input|Step changes'!L12*IF('Input|Step changes'!$F12="nominal",LOOKUP($F57,Nominal_to_Real,'Input|Rate of change'!P$23:P$26),INDEX('Input|Rate of change'!$C$14:$O$19,MATCH('Input|Step changes'!$F12,'Input|Rate of change'!$C$14:$C$19,0),MATCH('Calc|Opex forecast'!$F57,'Input|Rate of change'!$C$14:$O$14,0)))*IF('Input|Step changes'!$E12="$millions",1000000,IF('Input|Step changes'!$E12="$000",1000,1))/IF($E57="$millions",1000000,IF($E57="$000",1000,1)) -> 0 | M57: ='Input|Step changes'!M12*IF('Input|Step changes'!$F12="nominal",LOOKUP($F57,Nominal_to_Real,'Input|Rate of change'!Q$23:Q$26),INDEX('Input|Rate of change'!$C$14:$O$19,MATCH('Input|Step changes'!$F12,'Input|Rate of change'!$C$14:$C$19,0),MATCH('Calc|Opex forecast'!$F57,'Input|Rate of change'!$C$14:$O$14,0)))*IF('Input|Step changes'!$E12="$millions",1000000,IF('Input|Step changes'!$E12="$000",1000,1))/IF($E57="$millions",1000000,IF($E57="$000",1000,1)) -> 0 | N57: ='Input|Step changes'!N12*IF('Input|Step changes'!$F12="nominal",LOOKUP($F57,Nominal_to_Real,'Input|Rate of change'!R$23:R$26),INDEX('Input|Rate of change'!$C$14:$O$19,MATCH('Input|Step changes'!$F12,'Input|Rate of change'!$C$14:$C$19,0),MATCH('Calc|Opex forecast'!$F57,'Input|Rate of change'!$C$14:$O$14,0)))*IF('Input|Step changes'!$E12="$millions",1000000,IF('Input|Step changes'!$E12="$000",1000,1))/IF($E57="$millions",1000000,IF($E57="$000",1000,1)) -> 0 | O57: ='Input|Step changes'!O12*IF('Input|Step changes'!$F12="nominal",LOOKUP($F57,Nominal_to_Real,'Input|Rate of change'!S$23:S$26),INDEX('Input|Rate of change'!$C$14:$O$19,MATCH('Input|Step changes'!$F12,'Input|Rate of change'!$C$14:$C$19,0),MATCH('Calc|Opex forecast'!$F57,'Input|Rate of change'!$C$14:$O$14,0)))*IF('Input|Step changes'!$E12="$millions",1000000,IF('Input|Step changes'!$E12="$000",1000,1))/IF($E57="$millions",1000000,IF($E57="$000",1000,1)) -> 0 | P57: ='Input|Step changes'!P12*IF('Input|Step changes'!$F12="nominal",LOOKUP($F57,Nominal_to_Real,'Input|Rate of change'!T$23:T$26),INDEX('Input|Rate of change'!$C$14:$O$19,MATCH('Input|Step changes'!$F12,'Input|Rate of change'!$C$14:$C$19,0),MATCH('Calc|Opex forecast'!$F57,'Input|Rate of change'!$C$14:$O$14,0)))*IF('Input|Step changes'!$E12="$millions",1000000,IF('Input|Step changes'!$E12="$000",1000,1))/IF($E57="$millions",1000000,IF($E57="$000",1000,1)) -> 0 | Q57: ='Input|Step changes'!Q12*IF('Input|Step changes'!$F12="nominal",LOOKUP($F57,Nominal_to_Real,'Input|Rate of change'!U$23:U$26),INDEX('Input|Rate of change'!$C$14:$O$19,MATCH('Input|Step changes'!$F12,'Input|Rate of change'!$C$14:$C$19,0),MATCH('Calc|Opex forecast'!$F57,'Input|Rate of change'!$C$14:$O$14,0)))*IF('Input|Step changes'!$E12="$millions",1000000,IF('Input|Step changes'!$E12="$000",1000,1))/IF($E57="$millions",1000000,IF($E57="$000",1000,1)) -> 0 | R57: ='Input|Step changes'!R12*IF('Input|Step changes'!$F12="nominal",LOOKUP($F57,Nominal_to_Real,'Input|Rate of change'!V$23:V$26),INDEX('Input|Rate of change'!$C$14:$O$19,MATCH('Input|Step changes'!$F12,'Input|Rate of change'!$C$14:$C$19,0),MATCH('Calc|Opex forecast'!$F57,'Input|Rate of change'!$C$14:$O$14,0)))*IF('Input|Step changes'!$E12="$millions",1000000,IF('Input|Step changes'!$E12="$000",1000,1))/IF($E57="$millions",1000000,IF($E57="$000",1000,1)) -> 0 | S57: ='Input|Step changes'!S12*IF('Input|Step changes'!$F12="nominal",LOOKUP($F57,Nominal_to_Real,'Input|Rate of change'!W$23:W$26),INDEX('Input|Rate of change'!$C$14:$O$19,MATCH('Input|Step changes'!$F12,'Input|Rate of change'!$C$14:$C$19,0),MATCH('Calc|Opex forecast'!$F57,'Input|Rate of change'!$C$14:$O$14,0)))*IF('Input|Step changes'!$E12="$millions",1000000,IF('Input|Step changes'!$E12="$000",1000,1))/IF($E57="$millions",1000000,IF($E57="$000",1000,1)) -> 0
C58: ='Input|Step changes'!C13 -> SAIP roll out | D58: Calculated | E58: $millions | F58: =$F$8 -> 2016-17 | J58: ='Input|Step changes'!J13*IF('Input|Step changes'!$F13="nominal",LOOKUP($F58,Nominal_to_Real,'Input|Rate of change'!N$23:N$26),INDEX('Input|Rate of change'!$C$14:$O$19,MATCH('Input|Step changes'!$F13,'Input|Rate of change'!$C$14:$C$19,0),MATCH('Calc|Opex forecast'!$F58,'Input|Rate of change'!$C$14:$O$14,0)))*IF('Input|Step changes'!$E13="$millions",1000000,IF('Input|Step changes'!$E13="$000",1000,1))/IF($E58="$millions",1000000,IF($E58="$000",1000,1)) -> 0 | K58: ='Input|Step changes'!K13*IF('Input|Step changes'!$F13="nominal",LOOKUP($F58,Nominal_to_Real,'Input|Rate of change'!O$23:O$26),INDEX('Input|Rate of change'!$C$14:$O$19,MATCH('Input|Step changes'!$F13,'Input|Rate of change'!$C$14:$C$19,0),MATCH('Calc|Opex forecast'!$F58,'Input|Rate of change'!$C$14:$O$14,0)))*IF('Input|Step changes'!$E13="$millions",1000000,IF('Input|Step changes'!$E13="$000",1000,1))/IF($E58="$millions",1000000,IF($E58="$000",1000,1)) -> 0 | L58: ='Input|Step changes'!L13*IF('Input|Step changes'!$F13="nominal",LOOKUP($F58,Nominal_to_Real,'Input|Rate of change'!P$23:P$26),INDEX('Input|Rate of change'!$C$14:$O$19,MATCH('Input|Step changes'!$F13,'Input|Rate of change'!$C$14:$C$19,0),MATCH('Calc|Opex forecast'!$F58,'Input|Rate of change'!$C$14:$O$14,0)))*IF('Input|Step changes'!$E13="$millions",1000000,IF('Input|Step changes'!$E13="$000",1000,1))/IF($E58="$millions",1000000,IF($E58="$000",1000,1)) -> 0 | M58: ='Input|Step changes'!M13*IF('Input|Step changes'!$F13="nominal",LOOKUP($F58,Nominal_to_Real,'Input|Rate of change'!Q$23:Q$26),INDEX('Input|Rate of change'!$C$14:$O$19,MATCH('Input|Step changes'!$F13,'Input|Rate of change'!$C$14:$C$19,0),MATCH('Calc|Opex forecast'!$F58,'Input|Rate of change'!$C$14:$O$14,0)))*IF('Input|Step changes'!$E13="$millions",1000000,IF('Input|Step changes'!$E13="$000",1000,1))/IF($E58="$millions",1000000,IF($E58="$000",1000,1)) -> 0 | N58: ='Input|Step changes'!N13*IF('Input|Step changes'!$F13="nominal",LOOKUP($F58,Nominal_to_Real,'Input|Rate of change'!R$23:R$26),INDEX('Input|Rate of change'!$C$14:$O$19,MATCH('Input|Step changes'!$F13,'Input|Rate of change'!$C$14:$C$19,0),MATCH('Calc|Opex forecast'!$F58,'Input|Rate of change'!$C$14:$O$14,0)))*IF('Input|Step changes'!$E13="$millions",1000000,IF('Input|Step changes'!$E13="$000",1000,1))/IF($E58="$millions",1000000,IF($E58="$000",1000,1)) -> 0 | O58: ='Input|Step changes'!O13*IF('Input|Step changes'!$F13="nominal",LOOKUP($F58,Nominal_to_Real,'Input|Rate of change'!S$23:S$26),INDEX('Input|Rate of change'!$C$14:$O$19,MATCH('Input|Step changes'!$F13,'Input|Rate of change'!$C$14:$C$19,0),MATCH('Calc|Opex forecast'!$F58,'Input|Rate of change'!$C$14:$O$14,0)))*IF('Input|Step changes'!$E13="$millions",1000000,IF('Input|Step changes'!$E13="$000",1000,1))/IF($E58="$millions",1000000,IF($E58="$000",1000,1)) -> 0 | P58: ='Input|Step changes'!P13*IF('Input|Step changes'!$F13="nominal",LOOKUP($F58,Nominal_to_Real,'Input|Rate of change'!T$23:T$26),INDEX('Input|Rate of change'!$C$14:$O$19,MATCH('Input|Step changes'!$F13,'Input|Rate of change'!$C$14:$C$19,0),MATCH('Calc|Opex forecast'!$F58,'Input|Rate of change'!$C$14:$O$14,0)))*IF('Input|Step changes'!$E13="$millions",1000000,IF('Input|Step changes'!$E13="$000",1000,1))/IF($E58="$millions",1000000,IF($E58="$000",1000,1)) -> 0 | Q58: ='Input|Step changes'!Q13*IF('Input|Step changes'!$F13="nominal",LOOKUP($F58,Nominal_to_Real,'Input|Rate of change'!U$23:U$26),INDEX('Input|Rate of change'!$C$14:$O$19,MATCH('Input|Step changes'!$F13,'Input|Rate of change'!$C$14:$C$19,0),MATCH('Calc|Opex forecast'!$F58,'Input|Rate of change'!$C$14:$O$14,0)))*IF('Input|Step changes'!$E13="$millions",1000000,IF('Input|Step changes'!$E13="$000",1000,1))/IF($E58="$millions",1000000,IF($E58="$000",1000,1)) -> 0 | R58: ='Input|Step changes'!R13*IF('Input|Step changes'!$F13="nominal",LOOKUP($F58,Nominal_to_Real,'Input|Rate of change'!V$23:V$26),INDEX('Input|Rate of change'!$C$14:$O$19,MATCH('Input|Step changes'!$F13,'Input|Rate of change'!$C$14:$C$19,0),MATCH('Calc|Opex forecast'!$F58,'Input|Rate of change'!$C$14:$O$14,0)))*IF('Input|Step changes'!$E13="$millions",1000000,IF('Input|Step changes'!$E13="$000",1000,1))/IF($E58="$millions",1000000,IF($E58="$000",1000,1)) -> 0 | S58: ='Input|Step changes'!S13*IF('Input|Step changes'!$F13="nominal",LOOKUP($F58,Nominal_to_Real,'Input|Rate of change'!W$23:W$26),INDEX('Input|Rate of change'!$C$14:$O$19,MATCH('Input|Step changes'!$F13,'Input|Rate of change'!$C$14:$C$19,0),MATCH('Calc|Opex forecast'!$F58,'Input|Rate of change'!$C$14:$O$14,0)))*IF('Input|Step changes'!$E13="$millions",1000000,IF('Input|Step changes'!$E13="$000",1000,1))/IF($E58="$millions",1000000,IF($E58="$000",1000,1)) -> 0
C59: ='Input|Step changes'!C14 -> Establishment of IT security team | D59: Calculated | E59: $millions | F59: 2016-17 | J59: ='Input|Step changes'!J14*IF('Input|Step changes'!$F14="nominal",LOOKUP($F59,Nominal_to_Real,'Input|Rate of change'!N$23:N$26),INDEX('Input|Rate of change'!$C$14:$O$19,MATCH('Input|Step changes'!$F14,'Input|Rate of change'!$C$14:$C$19,0),MATCH('Calc|Opex forecast'!$F59,'Input|Rate of change'!$C$14:$O$14,0)))*IF('Input|Step changes'!$E14="$millions",1000000,IF('Input|Step changes'!$E14="$000",1000,1))/IF($E59="$millions",1000000,IF($E59="$000",1000,1)) -> 0 | K59: ='Input|Step changes'!K14*IF('Input|Step changes'!$F14="nominal",LOOKUP($F59,Nominal_to_Real,'Input|Rate of change'!O$23:O$26),INDEX('Input|Rate of change'!$C$14:$O$19,MATCH('Input|Step changes'!$F14,'Input|Rate of change'!$C$14:$C$19,0),MATCH('Calc|Opex forecast'!$F59,'Input|Rate of change'!$C$14:$O$14,0)))*IF('Input|Step changes'!$E14="$millions",1000000,IF('Input|Step changes'!$E14="$000",1000,1))/IF($E59="$millions",1000000,IF($E59="$000",1000,1)) -> 0 | L59: ='Input|Step changes'!L14*IF('Input|Step changes'!$F14="nominal",LOOKUP($F59,Nominal_to_Real,'Input|Rate of change'!P$23:P$26),INDEX('Input|Rate of change'!$C$14:$O$19,MATCH('Input|Step changes'!$F14,'Input|Rate of change'!$C$14:$C$19,0),MATCH('Calc|Opex forecast'!$F59,'Input|Rate of change'!$C$14:$O$14,0)))*IF('Input|Step changes'!$E14="$millions",1000000,IF('Input|Step changes'!$E14="$000",1000,1))/IF($E59="$millions",1000000,IF($E59="$000",1000,1)) -> 0 | M59: ='Input|Step changes'!M14*IF('Input|Step changes'!$F14="nominal",LOOKUP($F59,Nominal_to_Real,'Input|Rate of change'!Q$23:Q$26),INDEX('Input|Rate of change'!$C$14:$O$19,MATCH('Input|Step changes'!$F14,'Input|Rate of change'!$C$14:$C$19,0),MATCH('Calc|Opex forecast'!$F59,'Input|Rate of change'!$C$14:$O$14,0)))*IF('Input|Step changes'!$E14="$millions",1000000,IF('Input|Step changes'!$E14="$000",1000,1))/IF($E59="$millions",1000000,IF($E59="$000",1000,1)) -> 0 | N59: ='Input|Step changes'!N14*IF('Input|Step changes'!$F14="nominal",LOOKUP($F59,Nominal_to_Real,'Input|Rate of change'!R$23:R$26),INDEX('Input|Rate of change'!$C$14:$O$19,MATCH('Input|Step changes'!$F14,'Input|Rate of change'!$C$14:$C$19,0),MATCH('Calc|Opex forecast'!$F59,'Input|Rate of change'!$C$14:$O$14,0)))*IF('Input|Step changes'!$E14="$millions",1000000,IF('Input|Step changes'!$E14="$000",1000,1))/IF($E59="$millions",1000000,IF($E59="$000",1000,1)) -> 0 | O59: ='Input|Step changes'!O14*IF('Input|Step changes'!$F14="nominal",LOOKUP($F59,Nominal_to_Real,'Input|Rate of change'!S$23:S$26),INDEX('Input|Rate of change'!$C$14:$O$19,MATCH('Input|Step changes'!$F14,'Input|Rate of change'!$C$14:$C$19,0),MATCH('Calc|Opex forecast'!$F59,'Input|Rate of change'!$C$14:$O$14,0)))*IF('Input|Step changes'!$E14="$millions",1000000,IF('Input|Step changes'!$E14="$000",1000,1))/IF($E59="$millions",1000000,IF($E59="$000",1000,1)) -> 0 | P59: ='Input|Step changes'!P14*IF('Input|Step changes'!$F14="nominal",LOOKUP($F59,Nominal_to_Real,'Input|Rate of change'!T$23:T$26),INDEX('Input|Rate of change'!$C$14:$O$19,MATCH('Input|Step changes'!$F14,'Input|Rate of change'!$C$14:$C$19,0),MATCH('Calc|Opex forecast'!$F59,'Input|Rate of change'!$C$14:$O$14,0)))*IF('Input|Step changes'!$E14="$millions",1000000,IF('Input|Step changes'!$E14="$000",1000,1))/IF($E59="$millions",1000000,IF($E59="$000",1000,1)) -> 0 | Q59: ='Input|Step changes'!Q14*IF('Input|Step changes'!$F14="nominal",LOOKUP($F59,Nominal_to_Real,'Input|Rate of change'!U$23:U$26),INDEX('Input|Rate of change'!$C$14:$O$19,MATCH('Input|Step changes'!$F14,'Input|Rate of change'!$C$14:$C$19,0),MATCH('Calc|Opex forecast'!$F59,'Input|Rate of change'!$C$14:$O$14,0)))*IF('Input|Step changes'!$E14="$millions",1000000,IF('Input|Step changes'!$E14="$000",1000,1))/IF($E59="$millions",1000000,IF($E59="$000",1000,1)) -> 0 | R59: ='Input|Step changes'!R14*IF('Input|Step changes'!$F14="nominal",LOOKUP($F59,Nominal_to_Real,'Input|Rate of change'!V$23:V$26),INDEX('Input|Rate of change'!$C$14:$O$19,MATCH('Input|Step changes'!$F14,'Input|Rate of change'!$C$14:$C$19,0),MATCH('Calc|Opex forecast'!$F59,'Input|Rate of change'!$C$14:$O$14,0)))*IF('Input|Step changes'!$E14="$millions",1000000,IF('Input|Step changes'!$E14="$000",1000,1))/IF($E59="$millions",1000000,IF($E59="$000",1000,1)) -> 0 | S59: ='Input|Step changes'!S14*IF('Input|Step changes'!$F14="nominal",LOOKUP($F59,Nominal_to_Real,'Input|Rate of change'!W$23:W$26),INDEX('Input|Rate of change'!$C$14:$O$19,MATCH('Input|Step changes'!$F14,'Input|Rate of change'!$C$14:$C$19,0),MATCH('Calc|Opex forecast'!$F59,'Input|Rate of change'!$C$14:$O$14,0)))*IF('Input|Step changes'!$E14="$millions",1000000,IF('Input|Step changes'!$E14="$000",1000,1))/IF($E59="$millions",1000000,IF($E59="$000",1000,1)) -> 0
C60: ='Input|Step changes'!C15 -> New emergency response arrangements | D60: Calculated | E60: $millions | F60: 2016-17 | J60: ='Input|Step changes'!J15*IF('Input|Step changes'!$F15="nominal",LOOKUP($F60,Nominal_to_Real,'Input|Rate of change'!N$23:N$26),INDEX('Input|Rate of change'!$C$14:$O$19,MATCH('Input|Step changes'!$F15,'Input|Rate of change'!$C$14:$C$19,0),MATCH('Calc|Opex forecast'!$F60,'Input|Rate of change'!$C$14:$O$14,0)))*IF('Input|Step changes'!$E15="$millions",1000000,IF('Input|Step changes'!$E15="$000",1000,1))/IF($E60="$millions",1000000,IF($E60="$000",1000,1)) -> 0 | K60: ='Input|Step changes'!K15*IF('Input|Step changes'!$F15="nominal",LOOKUP($F60,Nominal_to_Real,'Input|Rate of change'!O$23:O$26),INDEX('Input|Rate of change'!$C$14:$O$19,MATCH('Input|Step changes'!$F15,'Input|Rate of change'!$C$14:$C$19,0),MATCH('Calc|Opex forecast'!$F60,'Input|Rate of change'!$C$14:$O$14,0)))*IF('Input|Step changes'!$E15="$millions",1000000,IF('Input|Step changes'!$E15="$000",1000,1))/IF($E60="$millions",1000000,IF($E60="$000",1000,1)) -> 0 | L60: ='Input|Step changes'!L15*IF('Input|Step changes'!$F15="nominal",LOOKUP($F60,Nominal_to_Real,'Input|Rate of change'!P$23:P$26),INDEX('Input|Rate of change'!$C$14:$O$19,MATCH('Input|Step changes'!$F15,'Input|Rate of change'!$C$14:$C$19,0),MATCH('Calc|Opex forecast'!$F60,'Input|Rate of change'!$C$14:$O$14,0)))*IF('Input|Step changes'!$E15="$millions",1000000,IF('Input|Step changes'!$E15="$000",1000,1))/IF($E60="$millions",1000000,IF($E60="$000",1000,1)) -> 0 | M60: ='Input|Step changes'!M15*IF('Input|Step changes'!$F15="nominal",LOOKUP($F60,Nominal_to_Real,'Input|Rate of change'!Q$23:Q$26),INDEX('Input|Rate of change'!$C$14:$O$19,MATCH('Input|Step changes'!$F15,'Input|Rate of change'!$C$14:$C$19,0),MATCH('Calc|Opex forecast'!$F60,'Input|Rate of change'!$C$14:$O$14,0)))*IF('Input|Step changes'!$E15="$millions",1000000,IF('Input|Step changes'!$E15="$000",1000,1))/IF($E60="$millions",1000000,IF($E60="$000",1000,1)) -> 0 | N60: ='Input|Step changes'!N15*IF('Input|Step changes'!$F15="nominal",LOOKUP($F60,Nominal_to_Real,'Input|Rate of change'!R$23:R$26),INDEX('Input|Rate of change'!$C$14:$O$19,MATCH('Input|Step changes'!$F15,'Input|Rate of change'!$C$14:$C$19,0),MATCH('Calc|Opex forecast'!$F60,'Input|Rate of change'!$C$14:$O$14,0)))*IF('Input|Step changes'!$E15="$millions",1000000,IF('Input|Step changes'!$E15="$000",1000,1))/IF($E60="$millions",1000000,IF($E60="$000",1000,1)) -> 0 | O60: ='Input|Step changes'!O15*IF('Input|Step changes'!$F15="nominal",LOOKUP($F60,Nominal_to_Real,'Input|Rate of change'!S$23:S$26),INDEX('Input|Rate of change'!$C$14:$O$19,MATCH('Input|Step changes'!$F15,'Input|Rate of change'!$C$14:$C$19,0),MATCH('Calc|Opex forecast'!$F60,'Input|Rate of change'!$C$14:$O$14,0)))*IF('Input|Step changes'!$E15="$millions",1000000,IF('Input|Step changes'!$E15="$000",1000,1))/IF($E60="$millions",1000000,IF($E60="$000",1000,1)) -> 0 | P60: ='Input|Step changes'!P15*IF('Input|Step changes'!$F15="nominal",LOOKUP($F60,Nominal_to_Real,'Input|Rate of change'!T$23:T$26),INDEX('Input|Rate of change'!$C$14:$O$19,MATCH('Input|Step changes'!$F15,'Input|Rate of change'!$C$14:$C$19,0),MATCH('Calc|Opex forecast'!$F60,'Input|Rate of change'!$C$14:$O$14,0)))*IF('Input|Step changes'!$E15="$millions",1000000,IF('Input|Step changes'!$E15="$000",1000,1))/IF($E60="$millions",1000000,IF($E60="$000",1000,1)) -> 0 | Q60: ='Input|Step changes'!Q15*IF('Input|Step changes'!$F15="nominal",LOOKUP($F60,Nominal_to_Real,'Input|Rate of change'!U$23:U$26),INDEX('Input|Rate of change'!$C$14:$O$19,MATCH('Input|Step changes'!$F15,'Input|Rate of change'!$C$14:$C$19,0),MATCH('Calc|Opex forecast'!$F60,'Input|Rate of change'!$C$14:$O$14,0)))*IF('Input|Step changes'!$E15="$millions",1000000,IF('Input|Step changes'!$E15="$000",1000,1))/IF($E60="$millions",1000000,IF($E60="$000",1000,1)) -> 0 | R60: ='Input|Step changes'!R15*IF('Input|Step changes'!$F15="nominal",LOOKUP($F60,Nominal_to_Real,'Input|Rate of change'!V$23:V$26),INDEX('Input|Rate of change'!$C$14:$O$19,MATCH('Input|Step changes'!$F15,'Input|Rate of change'!$C$14:$C$19,0),MATCH('Calc|Opex forecast'!$F60,'Input|Rate of change'!$C$14:$O$14,0)))*IF('Input|Step changes'!$E15="$millions",1000000,IF('Input|Step changes'!$E15="$000",1000,1))/IF($E60="$millions",1000000,IF($E60="$000",1000,1)) -> 0 | S60: ='Input|Step changes'!S15*IF('Input|Step changes'!$F15="nominal",LOOKUP($F60,Nominal_to_Real,'Input|Rate of change'!W$23:W$26),INDEX('Input|Rate of change'!$C$14:$O$19,MATCH('Input|Step changes'!$F15,'Input|Rate of change'!$C$14:$C$19,0),MATCH('Calc|Opex forecast'!$F60,'Input|Rate of change'!$C$14:$O$14,0)))*IF('Input|Step changes'!$E15="$millions",1000000,IF('Input|Step changes'!$E15="$000",1000,1))/IF($E60="$millions",1000000,IF($E60="$000",1000,1)) -> 0
C61: ='Input|Step changes'!C16 -> WMTS mobile switchboard | D61: Calculated | E61: $millions | F61: 2016-17 | J61: ='Input|Step changes'!J16*IF('Input|Step changes'!$F16="nominal",LOOKUP($F61,Nominal_to_Real,'Input|Rate of change'!N$23:N$26),INDEX('Input|Rate of change'!$C$14:$O$19,MATCH('Input|Step changes'!$F16,'Input|Rate of change'!$C$14:$C$19,0),MATCH('Calc|Opex forecast'!$F61,'Input|Rate of change'!$C$14:$O$14,0)))*IF('Input|Step changes'!$E16="$millions",1000000,IF('Input|Step changes'!$E16="$000",1000,1))/IF($E61="$millions",1000000,IF($E61="$000",1000,1)) -> 0 | K61: ='Input|Step changes'!K16*IF('Input|Step changes'!$F16="nominal",LOOKUP($F61,Nominal_to_Real,'Input|Rate of change'!O$23:O$26),INDEX('Input|Rate of change'!$C$14:$O$19,MATCH('Input|Step changes'!$F16,'Input|Rate of change'!$C$14:$C$19,0),MATCH('Calc|Opex forecast'!$F61,'Input|Rate of change'!$C$14:$O$14,0)))*IF('Input|Step changes'!$E16="$millions",1000000,IF('Input|Step changes'!$E16="$000",1000,1))/IF($E61="$millions",1000000,IF($E61="$000",1000,1)) -> 0 | L61: ='Input|Step changes'!L16*IF('Input|Step changes'!$F16="nominal",LOOKUP($F61,Nominal_to_Real,'Input|Rate of change'!P$23:P$26),INDEX('Input|Rate of change'!$C$14:$O$19,MATCH('Input|Step changes'!$F16,'Input|Rate of change'!$C$14:$C$19,0),MATCH('Calc|Opex forecast'!$F61,'Input|Rate of change'!$C$14:$O$14,0)))*IF('Input|Step changes'!$E16="$millions",1000000,IF('Input|Step changes'!$E16="$000",1000,1))/IF($E61="$millions",1000000,IF($E61="$000",1000,1)) -> 0 | M61: ='Input|Step changes'!M16*IF('Input|Step changes'!$F16="nominal",LOOKUP($F61,Nominal_to_Real,'Input|Rate of change'!Q$23:Q$26),INDEX('Input|Rate of change'!$C$14:$O$19,MATCH('Input|Step changes'!$F16,'Input|Rate of change'!$C$14:$C$19,0),MATCH('Calc|Opex forecast'!$F61,'Input|Rate of change'!$C$14:$O$14,0)))*IF('Input|Step changes'!$E16="$millions",1000000,IF('Input|Step changes'!$E16="$000",1000,1))/IF($E61="$millions",1000000,IF($E61="$000",1000,1)) -> 0 | N61: ='Input|Step changes'!N16*IF('Input|Step changes'!$F16="nominal",LOOKUP($F61,Nominal_to_Real,'Input|Rate of change'!R$23:R$26),INDEX('Input|Rate of change'!$C$14:$O$19,MATCH('Input|Step changes'!$F16,'Input|Rate of change'!$C$14:$C$19,0),MATCH('Calc|Opex forecast'!$F61,'Input|Rate of change'!$C$14:$O$14,0)))*IF('Input|Step changes'!$E16="$millions",1000000,IF('Input|Step changes'!$E16="$000",1000,1))/IF($E61="$millions",1000000,IF($E61="$000",1000,1)) -> 0 | O61: ='Input|Step changes'!O16*IF('Input|Step changes'!$F16="nominal",LOOKUP($F61,Nominal_to_Real,'Input|Rate of change'!S$23:S$26),INDEX('Input|Rate of change'!$C$14:$O$19,MATCH('Input|Step changes'!$F16,'Input|Rate of change'!$C$14:$C$19,0),MATCH('Calc|Opex forecast'!$F61,'Input|Rate of change'!$C$14:$O$14,0)))*IF('Input|Step changes'!$E16="$millions",1000000,IF('Input|Step changes'!$E16="$000",1000,1))/IF($E61="$millions",1000000,IF($E61="$000",1000,1)) -> 0 | P61: ='Input|Step changes'!P16*IF('Input|Step changes'!$F16="nominal",LOOKUP($F61,Nominal_to_Real,'Input|Rate of change'!T$23:T$26),INDEX('Input|Rate of change'!$C$14:$O$19,MATCH('Input|Step changes'!$F16,'Input|Rate of change'!$C$14:$C$19,0),MATCH('Calc|Opex forecast'!$F61,'Input|Rate of change'!$C$14:$O$14,0)))*IF('Input|Step changes'!$E16="$millions",1000000,IF('Input|Step changes'!$E16="$000",1000,1))/IF($E61="$millions",1000000,IF($E61="$000",1000,1)) -> 0 | Q61: ='Input|Step changes'!Q16*IF('Input|Step changes'!$F16="nominal",LOOKUP($F61,Nominal_to_Real,'Input|Rate of change'!U$23:U$26),INDEX('Input|Rate of change'!$C$14:$O$19,MATCH('Input|Step changes'!$F16,'Input|Rate of change'!$C$14:$C$19,0),MATCH('Calc|Opex forecast'!$F61,'Input|Rate of change'!$C$14:$O$14,0)))*IF('Input|Step changes'!$E16="$millions",1000000,IF('Input|Step changes'!$E16="$000",1000,1))/IF($E61="$millions",1000000,IF($E61="$000",1000,1)) -> 0 | R61: ='Input|Step changes'!R16*IF('Input|Step changes'!$F16="nominal",LOOKUP($F61,Nominal_to_Real,'Input|Rate of change'!V$23:V$26),INDEX('Input|Rate of change'!$C$14:$O$19,MATCH('Input|Step changes'!$F16,'Input|Rate of change'!$C$14:$C$19,0),MATCH('Calc|Opex forecast'!$F61,'Input|Rate of change'!$C$14:$O$14,0)))*IF('Input|Step changes'!$E16="$millions",1000000,IF('Input|Step changes'!$E16="$000",1000,1))/IF($E61="$millions",1000000,IF($E61="$000",1000,1)) -> 0 | S61: ='Input|Step changes'!S16*IF('Input|Step changes'!$F16="nominal",LOOKUP($F61,Nominal_to_Real,'Input|Rate of change'!W$23:W$26),INDEX('Input|Rate of change'!$C$14:$O$19,MATCH('Input|Step changes'!$F16,'Input|Rate of change'!$C$14:$C$19,0),MATCH('Calc|Opex forecast'!$F61,'Input|Rate of change'!$C$14:$O$14,0)))*IF('Input|Step changes'!$E16="$millions",1000000,IF('Input|Step changes'!$E16="$000",1000,1))/IF($E61="$millions",1000000,IF($E61="$000",1000,1)) -> 0
C62: ='Input|Step changes'!C17 -> MPS decommissioning | D62: Calculated | E62: $millions | F62: 2016-17 | J62: ='Input|Step changes'!J17*IF('Input|Step changes'!$F17="nominal",LOOKUP($F62,Nominal_to_Real,'Input|Rate of change'!N$23:N$26),INDEX('Input|Rate of change'!$C$14:$O$19,MATCH('Input|Step changes'!$F17,'Input|Rate of change'!$C$14:$C$19,0),MATCH('Calc|Opex forecast'!$F62,'Input|Rate of change'!$C$14:$O$14,0)))*IF('Input|Step changes'!$E17="$millions",1000000,IF('Input|Step changes'!$E17="$000",1000,1))/IF($E62="$millions",1000000,IF($E62="$000",1000,1)) -> 0 | K62: ='Input|Step changes'!K17*IF('Input|Step changes'!$F17="nominal",LOOKUP($F62,Nominal_to_Real,'Input|Rate of change'!O$23:O$26),INDEX('Input|Rate of change'!$C$14:$O$19,MATCH('Input|Step changes'!$F17,'Input|Rate of change'!$C$14:$C$19,0),MATCH('Calc|Opex forecast'!$F62,'Input|Rate of change'!$C$14:$O$14,0)))*IF('Input|Step changes'!$E17="$millions",1000000,IF('Input|Step changes'!$E17="$000",1000,1))/IF($E62="$millions",1000000,IF($E62="$000",1000,1)) -> 0 | L62: ='Input|Step changes'!L17*IF('Input|Step changes'!$F17="nominal",LOOKUP($F62,Nominal_to_Real,'Input|Rate of change'!P$23:P$26),INDEX('Input|Rate of change'!$C$14:$O$19,MATCH('Input|Step changes'!$F17,'Input|Rate of change'!$C$14:$C$19,0),MATCH('Calc|Opex forecast'!$F62,'Input|Rate of change'!$C$14:$O$14,0)))*IF('Input|Step changes'!$E17="$millions",1000000,IF('Input|Step changes'!$E17="$000",1000,1))/IF($E62="$millions",1000000,IF($E62="$000",1000,1)) -> 0 | M62: ='Input|Step changes'!M17*IF('Input|Step changes'!$F17="nominal",LOOKUP($F62,Nominal_to_Real,'Input|Rate of change'!Q$23:Q$26),INDEX('Input|Rate of change'!$C$14:$O$19,MATCH('Input|Step changes'!$F17,'Input|Rate of change'!$C$14:$C$19,0),MATCH('Calc|Opex forecast'!$F62,'Input|Rate of change'!$C$14:$O$14,0)))*IF('Input|Step changes'!$E17="$millions",1000000,IF('Input|Step changes'!$E17="$000",1000,1))/IF($E62="$millions",1000000,IF($E62="$000",1000,1)) -> 0 | N62: ='Input|Step changes'!N17*IF('Input|Step changes'!$F17="nominal",LOOKUP($F62,Nominal_to_Real,'Input|Rate of change'!R$23:R$26),INDEX('Input|Rate of change'!$C$14:$O$19,MATCH('Input|Step changes'!$F17,'Input|Rate of change'!$C$14:$C$19,0),MATCH('Calc|Opex forecast'!$F62,'Input|Rate of change'!$C$14:$O$14,0)))*IF('Input|Step changes'!$E17="$millions",1000000,IF('Input|Step changes'!$E17="$000",1000,1))/IF($E62="$millions",1000000,IF($E62="$000",1000,1)) -> 0 | O62: ='Input|Step changes'!O17*IF('Input|Step changes'!$F17="nominal",LOOKUP($F62,Nominal_to_Real,'Input|Rate of change'!S$23:S$26),INDEX('Input|Rate of change'!$C$14:$O$19,MATCH('Input|Step changes'!$F17,'Input|Rate of change'!$C$14:$C$19,0),MATCH('Calc|Opex forecast'!$F62,'Input|Rate of change'!$C$14:$O$14,0)))*IF('Input|Step changes'!$E17="$millions",1000000,IF('Input|Step changes'!$E17="$000",1000,1))/IF($E62="$millions",1000000,IF($E62="$000",1000,1)) -> 0 | P62: ='Input|Step changes'!P17*IF('Input|Step changes'!$F17="nominal",LOOKUP($F62,Nominal_to_Real,'Input|Rate of change'!T$23:T$26),INDEX('Input|Rate of change'!$C$14:$O$19,MATCH('Input|Step changes'!$F17,'Input|Rate of change'!$C$14:$C$19,0),MATCH('Calc|Opex forecast'!$F62,'Input|Rate of change'!$C$14:$O$14,0)))*IF('Input|Step changes'!$E17="$millions",1000000,IF('Input|Step changes'!$E17="$000",1000,1))/IF($E62="$millions",1000000,IF($E62="$000",1000,1)) -> 0 | Q62: ='Input|Step changes'!Q17*IF('Input|Step changes'!$F17="nominal",LOOKUP($F62,Nominal_to_Real,'Input|Rate of change'!U$23:U$26),INDEX('Input|Rate of change'!$C$14:$O$19,MATCH('Input|Step changes'!$F17,'Input|Rate of change'!$C$14:$C$19,0),MATCH('Calc|Opex forecast'!$F62,'Input|Rate of change'!$C$14:$O$14,0)))*IF('Input|Step changes'!$E17="$millions",1000000,IF('Input|Step changes'!$E17="$000",1000,1))/IF($E62="$millions",1000000,IF($E62="$000",1000,1)) -> 0 | R62: ='Input|Step changes'!R17*IF('Input|Step changes'!$F17="nominal",LOOKUP($F62,Nominal_to_Real,'Input|Rate of change'!V$23:V$26),INDEX('Input|Rate of change'!$C$14:$O$19,MATCH('Input|Step changes'!$F17,'Input|Rate of change'!$C$14:$C$19,0),MATCH('Calc|Opex forecast'!$F62,'Input|Rate of change'!$C$14:$O$14,0)))*IF('Input|Step changes'!$E17="$millions",1000000,IF('Input|Step changes'!$E17="$000",1000,1))/IF($E62="$millions",1000000,IF($E62="$000",1000,1)) -> 0 | S62: ='Input|Step changes'!S17*IF('Input|Step changes'!$F17="nominal",LOOKUP($F62,Nominal_to_Real,'Input|Rate of change'!W$23:W$26),INDEX('Input|Rate of change'!$C$14:$O$19,MATCH('Input|Step changes'!$F17,'Input|Rate of change'!$C$14:$C$19,0),MATCH('Calc|Opex forecast'!$F62,'Input|Rate of change'!$C$14:$O$14,0)))*IF('Input|Step changes'!$E17="$millions",1000000,IF('Input|Step changes'!$E17="$000",1000,1))/IF($E62="$millions",1000000,IF($E62="$000",1000,1)) -> 0
C63: ='Input|Step changes'!C18 -> 0 | D63: Calculated | E63: $millions | F63: 2016-17 | J63: ='Input|Step changes'!J18*IF('Input|Step changes'!$F18="nominal",LOOKUP($F63,Nominal_to_Real,'Input|Rate of change'!N$23:N$26),INDEX('Input|Rate of change'!$C$14:$O$19,MATCH('Input|Step changes'!$F18,'Input|Rate of change'!$C$14:$C$19,0),MATCH('Calc|Opex forecast'!$F63,'Input|Rate of change'!$C$14:$O$14,0)))*IF('Input|Step changes'!$E18="$millions",1000000,IF('Input|Step changes'!$E18="$000",1000,1))/IF($E63="$millions",1000000,IF($E63="$000",1000,1)) -> 0 | K63: ='Input|Step changes'!K18*IF('Input|Step changes'!$F18="nominal",LOOKUP($F63,Nominal_to_Real,'Input|Rate of change'!O$23:O$26),INDEX('Input|Rate of change'!$C$14:$O$19,MATCH('Input|Step changes'!$F18,'Input|Rate of change'!$C$14:$C$19,0),MATCH('Calc|Opex forecast'!$F63,'Input|Rate of change'!$C$14:$O$14,0)))*IF('Input|Step changes'!$E18="$millions",1000000,IF('Input|Step changes'!$E18="$000",1000,1))/IF($E63="$millions",1000000,IF($E63="$000",1000,1)) -> 0 | L63: ='Input|Step changes'!L18*IF('Input|Step changes'!$F18="nominal",LOOKUP($F63,Nominal_to_Real,'Input|Rate of change'!P$23:P$26),INDEX('Input|Rate of change'!$C$14:$O$19,MATCH('Input|Step changes'!$F18,'Input|Rate of change'!$C$14:$C$19,0),MATCH('Calc|Opex forecast'!$F63,'Input|Rate of change'!$C$14:$O$14,0)))*IF('Input|Step changes'!$E18="$millions",1000000,IF('Input|Step changes'!$E18="$000",1000,1))/IF($E63="$millions",1000000,IF($E63="$000",1000,1)) -> 0 | M63: ='Input|Step changes'!M18*IF('Input|Step changes'!$F18="nominal",LOOKUP($F63,Nominal_to_Real,'Input|Rate of change'!Q$23:Q$26),INDEX('Input|Rate of change'!$C$14:$O$19,MATCH('Input|Step changes'!$F18,'Input|Rate of change'!$C$14:$C$19,0),MATCH('Calc|Opex forecast'!$F63,'Input|Rate of change'!$C$14:$O$14,0)))*IF('Input|Step changes'!$E18="$millions",1000000,IF('Input|Step changes'!$E18="$000",1000,1))/IF($E63="$millions",1000000,IF($E63="$000",1000,1)) -> 0 | N63: ='Input|Step changes'!N18*IF('Input|Step changes'!$F18="nominal",LOOKUP($F63,Nominal_to_Real,'Input|Rate of change'!R$23:R$26),INDEX('Input|Rate of change'!$C$14:$O$19,MATCH('Input|Step changes'!$F18,'Input|Rate of change'!$C$14:$C$19,0),MATCH('Calc|Opex forecast'!$F63,'Input|Rate of change'!$C$14:$O$14,0)))*IF('Input|Step changes'!$E18="$millions",1000000,IF('Input|Step changes'!$E18="$000",1000,1))/IF($E63="$millions",1000000,IF($E63="$000",1000,1)) -> 0 | O63: ='Input|Step changes'!O18*IF('Input|Step changes'!$F18="nominal",LOOKUP($F63,Nominal_to_Real,'Input|Rate of change'!S$23:S$26),INDEX('Input|Rate of change'!$C$14:$O$19,MATCH('Input|Step changes'!$F18,'Input|Rate of change'!$C$14:$C$19,0),MATCH('Calc|Opex forecast'!$F63,'Input|Rate of change'!$C$14:$O$14,0)))*IF('Input|Step changes'!$E18="$millions",1000000,IF('Input|Step changes'!$E18="$000",1000,1))/IF($E63="$millions",1000000,IF($E63="$000",1000,1)) -> 0 | P63: ='Input|Step changes'!P18*IF('Input|Step changes'!$F18="nominal",LOOKUP($F63,Nominal_to_Real,'Input|Rate of change'!T$23:T$26),INDEX('Input|Rate of change'!$C$14:$O$19,MATCH('Input|Step changes'!$F18,'Input|Rate of change'!$C$14:$C$19,0),MATCH('Calc|Opex forecast'!$F63,'Input|Rate of change'!$C$14:$O$14,0)))*IF('Input|Step changes'!$E18="$millions",1000000,IF('Input|Step changes'!$E18="$000",1000,1))/IF($E63="$millions",1000000,IF($E63="$000",1000,1)) -> 0 | Q63: ='Input|Step changes'!Q18*IF('Input|Step changes'!$F18="nominal",LOOKUP($F63,Nominal_to_Real,'Input|Rate of change'!U$23:U$26),INDEX('Input|Rate of change'!$C$14:$O$19,MATCH('Input|Step changes'!$F18,'Input|Rate of change'!$C$14:$C$19,0),MATCH('Calc|Opex forecast'!$F63,'Input|Rate of change'!$C$14:$O$14,0)))*IF('Input|Step changes'!$E18="$millions",1000000,IF('Input|Step changes'!$E18="$000",1000,1))/IF($E63="$millions",1000000,IF($E63="$000",1000,1)) -> 0 | R63: ='Input|Step changes'!R18*IF('Input|Step changes'!$F18="nominal",LOOKUP($F63,Nominal_to_Real,'Input|Rate of change'!V$23:V$26),INDEX('Input|Rate of change'!$C$14:$O$19,MATCH('Input|Step changes'!$F18,'Input|Rate of change'!$C$14:$C$19,0),MATCH('Calc|Opex forecast'!$F63,'Input|Rate of change'!$C$14:$O$14,0)))*IF('Input|Step changes'!$E18="$millions",1000000,IF('Input|Step changes'!$E18="$000",1000,1))/IF($E63="$millions",1000000,IF($E63="$000",1000,1)) -> 0 | S63: ='Input|Step changes'!S18*IF('Input|Step changes'!$F18="nominal",LOOKUP($F63,Nominal_to_Real,'Input|Rate of change'!W$23:W$26),INDEX('Input|Rate of change'!$C$14:$O$19,MATCH('Input|Step changes'!$F18,'Input|Rate of change'!$C$14:$C$19,0),MATCH('Calc|Opex forecast'!$F63,'Input|Rate of change'!$C$14:$O$14,0)))*IF('Input|Step changes'!$E18="$millions",1000000,IF('Input|Step changes'!$E18="$000",1000,1))/IF($E63="$millions",1000000,IF($E63="$000",1000,1)) -> 0
C64: ='Input|Step changes'!C19 -> 0 | D64: Calculated | E64: $millions | F64: 2016-17 | J64: ='Input|Step changes'!J19*IF('Input|Step changes'!$F19="nominal",LOOKUP($F64,Nominal_to_Real,'Input|Rate of change'!N$23:N$26),INDEX('Input|Rate of change'!$C$14:$O$19,MATCH('Input|Step changes'!$F19,'Input|Rate of change'!$C$14:$C$19,0),MATCH('Calc|Opex forecast'!$F64,'Input|Rate of change'!$C$14:$O$14,0)))*IF('Input|Step changes'!$E19="$millions",1000000,IF('Input|Step changes'!$E19="$000",1000,1))/IF($E64="$millions",1000000,IF($E64="$000",1000,1)) -> 0 | K64: ='Input|Step changes'!K19*IF('Input|Step changes'!$F19="nominal",LOOKUP($F64,Nominal_to_Real,'Input|Rate of change'!O$23:O$26),INDEX('Input|Rate of change'!$C$14:$O$19,MATCH('Input|Step changes'!$F19,'Input|Rate of change'!$C$14:$C$19,0),MATCH('Calc|Opex forecast'!$F64,'Input|Rate of change'!$C$14:$O$14,0)))*IF('Input|Step changes'!$E19="$millions",1000000,IF('Input|Step changes'!$E19="$000",1000,1))/IF($E64="$millions",1000000,IF($E64="$000",1000,1)) -> 0 | L64: ='Input|Step changes'!L19*IF('Input|Step changes'!$F19="nominal",LOOKUP($F64,Nominal_to_Real,'Input|Rate of change'!P$23:P$26),INDEX('Input|Rate of change'!$C$14:$O$19,MATCH('Input|Step changes'!$F19,'Input|Rate of change'!$C$14:$C$19,0),MATCH('Calc|Opex forecast'!$F64,'Input|Rate of change'!$C$14:$O$14,0)))*IF('Input|Step changes'!$E19="$millions",1000000,IF('Input|Step changes'!$E19="$000",1000,1))/IF($E64="$millions",1000000,IF($E64="$000",1000,1)) -> 0 | M64: ='Input|Step changes'!M19*IF('Input|Step changes'!$F19="nominal",LOOKUP($F64,Nominal_to_Real,'Input|Rate of change'!Q$23:Q$26),INDEX('Input|Rate of change'!$C$14:$O$19,MATCH('Input|Step changes'!$F19,'Input|Rate of change'!$C$14:$C$19,0),MATCH('Calc|Opex forecast'!$F64,'Input|Rate of change'!$C$14:$O$14,0)))*IF('Input|Step changes'!$E19="$millions",1000000,IF('Input|Step changes'!$E19="$000",1000,1))/IF($E64="$millions",1000000,IF($E64="$000",1000,1)) -> 0 | N64: ='Input|Step changes'!N19*IF('Input|Step changes'!$F19="nominal",LOOKUP($F64,Nominal_to_Real,'Input|Rate of change'!R$23:R$26),INDEX('Input|Rate of change'!$C$14:$O$19,MATCH('Input|Step changes'!$F19,'Input|Rate of change'!$C$14:$C$19,0),MATCH('Calc|Opex forecast'!$F64,'Input|Rate of change'!$C$14:$O$14,0)))*IF('Input|Step changes'!$E19="$millions",1000000,IF('Input|Step changes'!$E19="$000",1000,1))/IF($E64="$millions",1000000,IF($E64="$000",1000,1)) -> 0 | O64: ='Input|Step changes'!O19*IF('Input|Step changes'!$F19="nominal",LOOKUP($F64,Nominal_to_Real,'Input|Rate of change'!S$23:S$26),INDEX('Input|Rate of change'!$C$14:$O$19,MATCH('Input|Step changes'!$F19,'Input|Rate of change'!$C$14:$C$19,0),MATCH('Calc|Opex forecast'!$F64,'Input|Rate of change'!$C$14:$O$14,0)))*IF('Input|Step changes'!$E19="$millions",1000000,IF('Input|Step changes'!$E19="$000",1000,1))/IF($E64="$millions",1000000,IF($E64="$000",1000,1)) -> 0 | P64: ='Input|Step changes'!P19*IF('Input|Step changes'!$F19="nominal",LOOKUP($F64,Nominal_to_Real,'Input|Rate of change'!T$23:T$26),INDEX('Input|Rate of change'!$C$14:$O$19,MATCH('Input|Step changes'!$F19,'Input|Rate of change'!$C$14:$C$19,0),MATCH('Calc|Opex forecast'!$F64,'Input|Rate of change'!$C$14:$O$14,0)))*IF('Input|Step changes'!$E19="$millions",1000000,IF('Input|Step changes'!$E19="$000",1000,1))/IF($E64="$millions",1000000,IF($E64="$000",1000,1)) -> 0 | Q64: ='Input|Step changes'!Q19*IF('Input|Step changes'!$F19="nominal",LOOKUP($F64,Nominal_to_Real,'Input|Rate of change'!U$23:U$26),INDEX('Input|Rate of change'!$C$14:$O$19,MATCH('Input|Step changes'!$F19,'Input|Rate of change'!$C$14:$C$19,0),MATCH('Calc|Opex forecast'!$F64,'Input|Rate of change'!$C$14:$O$14,0)))*IF('Input|Step changes'!$E19="$millions",1000000,IF('Input|Step changes'!$E19="$000",1000,1))/IF($E64="$millions",1000000,IF($E64="$000",1000,1)) -> 0 | R64: ='Input|Step changes'!R19*IF('Input|Step changes'!$F19="nominal",LOOKUP($F64,Nominal_to_Real,'Input|Rate of change'!V$23:V$26),INDEX('Input|Rate of change'!$C$14:$O$19,MATCH('Input|Step changes'!$F19,'Input|Rate of change'!$C$14:$C$19,0),MATCH('Calc|Opex forecast'!$F64,'Input|Rate of change'!$C$14:$O$14,0)))*IF('Input|Step changes'!$E19="$millions",1000000,IF('Input|Step changes'!$E19="$000",1000,1))/IF($E64="$millions",1000000,IF($E64="$000",1000,1)) -> 0 | S64: ='Input|Step changes'!S19*IF('Input|Step changes'!$F19="nominal",LOOKUP($F64,Nominal_to_Real,'Input|Rate of change'!W$23:W$26),INDEX('Input|Rate of change'!$C$14:$O$19,MATCH('Input|Step changes'!$F19,'Input|Rate of change'!$C$14:$C$19,0),MATCH('Calc|Opex forecast'!$F64,'Input|Rate of change'!$C$14:$O$14,0)))*IF('Input|Step changes'!$E19="$millions",1000000,IF('Input|Step changes'!$E19="$000",1000,1))/IF($E64="$millions",1000000,IF($E64="$000",1000,1)) -> 0
C65: ='Input|Step changes'!C20 -> 0 | D65: Calculated | E65: $millions | F65: 2016-17 | J65: ='Input|Step changes'!J20*IF('Input|Step changes'!$F20="nominal",LOOKUP($F65,Nominal_to_Real,'Input|Rate of change'!N$23:N$26),INDEX('Input|Rate of change'!$C$14:$O$19,MATCH('Input|Step changes'!$F20,'Input|Rate of change'!$C$14:$C$19,0),MATCH('Calc|Opex forecast'!$F65,'Input|Rate of change'!$C$14:$O$14,0)))*IF('Input|Step changes'!$E20="$millions",1000000,IF('Input|Step changes'!$E20="$000",1000,1))/IF($E65="$millions",1000000,IF($E65="$000",1000,1)) -> 0 | K65: ='Input|Step changes'!K20*IF('Input|Step changes'!$F20="nominal",LOOKUP($F65,Nominal_to_Real,'Input|Rate of change'!O$23:O$26),INDEX('Input|Rate of change'!$C$14:$O$19,MATCH('Input|Step changes'!$F20,'Input|Rate of change'!$C$14:$C$19,0),MATCH('Calc|Opex forecast'!$F65,'Input|Rate of change'!$C$14:$O$14,0)))*IF('Input|Step changes'!$E20="$millions",1000000,IF('Input|Step changes'!$E20="$000",1000,1))/IF($E65="$millions",1000000,IF($E65="$000",1000,1)) -> 0 | L65: ='Input|Step changes'!L20*IF('Input|Step changes'!$F20="nominal",LOOKUP($F65,Nominal_to_Real,'Input|Rate of change'!P$23:P$26),INDEX('Input|Rate of change'!$C$14:$O$19,MATCH('Input|Step changes'!$F20,'Input|Rate of change'!$C$14:$C$19,0),MATCH('Calc|Opex forecast'!$F65,'Input|Rate of change'!$C$14:$O$14,0)))*IF('Input|Step changes'!$E20="$millions",1000000,IF('Input|Step changes'!$E20="$000",1000,1))/IF($E65="$millions",1000000,IF($E65="$000",1000,1)) -> 0 | M65: ='Input|Step changes'!M20*IF('Input|Step changes'!$F20="nominal",LOOKUP($F65,Nominal_to_Real,'Input|Rate of change'!Q$23:Q$26),INDEX('Input|Rate of change'!$C$14:$O$19,MATCH('Input|Step changes'!$F20,'Input|Rate of change'!$C$14:$C$19,0),MATCH('Calc|Opex forecast'!$F65,'Input|Rate of change'!$C$14:$O$14,0)))*IF('Input|Step changes'!$E20="$millions",1000000,IF('Input|Step changes'!$E20="$000",1000,1))/IF($E65="$millions",1000000,IF($E65="$000",1000,1)) -> 0 | N65: ='Input|Step changes'!N20*IF('Input|Step changes'!$F20="nominal",LOOKUP($F65,Nominal_to_Real,'Input|Rate of change'!R$23:R$26),INDEX('Input|Rate of change'!$C$14:$O$19,MATCH('Input|Step changes'!$F20,'Input|Rate of change'!$C$14:$C$19,0),MATCH('Calc|Opex forecast'!$F65,'Input|Rate of change'!$C$14:$O$14,0)))*IF('Input|Step changes'!$E20="$millions",1000000,IF('Input|Step changes'!$E20="$000",1000,1))/IF($E65="$millions",1000000,IF($E65="$000",1000,1)) -> 0 | O65: ='Input|Step changes'!O20*IF('Input|Step changes'!$F20="nominal",LOOKUP($F65,Nominal_to_Real,'Input|Rate of change'!S$23:S$26),INDEX('Input|Rate of change'!$C$14:$O$19,MATCH('Input|Step changes'!$F20,'Input|Rate of change'!$C$14:$C$19,0),MATCH('Calc|Opex forecast'!$F65,'Input|Rate of change'!$C$14:$O$14,0)))*IF('Input|Step changes'!$E20="$millions",1000000,IF('Input|Step changes'!$E20="$000",1000,1))/IF($E65="$millions",1000000,IF($E65="$000",1000,1)) -> 0 | P65: ='Input|Step changes'!P20*IF('Input|Step changes'!$F20="nominal",LOOKUP($F65,Nominal_to_Real,'Input|Rate of change'!T$23:T$26),INDEX('Input|Rate of change'!$C$14:$O$19,MATCH('Input|Step changes'!$F20,'Input|Rate of change'!$C$14:$C$19,0),MATCH('Calc|Opex forecast'!$F65,'Input|Rate of change'!$C$14:$O$14,0)))*IF('Input|Step changes'!$E20="$millions",1000000,IF('Input|Step changes'!$E20="$000",1000,1))/IF($E65="$millions",1000000,IF($E65="$000",1000,1)) -> 0 | Q65: ='Input|Step changes'!Q20*IF('Input|Step changes'!$F20="nominal",LOOKUP($F65,Nominal_to_Real,'Input|Rate of change'!U$23:U$26),INDEX('Input|Rate of change'!$C$14:$O$19,MATCH('Input|Step changes'!$F20,'Input|Rate of change'!$C$14:$C$19,0),MATCH('Calc|Opex forecast'!$F65,'Input|Rate of change'!$C$14:$O$14,0)))*IF('Input|Step changes'!$E20="$millions",1000000,IF('Input|Step changes'!$E20="$000",1000,1))/IF($E65="$millions",1000000,IF($E65="$000",1000,1)) -> 0 | R65: ='Input|Step changes'!R20*IF('Input|Step changes'!$F20="nominal",LOOKUP($F65,Nominal_to_Real,'Input|Rate of change'!V$23:V$26),INDEX('Input|Rate of change'!$C$14:$O$19,MATCH('Input|Step changes'!$F20,'Input|Rate of change'!$C$14:$C$19,0),MATCH('Calc|Opex forecast'!$F65,'Input|Rate of change'!$C$14:$O$14,0)))*IF('Input|Step changes'!$E20="$millions",1000000,IF('Input|Step changes'!$E20="$000",1000,1))/IF($E65="$millions",1000000,IF($E65="$000",1000,1)) -> 0 | S65: ='Input|Step changes'!S20*IF('Input|Step changes'!$F20="nominal",LOOKUP($F65,Nominal_to_Real,'Input|Rate of change'!W$23:W$26),INDEX('Input|Rate of change'!$C$14:$O$19,MATCH('Input|Step changes'!$F20,'Input|Rate of change'!$C$14:$C$19,0),MATCH('Calc|Opex forecast'!$F65,'Input|Rate of change'!$C$14:$O$14,0)))*IF('Input|Step changes'!$E20="$millions",1000000,IF('Input|Step changes'!$E20="$000",1000,1))/IF($E65="$millions",1000000,IF($E65="$000",1000,1)) -> 0
C66: ='Input|Step changes'!C21 -> 0 | D66: Calculated | E66: $millions | F66: 2016-17 | J66: ='Input|Step changes'!J21*IF('Input|Step changes'!$F21="nominal",LOOKUP($F66,Nominal_to_Real,'Input|Rate of change'!N$23:N$26),INDEX('Input|Rate of change'!$C$14:$O$19,MATCH('Input|Step changes'!$F21,'Input|Rate of change'!$C$14:$C$19,0),MATCH('Calc|Opex forecast'!$F66,'Input|Rate of change'!$C$14:$O$14,0)))*IF('Input|Step changes'!$E21="$millions",1000000,IF('Input|Step changes'!$E21="$000",1000,1))/IF($E66="$millions",1000000,IF($E66="$000",1000,1)) -> 0 | K66: ='Input|Step changes'!K21*IF('Input|Step changes'!$F21="nominal",LOOKUP($F66,Nominal_to_Real,'Input|Rate of change'!O$23:O$26),INDEX('Input|Rate of change'!$C$14:$O$19,MATCH('Input|Step changes'!$F21,'Input|Rate of change'!$C$14:$C$19,0),MATCH('Calc|Opex forecast'!$F66,'Input|Rate of change'!$C$14:$O$14,0)))*IF('Input|Step changes'!$E21="$millions",1000000,IF('Input|Step changes'!$E21="$000",1000,1))/IF($E66="$millions",1000000,IF($E66="$000",1000,1)) -> 0 | L66: ='Input|Step changes'!L21*IF('Input|Step changes'!$F21="nominal",LOOKUP($F66,Nominal_to_Real,'Input|Rate of change'!P$23:P$26),INDEX('Input|Rate of change'!$C$14:$O$19,MATCH('Input|Step changes'!$F21,'Input|Rate of change'!$C$14:$C$19,0),MATCH('Calc|Opex forecast'!$F66,'Input|Rate of change'!$C$14:$O$14,0)))*IF('Input|Step changes'!$E21="$millions",1000000,IF('Input|Step changes'!$E21="$000",1000,1))/IF($E66="$millions",1000000,IF($E66="$000",1000,1)) -> 0 | M66: ='Input|Step changes'!M21*IF('Input|Step changes'!$F21="nominal",LOOKUP($F66,Nominal_to_Real,'Input|Rate of change'!Q$23:Q$26),INDEX('Input|Rate of change'!$C$14:$O$19,MATCH('Input|Step changes'!$F21,'Input|Rate of change'!$C$14:$C$19,0),MATCH('Calc|Opex forecast'!$F66,'Input|Rate of change'!$C$14:$O$14,0)))*IF('Input|Step changes'!$E21="$millions",1000000,IF('Input|Step changes'!$E21="$000",1000,1))/IF($E66="$millions",1000000,IF($E66="$000",1000,1)) -> 0 | N66: ='Input|Step changes'!N21*IF('Input|Step changes'!$F21="nominal",LOOKUP($F66,Nominal_to_Real,'Input|Rate of change'!R$23:R$26),INDEX('Input|Rate of change'!$C$14:$O$19,MATCH('Input|Step changes'!$F21,'Input|Rate of change'!$C$14:$C$19,0),MATCH('Calc|Opex forecast'!$F66,'Input|Rate of change'!$C$14:$O$14,0)))*IF('Input|Step changes'!$E21="$millions",1000000,IF('Input|Step changes'!$E21="$000",1000,1))/IF($E66="$millions",1000000,IF($E66="$000",1000,1)) -> 0 | O66: ='Input|Step changes'!O21*IF('Input|Step changes'!$F21="nominal",LOOKUP($F66,Nominal_to_Real,'Input|Rate of change'!S$23:S$26),INDEX('Input|Rate of change'!$C$14:$O$19,MATCH('Input|Step changes'!$F21,'Input|Rate of change'!$C$14:$C$19,0),MATCH('Calc|Opex forecast'!$F66,'Input|Rate of change'!$C$14:$O$14,0)))*IF('Input|Step changes'!$E21="$millions",1000000,IF('Input|Step changes'!$E21="$000",1000,1))/IF($E66="$millions",1000000,IF($E66="$000",1000,1)) -> 0 | P66: ='Input|Step changes'!P21*IF('Input|Step changes'!$F21="nominal",LOOKUP($F66,Nominal_to_Real,'Input|Rate of change'!T$23:T$26),INDEX('Input|Rate of change'!$C$14:$O$19,MATCH('Input|Step changes'!$F21,'Input|Rate of change'!$C$14:$C$19,0),MATCH('Calc|Opex forecast'!$F66,'Input|Rate of change'!$C$14:$O$14,0)))*IF('Input|Step changes'!$E21="$millions",1000000,IF('Input|Step changes'!$E21="$000",1000,1))/IF($E66="$millions",1000000,IF($E66="$000",1000,1)) -> 0 | Q66: ='Input|Step changes'!Q21*IF('Input|Step changes'!$F21="nominal",LOOKUP($F66,Nominal_to_Real,'Input|Rate of change'!U$23:U$26),INDEX('Input|Rate of change'!$C$14:$O$19,MATCH('Input|Step changes'!$F21,'Input|Rate of change'!$C$14:$C$19,0),MATCH('Calc|Opex forecast'!$F66,'Input|Rate of change'!$C$14:$O$14,0)))*IF('Input|Step changes'!$E21="$millions",1000000,IF('Input|Step changes'!$E21="$000",1000,1))/IF($E66="$millions",1000000,IF($E66="$000",1000,1)) -> 0 | R66: ='Input|Step changes'!R21*IF('Input|Step changes'!$F21="nominal",LOOKUP($F66,Nominal_to_Real,'Input|Rate of change'!V$23:V$26),INDEX('Input|Rate of change'!$C$14:$O$19,MATCH('Input|Step changes'!$F21,'Input|Rate of change'!$C$14:$C$19,0),MATCH('Calc|Opex forecast'!$F66,'Input|Rate of change'!$C$14:$O$14,0)))*IF('Input|Step changes'!$E21="$millions",1000000,IF('Input|Step changes'!$E21="$000",1000,1))/IF($E66="$millions",1000000,IF($E66="$000",1000,1)) -> 0 | S66: ='Input|Step changes'!S21*IF('Input|Step changes'!$F21="nominal",LOOKUP($F66,Nominal_to_Real,'Input|Rate of change'!W$23:W$26),INDEX('Input|Rate of change'!$C$14:$O$19,MATCH('Input|Step changes'!$F21,'Input|Rate of change'!$C$14:$C$19,0),MATCH('Calc|Opex forecast'!$F66,'Input|Rate of change'!$C$14:$O$14,0)))*IF('Input|Step changes'!$E21="$millions",1000000,IF('Input|Step changes'!$E21="$000",1000,1))/IF($E66="$millions",1000000,IF($E66="$000",1000,1)) -> 0
C67: ='Input|Step changes'!C22 -> 0 | D67: Calculated | E67: $millions | F67: 2016-17 | J67: ='Input|Step changes'!J22*IF('Input|Step changes'!$F22="nominal",LOOKUP($F67,Nominal_to_Real,'Input|Rate of change'!N$23:N$26),INDEX('Input|Rate of change'!$C$14:$O$19,MATCH('Input|Step changes'!$F22,'Input|Rate of change'!$C$14:$C$19,0),MATCH('Calc|Opex forecast'!$F67,'Input|Rate of change'!$C$14:$O$14,0)))*IF('Input|Step changes'!$E22="$millions",1000000,IF('Input|Step changes'!$E22="$000",1000,1))/IF($E67="$millions",1000000,IF($E67="$000",1000,1)) -> 0 | K67: ='Input|Step changes'!K22*IF('Input|Step changes'!$F22="nominal",LOOKUP($F67,Nominal_to_Real,'Input|Rate of change'!O$23:O$26),INDEX('Input|Rate of change'!$C$14:$O$19,MATCH('Input|Step changes'!$F22,'Input|Rate of change'!$C$14:$C$19,0),MATCH('Calc|Opex forecast'!$F67,'Input|Rate of change'!$C$14:$O$14,0)))*IF('Input|Step changes'!$E22="$millions",1000000,IF('Input|Step changes'!$E22="$000",1000,1))/IF($E67="$millions",1000000,IF($E67="$000",1000,1)) -> 0 | L67: ='Input|Step changes'!L22*IF('Input|Step changes'!$F22="nominal",LOOKUP($F67,Nominal_to_Real,'Input|Rate of change'!P$23:P$26),INDEX('Input|Rate of change'!$C$14:$O$19,MATCH('Input|Step changes'!$F22,'Input|Rate of change'!$C$14:$C$19,0),MATCH('Calc|Opex forecast'!$F67,'Input|Rate of change'!$C$14:$O$14,0)))*IF('Input|Step changes'!$E22="$millions",1000000,IF('Input|Step changes'!$E22="$000",1000,1))/IF($E67="$millions",1000000,IF($E67="$000",1000,1)) -> 0 | M67: ='Input|Step changes'!M22*IF('Input|Step changes'!$F22="nominal",LOOKUP($F67,Nominal_to_Real,'Input|Rate of change'!Q$23:Q$26),INDEX('Input|Rate of change'!$C$14:$O$19,MATCH('Input|Step changes'!$F22,'Input|Rate of change'!$C$14:$C$19,0),MATCH('Calc|Opex forecast'!$F67,'Input|Rate of change'!$C$14:$O$14,0)))*IF('Input|Step changes'!$E22="$millions",1000000,IF('Input|Step changes'!$E22="$000",1000,1))/IF($E67="$millions",1000000,IF($E67="$000",1000,1)) -> 0 | N67: ='Input|Step changes'!N22*IF('Input|Step changes'!$F22="nominal",LOOKUP($F67,Nominal_to_Real,'Input|Rate of change'!R$23:R$26),INDEX('Input|Rate of change'!$C$14:$O$19,MATCH('Input|Step changes'!$F22,'Input|Rate of change'!$C$14:$C$19,0),MATCH('Calc|Opex forecast'!$F67,'Input|Rate of change'!$C$14:$O$14,0)))*IF('Input|Step changes'!$E22="$millions",1000000,IF('Input|Step changes'!$E22="$000",1000,1))/IF($E67="$millions",1000000,IF($E67="$000",1000,1)) -> 0 | O67: ='Input|Step changes'!O22*IF('Input|Step changes'!$F22="nominal",LOOKUP($F67,Nominal_to_Real,'Input|Rate of change'!S$23:S$26),INDEX('Input|Rate of change'!$C$14:$O$19,MATCH('Input|Step changes'!$F22,'Input|Rate of change'!$C$14:$C$19,0),MATCH('Calc|Opex forecast'!$F67,'Input|Rate of change'!$C$14:$O$14,0)))*IF('Input|Step changes'!$E22="$millions",1000000,IF('Input|Step changes'!$E22="$000",1000,1))/IF($E67="$millions",1000000,IF($E67="$000",1000,1)) -> 0 | P67: ='Input|Step changes'!P22*IF('Input|Step changes'!$F22="nominal",LOOKUP($F67,Nominal_to_Real,'Input|Rate of change'!T$23:T$26),INDEX('Input|Rate of change'!$C$14:$O$19,MATCH('Input|Step changes'!$F22,'Input|Rate of change'!$C$14:$C$19,0),MATCH('Calc|Opex forecast'!$F67,'Input|Rate of change'!$C$14:$O$14,0)))*IF('Input|Step changes'!$E22="$millions",1000000,IF('Input|Step changes'!$E22="$000",1000,1))/IF($E67="$millions",1000000,IF($E67="$000",1000,1)) -> 0 | Q67: ='Input|Step changes'!Q22*IF('Input|Step changes'!$F22="nominal",LOOKUP($F67,Nominal_to_Real,'Input|Rate of change'!U$23:U$26),INDEX('Input|Rate of change'!$C$14:$O$19,MATCH('Input|Step changes'!$F22,'Input|Rate of change'!$C$14:$C$19,0),MATCH('Calc|Opex forecast'!$F67,'Input|Rate of change'!$C$14:$O$14,0)))*IF('Input|Step changes'!$E22="$millions",1000000,IF('Input|Step changes'!$E22="$000",1000,1))/IF($E67="$millions",1000000,IF($E67="$000",1000,1)) -> 0 | R67: ='Input|Step changes'!R22*IF('Input|Step changes'!$F22="nominal",LOOKUP($F67,Nominal_to_Real,'Input|Rate of change'!V$23:V$26),INDEX('Input|Rate of change'!$C$14:$O$19,MATCH('Input|Step changes'!$F22,'Input|Rate of change'!$C$14:$C$19,0),MATCH('Calc|Opex forecast'!$F67,'Input|Rate of change'!$C$14:$O$14,0)))*IF('Input|Step changes'!$E22="$millions",1000000,IF('Input|Step changes'!$E22="$000",1000,1))/IF($E67="$millions",1000000,IF($E67="$000",1000,1)) -> 0 | S67: ='Input|Step changes'!S22*IF('Input|Step changes'!$F22="nominal",LOOKUP($F67,Nominal_to_Real,'Input|Rate of change'!W$23:W$26),INDEX('Input|Rate of change'!$C$14:$O$19,MATCH('Input|Step changes'!$F22,'Input|Rate of change'!$C$14:$C$19,0),MATCH('Calc|Opex forecast'!$F67,'Input|Rate of change'!$C$14:$O$14,0)))*IF('Input|Step changes'!$E22="$millions",1000000,IF('Input|Step changes'!$E22="$000",1000,1))/IF($E67="$millions",1000000,IF($E67="$000",1000,1)) -> 0
C68: ='Input|Step changes'!C23 -> 0 | D68: Calculated | E68: $millions | F68: 2016-17 | J68: ='Input|Step changes'!J23*IF('Input|Step changes'!$F23="nominal",LOOKUP($F68,Nominal_to_Real,'Input|Rate of change'!N$23:N$26),INDEX('Input|Rate of change'!$C$14:$O$19,MATCH('Input|Step changes'!$F23,'Input|Rate of change'!$C$14:$C$19,0),MATCH('Calc|Opex forecast'!$F68,'Input|Rate of change'!$C$14:$O$14,0)))*IF('Input|Step changes'!$E23="$millions",1000000,IF('Input|Step changes'!$E23="$000",1000,1))/IF($E68="$millions",1000000,IF($E68="$000",1000,1)) -> 0 | K68: ='Input|Step changes'!K23*IF('Input|Step changes'!$F23="nominal",LOOKUP($F68,Nominal_to_Real,'Input|Rate of change'!O$23:O$26),INDEX('Input|Rate of change'!$C$14:$O$19,MATCH('Input|Step changes'!$F23,'Input|Rate of change'!$C$14:$C$19,0),MATCH('Calc|Opex forecast'!$F68,'Input|Rate of change'!$C$14:$O$14,0)))*IF('Input|Step changes'!$E23="$millions",1000000,IF('Input|Step changes'!$E23="$000",1000,1))/IF($E68="$millions",1000000,IF($E68="$000",1000,1)) -> 0 | L68: ='Input|Step changes'!L23*IF('Input|Step changes'!$F23="nominal",LOOKUP($F68,Nominal_to_Real,'Input|Rate of change'!P$23:P$26),INDEX('Input|Rate of change'!$C$14:$O$19,MATCH('Input|Step changes'!$F23,'Input|Rate of change'!$C$14:$C$19,0),MATCH('Calc|Opex forecast'!$F68,'Input|Rate of change'!$C$14:$O$14,0)))*IF('Input|Step changes'!$E23="$millions",1000000,IF('Input|Step changes'!$E23="$000",1000,1))/IF($E68="$millions",1000000,IF($E68="$000",1000,1)) -> 0 | M68: ='Input|Step changes'!M23*IF('Input|Step changes'!$F23="nominal",LOOKUP($F68,Nominal_to_Real,'Input|Rate of change'!Q$23:Q$26),INDEX('Input|Rate of change'!$C$14:$O$19,MATCH('Input|Step changes'!$F23,'Input|Rate of change'!$C$14:$C$19,0),MATCH('Calc|Opex forecast'!$F68,'Input|Rate of change'!$C$14:$O$14,0)))*IF('Input|Step changes'!$E23="$millions",1000000,IF('Input|Step changes'!$E23="$000",1000,1))/IF($E68="$millions",1000000,IF($E68="$000",1000,1)) -> 0 | N68: ='Input|Step changes'!N23*IF('Input|Step changes'!$F23="nominal",LOOKUP($F68,Nominal_to_Real,'Input|Rate of change'!R$23:R$26),INDEX('Input|Rate of change'!$C$14:$O$19,MATCH('Input|Step changes'!$F23,'Input|Rate of change'!$C$14:$C$19,0),MATCH('Calc|Opex forecast'!$F68,'Input|Rate of change'!$C$14:$O$14,0)))*IF('Input|Step changes'!$E23="$millions",1000000,IF('Input|Step changes'!$E23="$000",1000,1))/IF($E68="$millions",1000000,IF($E68="$000",1000,1)) -> 0 | O68: ='Input|Step changes'!O23*IF('Input|Step changes'!$F23="nominal",LOOKUP($F68,Nominal_to_Real,'Input|Rate of change'!S$23:S$26),INDEX('Input|Rate of change'!$C$14:$O$19,MATCH('Input|Step changes'!$F23,'Input|Rate of change'!$C$14:$C$19,0),MATCH('Calc|Opex forecast'!$F68,'Input|Rate of change'!$C$14:$O$14,0)))*IF('Input|Step changes'!$E23="$millions",1000000,IF('Input|Step changes'!$E23="$000",1000,1))/IF($E68="$millions",1000000,IF($E68="$000",1000,1)) -> 0 | P68: ='Input|Step changes'!P23*IF('Input|Step changes'!$F23="nominal",LOOKUP($F68,Nominal_to_Real,'Input|Rate of change'!T$23:T$26),INDEX('Input|Rate of change'!$C$14:$O$19,MATCH('Input|Step changes'!$F23,'Input|Rate of change'!$C$14:$C$19,0),MATCH('Calc|Opex forecast'!$F68,'Input|Rate of change'!$C$14:$O$14,0)))*IF('Input|Step changes'!$E23="$millions",1000000,IF('Input|Step changes'!$E23="$000",1000,1))/IF($E68="$millions",1000000,IF($E68="$000",1000,1)) -> 0 | Q68: ='Input|Step changes'!Q23*IF('Input|Step changes'!$F23="nominal",LOOKUP($F68,Nominal_to_Real,'Input|Rate of change'!U$23:U$26),INDEX('Input|Rate of change'!$C$14:$O$19,MATCH('Input|Step changes'!$F23,'Input|Rate of change'!$C$14:$C$19,0),MATCH('Calc|Opex forecast'!$F68,'Input|Rate of change'!$C$14:$O$14,0)))*IF('Input|Step changes'!$E23="$millions",1000000,IF('Input|Step changes'!$E23="$000",1000,1))/IF($E68="$millions",1000000,IF($E68="$000",1000,1)) -> 0 | R68: ='Input|Step changes'!R23*IF('Input|Step changes'!$F23="nominal",LOOKUP($F68,Nominal_to_Real,'Input|Rate of change'!V$23:V$26),INDEX('Input|Rate of change'!$C$14:$O$19,MATCH('Input|Step changes'!$F23,'Input|Rate of change'!$C$14:$C$19,0),MATCH('Calc|Opex forecast'!$F68,'Input|Rate of change'!$C$14:$O$14,0)))*IF('Input|Step changes'!$E23="$millions",1000000,IF('Input|Step changes'!$E23="$000",1000,1))/IF($E68="$millions",1000000,IF($E68="$000",1000,1)) -> 0 | S68: ='Input|Step changes'!S23*IF('Input|Step changes'!$F23="nominal",LOOKUP($F68,Nominal_to_Real,'Input|Rate of change'!W$23:W$26),INDEX('Input|Rate of change'!$C$14:$O$19,MATCH('Input|Step changes'!$F23,'Input|Rate of change'!$C$14:$C$19,0),MATCH('Calc|Opex forecast'!$F68,'Input|Rate of change'!$C$14:$O$14,0)))*IF('Input|Step changes'!$E23="$millions",1000000,IF('Input|Step changes'!$E23="$000",1000,1))/IF($E68="$millions",1000000,IF($E68="$000",1000,1)) -> 0
C70: Total step changes | D70: Calculated | E70: =$E$8 -> $millions | F70: =$F$8 -> 2016-17 | J70: =SUM(J57:J69) -> 0 | K70: =SUM(K57:K69) -> 0 | L70: 0 | M70: 0 | N70: 0 | O70: =SUM(O57:O69) -> 0 | P70: 0 | Q70: 0 | R70: 0 | S70: 0
B72: Calc | Category specific forecasts
C74: Category specific forecasts | D74: Source | E74: Unit | F74: Basis | J74: =IF(RIGHT(J$4,2)>=RIGHT('Input|General'!$G$11,2),IF(RIGHT(J$4,2)<=RIGHT('Input|General'!$G$12,2),J$4,""),"") ->  | K74: =IF(RIGHT(K$4,2)>=RIGHT('Input|General'!$G$11,2),IF(RIGHT(K$4,2)<=RIGHT('Input|General'!$G$12,2),K$4,""),"") ->  | L74: =IF(RIGHT(L$4,2)>=RIGHT('Input|General'!$G$11,2),IF(RIGHT(L$4,2)<=RIGHT('Input|General'!$G$12,2),L$4,""),"") ->  | M74: =IF(RIGHT(M$4,2)>=RIGHT('Input|General'!$G$11,2),IF(RIGHT(M$4,2)<=RIGHT('Input|General'!$G$12,2),M$4,""),"") -> 2017-18 | N74: =IF(RIGHT(N$4,2)>=RIGHT('Input|General'!$G$11,2),IF(RIGHT(N$4,2)<=RIGHT('Input|General'!$G$12,2),N$4,""),"") -> 2018-19 | O74: =IF(RIGHT(O$4,2)>=RIGHT('Input|General'!$G$11,2),IF(RIGHT(O$4,2)<=RIGHT('Input|General'!$G$12,2),O$4,""),"") -> 2019-20 | P74: =IF(RIGHT(P$4,2)>=RIGHT('Input|General'!$G$11,2),IF(RIGHT(P$4,2)<=RIGHT('Input|General'!$G$12,2),P$4,""),"") -> 2020-21 | Q74: =IF(RIGHT(Q$4,2)>=RIGHT('Input|General'!$G$11,2),IF(RIGHT(Q$4,2)<=RIGHT('Input|General'!$G$12,2),Q$4,""),"") -> 2021-22 | R74: =IF(RIGHT(R$4,2)>=RIGHT('Input|General'!$G$11,2),IF(RIGHT(R$4,2)<=RIGHT('Input|General'!$G$12,2),R$4,""),"") ->  | S74: =IF(RIGHT(S$4,2)>=RIGHT('Input|General'!$G$11,2),IF(RIGHT(S$4,2)<=RIGHT('Input|General'!$G$12,2),S$4,""),"") -> 
C76: ='Input|Step changes'!C29 -> Easement tax | D76: Calculated | E76: =$E$8 -> $millions | F76: =$F$8 -> 2016-17 | J76: ='Input|Step changes'!J29*IF('Input|Step changes'!$F29="nominal",LOOKUP($F76,Nominal_to_Real,'Input|Rate of change'!N$23:N$26),INDEX('Input|Rate of change'!$C$14:$O$19,MATCH('Input|Step changes'!$F29,'Input|Rate of change'!$C$14:$C$19,0),MATCH('Calc|Opex forecast'!$F76,'Input|Rate of change'!$C$14:$O$14,0)))*IF('Input|Step changes'!$E29="$millions",1000000,IF('Input|Step changes'!$E29="$000",1000,1))/IF($E76="$millions",1000000,IF($E76="$000",1000,1)) -> 0 | K76: ='Input|Step changes'!K29*IF('Input|Step changes'!$F29="nominal",LOOKUP($F76,Nominal_to_Real,'Input|Rate of change'!O$23:O$26),INDEX('Input|Rate of change'!$C$14:$O$19,MATCH('Input|Step changes'!$F29,'Input|Rate of change'!$C$14:$C$19,0),MATCH('Calc|Opex forecast'!$F76,'Input|Rate of change'!$C$14:$O$14,0)))*IF('Input|Step changes'!$E29="$millions",1000000,IF('Input|Step changes'!$E29="$000",1000,1))/IF($E76="$millions",1000000,IF($E76="$000",1000,1)) -> 0 | L76: ='Input|Step changes'!L29*IF('Input|Step changes'!$F29="nominal",LOOKUP($F76,Nominal_to_Real,'Input|Rate of change'!P$23:P$26),INDEX('Input|Rate of change'!$C$14:$O$19,MATCH('Input|Step changes'!$F29,'Input|Rate of change'!$C$14:$C$19,0),MATCH('Calc|Opex forecast'!$F76,'Input|Rate of change'!$C$14:$O$14,0)))*IF('Input|Step changes'!$E29="$millions",1000000,IF('Input|Step changes'!$E29="$000",1000,1))/IF($E76="$millions",1000000,IF($E76="$000",1000,1)) -> 0 | M76: ='Input|Step changes'!M29*IF('Input|Step changes'!$F29="nominal",LOOKUP($F76,Nominal_to_Real,'Input|Rate of change'!Q$23:Q$26),INDEX('Input|Rate of change'!$C$14:$O$19,MATCH('Input|Step changes'!$F29,'Input|Rate of change'!$C$14:$C$19,0),MATCH('Calc|Opex forecast'!$F76,'Input|Rate of change'!$C$14:$O$14,0)))*IF('Input|Step changes'!$E29="$millions",1000000,IF('Input|Step changes'!$E29="$000",1000,1))/IF($E76="$millions",1000000,IF($E76="$000",1000,1)) -> 114.3142551 | N76: ='Input|Step changes'!N29*IF('Input|Step changes'!$F29="nominal",LOOKUP($F76,Nominal_to_Real,'Input|Rate of change'!R$23:R$26),INDEX('Input|Rate of change'!$C$14:$O$19,MATCH('Input|Step changes'!$F29,'Input|Rate of change'!$C$14:$C$19,0),MATCH('Calc|Opex forecast'!$F76,'Input|Rate of change'!$C$14:$O$14,0)))*IF('Input|Step changes'!$E29="$millions",1000000,IF('Input|Step changes'!$E29="$000",1000,1))/IF($E76="$millions",1000000,IF($E76="$000",1000,1)) -> 114.3142551 | O76: ='Input|Step changes'!O29*IF('Input|Step changes'!$F29="nominal",LOOKUP($F76,Nominal_to_Real,'Input|Rate of change'!S$23:S$26),INDEX('Input|Rate of change'!$C$14:$O$19,MATCH('Input|Step changes'!$F29,'Input|Rate of change'!$C$14:$C$19,0),MATCH('Calc|Opex forecast'!$F76,'Input|Rate of change'!$C$14:$O$14,0)))*IF('Input|Step changes'!$E29="$millions",1000000,IF('Input|Step changes'!$E29="$000",1000,1))/IF($E76="$millions",1000000,IF($E76="$000",1000,1)) -> 114.3142551 | P76: ='Input|Step changes'!P29*IF('Input|Step changes'!$F29="nominal",LOOKUP($F76,Nominal_to_Real,'Input|Rate of change'!T$23:T$26),INDEX('Input|Rate of change'!$C$14:$O$19,MATCH('Input|Step changes'!$F29,'Input|Rate of change'!$C$14:$C$19,0),MATCH('Calc|Opex forecast'!$F76,'Input|Rate of change'!$C$14:$O$14,0)))*IF('Input|Step changes'!$E29="$millions",1000000,IF('Input|Step changes'!$E29="$000",1000,1))/IF($E76="$millions",1000000,IF($E76="$000",1000,1)) -> 114.3142551 | Q76: ='Input|Step changes'!Q29*IF('Input|Step changes'!$F29="nominal",LOOKUP($F76,Nominal_to_Real,'Input|Rate of change'!U$23:U$26),INDEX('Input|Rate of change'!$C$14:$O$19,MATCH('Input|Step changes'!$F29,'Input|Rate of change'!$C$14:$C$19,0),MATCH('Calc|Opex forecast'!$F76,'Input|Rate of change'!$C$14:$O$14,0)))*IF('Input|Step changes'!$E29="$millions",1000000,IF('Input|Step changes'!$E29="$000",1000,1))/IF($E76="$millions",1000000,IF($E76="$000",1000,1)) -> 114.3142551 | R76: ='Input|Step changes'!R29*IF('Input|Step changes'!$F29="nominal",LOOKUP($F76,Nominal_to_Real,'Input|Rate of change'!V$23:V$26),INDEX('Input|Rate of change'!$C$14:$O$19,MATCH('Input|Step changes'!$F29,'Input|Rate of change'!$C$14:$C$19,0),MATCH('Calc|Opex forecast'!$F76,'Input|Rate of change'!$C$14:$O$14,0)))*IF('Input|Step changes'!$E29="$millions",1000000,IF('Input|Step changes'!$E29="$000",1000,1))/IF($E76="$millions",1000000,IF($E76="$000",1000,1)) -> 0 | S76: ='Input|Step changes'!S29*IF('Input|Step changes'!$F29="nominal",LOOKUP($F76,Nominal_to_Real,'Input|Rate of change'!W$23:W$26),INDEX('Input|Rate of change'!$C$14:$O$19,MATCH('Input|Step changes'!$F29,'Input|Rate of change'!$C$14:$C$19,0),MATCH('Calc|Opex forecast'!$F76,'Input|Rate of change'!$C$14:$O$14,0)))*IF('Input|Step changes'!$E29="$millions",1000000,IF('Input|Step changes'!$E29="$000",1000,1))/IF($E76="$millions",1000000,IF($E76="$000",1000,1)) -> 0
C77: ='Input|Step changes'!C30 -> Group 3 roll in | D77: Calculated | E77: $millions | F77: =$F$8 -> 2016-17 | J77: ='Input|Step changes'!J30*IF('Input|Step changes'!$F30="nominal",LOOKUP($F77,Nominal_to_Real,'Input|Rate of change'!N$23:N$26),INDEX('Input|Rate of change'!$C$14:$O$19,MATCH('Input|Step changes'!$F30,'Input|Rate of change'!$C$14:$C$19,0),MATCH('Calc|Opex forecast'!$F77,'Input|Rate of change'!$C$14:$O$14,0)))*IF('Input|Step changes'!$E30="$millions",1000000,IF('Input|Step changes'!$E30="$000",1000,1))/IF($E77="$millions",1000000,IF($E77="$000",1000,1)) -> 0 | K77: ='Input|Step changes'!K30*IF('Input|Step changes'!$F30="nominal",LOOKUP($F77,Nominal_to_Real,'Input|Rate of change'!O$23:O$26),INDEX('Input|Rate of change'!$C$14:$O$19,MATCH('Input|Step changes'!$F30,'Input|Rate of change'!$C$14:$C$19,0),MATCH('Calc|Opex forecast'!$F77,'Input|Rate of change'!$C$14:$O$14,0)))*IF('Input|Step changes'!$E30="$millions",1000000,IF('Input|Step changes'!$E30="$000",1000,1))/IF($E77="$millions",1000000,IF($E77="$000",1000,1)) -> 0 | L77: ='Input|Step changes'!L30*IF('Input|Step changes'!$F30="nominal",LOOKUP($F77,Nominal_to_Real,'Input|Rate of change'!P$23:P$26),INDEX('Input|Rate of change'!$C$14:$O$19,MATCH('Input|Step changes'!$F30,'Input|Rate of change'!$C$14:$C$19,0),MATCH('Calc|Opex forecast'!$F77,'Input|Rate of change'!$C$14:$O$14,0)))*IF('Input|Step changes'!$E30="$millions",1000000,IF('Input|Step changes'!$E30="$000",1000,1))/IF($E77="$millions",1000000,IF($E77="$000",1000,1)) -> 0 | M77: ='Input|Step changes'!M30*IF('Input|Step changes'!$F30="nominal",LOOKUP($F77,Nominal_to_Real,'Input|Rate of change'!Q$23:Q$26),INDEX('Input|Rate of change'!$C$14:$O$19,MATCH('Input|Step changes'!$F30,'Input|Rate of change'!$C$14:$C$19,0),MATCH('Calc|Opex forecast'!$F77,'Input|Rate of change'!$C$14:$O$14,0)))*IF('Input|Step changes'!$E30="$millions",1000000,IF('Input|Step changes'!$E30="$000",1000,1))/IF($E77="$millions",1000000,IF($E77="$000",1000,1)) -> 2.004413448 | N77: ='Input|Step changes'!N30*IF('Input|Step changes'!$F30="nominal",LOOKUP($F77,Nominal_to_Real,'Input|Rate of change'!R$23:R$26),INDEX('Input|Rate of change'!$C$14:$O$19,MATCH('Input|Step changes'!$F30,'Input|Rate of change'!$C$14:$C$19,0),MATCH('Calc|Opex forecast'!$F77,'Input|Rate of change'!$C$14:$O$14,0)))*IF('Input|Step changes'!$E30="$millions",1000000,IF('Input|Step changes'!$E30="$000",1000,1))/IF($E77="$millions",1000000,IF($E77="$000",1000,1)) -> 2.004413448 | O77: ='Input|Step changes'!O30*IF('Input|Step changes'!$F30="nominal",LOOKUP($F77,Nominal_to_Real,'Input|Rate of change'!S$23:S$26),INDEX('Input|Rate of change'!$C$14:$O$19,MATCH('Input|Step changes'!$F30,'Input|Rate of change'!$C$14:$C$19,0),MATCH('Calc|Opex forecast'!$F77,'Input|Rate of change'!$C$14:$O$14,0)))*IF('Input|Step changes'!$E30="$millions",1000000,IF('Input|Step changes'!$E30="$000",1000,1))/IF($E77="$millions",1000000,IF($E77="$000",1000,1)) -> 2.004413448 | P77: ='Input|Step changes'!P30*IF('Input|Step changes'!$F30="nominal",LOOKUP($F77,Nominal_to_Real,'Input|Rate of change'!T$23:T$26),INDEX('Input|Rate of change'!$C$14:$O$19,MATCH('Input|Step changes'!$F30,'Input|Rate of change'!$C$14:$C$19,0),MATCH('Calc|Opex forecast'!$F77,'Input|Rate of change'!$C$14:$O$14,0)))*IF('Input|Step changes'!$E30="$millions",1000000,IF('Input|Step changes'!$E30="$000",1000,1))/IF($E77="$millions",1000000,IF($E77="$000",1000,1)) -> 2.004413448 | Q77: ='Input|Step changes'!Q30*IF('Input|Step changes'!$F30="nominal",LOOKUP($F77,Nominal_to_Real,'Input|Rate of change'!U$23:U$26),INDEX('Input|Rate of change'!$C$14:$O$19,MATCH('Input|Step changes'!$F30,'Input|Rate of change'!$C$14:$C$19,0),MATCH('Calc|Opex forecast'!$F77,'Input|Rate of change'!$C$14:$O$14,0)))*IF('Input|Step changes'!$E30="$millions",1000000,IF('Input|Step changes'!$E30="$000",1000,1))/IF($E77="$millions",1000000,IF($E77="$000",1000,1)) -> 2.004413448 | R77: ='Input|Step changes'!R30*IF('Input|Step changes'!$F30="nominal",LOOKUP($F77,Nominal_to_Real,'Input|Rate of change'!V$23:V$26),INDEX('Input|Rate of change'!$C$14:$O$19,MATCH('Input|Step changes'!$F30,'Input|Rate of change'!$C$14:$C$19,0),MATCH('Calc|Opex forecast'!$F77,'Input|Rate of change'!$C$14:$O$14,0)))*IF('Input|Step changes'!$E30="$millions",1000000,IF('Input|Step changes'!$E30="$000",1000,1))/IF($E77="$millions",1000000,IF($E77="$000",1000,1)) -> 0 | S77: ='Input|Step changes'!S30*IF('Input|Step changes'!$F30="nominal",LOOKUP($F77,Nominal_to_Real,'Input|Rate of change'!W$23:W$26),INDEX('Input|Rate of change'!$C$14:$O$19,MATCH('Input|Step changes'!$F30,'Input|Rate of change'!$C$14:$C$19,0),MATCH('Calc|Opex forecast'!$F77,'Input|Rate of change'!$C$14:$O$14,0)))*IF('Input|Step changes'!$E30="$millions",1000000,IF('Input|Step changes'!$E30="$000",1000,1))/IF($E77="$millions",1000000,IF($E77="$000",1000,1)) -> 0
C78: ='Input|Step changes'!C31 -> 0 | D78: Calculated | E78: $millions | F78: 2016-17 | J78: ='Input|Step changes'!J31*IF('Input|Step changes'!$F31="nominal",LOOKUP($F78,Nominal_to_Real,'Input|Rate of change'!N$23:N$26),INDEX('Input|Rate of change'!$C$14:$O$19,MATCH('Input|Step changes'!$F31,'Input|Rate of change'!$C$14:$C$19,0),MATCH('Calc|Opex forecast'!$F78,'Input|Rate of change'!$C$14:$O$14,0)))*IF('Input|Step changes'!$E31="$millions",1000000,IF('Input|Step changes'!$E31="$000",1000,1))/IF($E78="$millions",1000000,IF($E78="$000",1000,1)) -> 0 | K78: ='Input|Step changes'!K31*IF('Input|Step changes'!$F31="nominal",LOOKUP($F78,Nominal_to_Real,'Input|Rate of change'!O$23:O$26),INDEX('Input|Rate of change'!$C$14:$O$19,MATCH('Input|Step changes'!$F31,'Input|Rate of change'!$C$14:$C$19,0),MATCH('Calc|Opex forecast'!$F78,'Input|Rate of change'!$C$14:$O$14,0)))*IF('Input|Step changes'!$E31="$millions",1000000,IF('Input|Step changes'!$E31="$000",1000,1))/IF($E78="$millions",1000000,IF($E78="$000",1000,1)) -> 0 | L78: ='Input|Step changes'!L31*IF('Input|Step changes'!$F31="nominal",LOOKUP($F78,Nominal_to_Real,'Input|Rate of change'!P$23:P$26),INDEX('Input|Rate of change'!$C$14:$O$19,MATCH('Input|Step changes'!$F31,'Input|Rate of change'!$C$14:$C$19,0),MATCH('Calc|Opex forecast'!$F78,'Input|Rate of change'!$C$14:$O$14,0)))*IF('Input|Step changes'!$E31="$millions",1000000,IF('Input|Step changes'!$E31="$000",1000,1))/IF($E78="$millions",1000000,IF($E78="$000",1000,1)) -> 0 | M78: ='Input|Step changes'!M31*IF('Input|Step changes'!$F31="nominal",LOOKUP($F78,Nominal_to_Real,'Input|Rate of change'!Q$23:Q$26),INDEX('Input|Rate of change'!$C$14:$O$19,MATCH('Input|Step changes'!$F31,'Input|Rate of change'!$C$14:$C$19,0),MATCH('Calc|Opex forecast'!$F78,'Input|Rate of change'!$C$14:$O$14,0)))*IF('Input|Step changes'!$E31="$millions",1000000,IF('Input|Step changes'!$E31="$000",1000,1))/IF($E78="$millions",1000000,IF($E78="$000",1000,1)) -> 0 | N78: ='Input|Step changes'!N31*IF('Input|Step changes'!$F31="nominal",LOOKUP($F78,Nominal_to_Real,'Input|Rate of change'!R$23:R$26),INDEX('Input|Rate of change'!$C$14:$O$19,MATCH('Input|Step changes'!$F31,'Input|Rate of change'!$C$14:$C$19,0),MATCH('Calc|Opex forecast'!$F78,'Input|Rate of change'!$C$14:$O$14,0)))*IF('Input|Step changes'!$E31="$millions",1000000,IF('Input|Step changes'!$E31="$000",1000,1))/IF($E78="$millions",1000000,IF($E78="$000",1000,1)) -> 0 | O78: ='Input|Step changes'!O31*IF('Input|Step changes'!$F31="nominal",LOOKUP($F78,Nominal_to_Real,'Input|Rate of change'!S$23:S$26),INDEX('Input|Rate of change'!$C$14:$O$19,MATCH('Input|Step changes'!$F31,'Input|Rate of change'!$C$14:$C$19,0),MATCH('Calc|Opex forecast'!$F78,'Input|Rate of change'!$C$14:$O$14,0)))*IF('Input|Step changes'!$E31="$millions",1000000,IF('Input|Step changes'!$E31="$000",1000,1))/IF($E78="$millions",1000000,IF($E78="$000",1000,1)) -> 0 | P78: ='Input|Step changes'!P31*IF('Input|Step changes'!$F31="nominal",LOOKUP($F78,Nominal_to_Real,'Input|Rate of change'!T$23:T$26),INDEX('Input|Rate of change'!$C$14:$O$19,MATCH('Input|Step changes'!$F31,'Input|Rate of change'!$C$14:$C$19,0),MATCH('Calc|Opex forecast'!$F78,'Input|Rate of change'!$C$14:$O$14,0)))*IF('Input|Step changes'!$E31="$millions",1000000,IF('Input|Step changes'!$E31="$000",1000,1))/IF($E78="$millions",1000000,IF($E78="$000",1000,1)) -> 0 | Q78: ='Input|Step changes'!Q31*IF('Input|Step changes'!$F31="nominal",LOOKUP($F78,Nominal_to_Real,'Input|Rate of change'!U$23:U$26),INDEX('Input|Rate of change'!$C$14:$O$19,MATCH('Input|Step changes'!$F31,'Input|Rate of change'!$C$14:$C$19,0),MATCH('Calc|Opex forecast'!$F78,'Input|Rate of change'!$C$14:$O$14,0)))*IF('Input|Step changes'!$E31="$millions",1000000,IF('Input|Step changes'!$E31="$000",1000,1))/IF($E78="$millions",1000000,IF($E78="$000",1000,1)) -> 0 | R78: ='Input|Step changes'!R31*IF('Input|Step changes'!$F31="nominal",LOOKUP($F78,Nominal_to_Real,'Input|Rate of change'!V$23:V$26),INDEX('Input|Rate of change'!$C$14:$O$19,MATCH('Input|Step changes'!$F31,'Input|Rate of change'!$C$14:$C$19,0),MATCH('Calc|Opex forecast'!$F78,'Input|Rate of change'!$C$14:$O$14,0)))*IF('Input|Step changes'!$E31="$millions",1000000,IF('Input|Step changes'!$E31="$000",1000,1))/IF($E78="$millions",1000000,IF($E78="$000",1000,1)) -> 0 | S78: ='Input|Step changes'!S31*IF('Input|Step changes'!$F31="nominal",LOOKUP($F78,Nominal_to_Real,'Input|Rate of change'!W$23:W$26),INDEX('Input|Rate of change'!$C$14:$O$19,MATCH('Input|Step changes'!$F31,'Input|Rate of change'!$C$14:$C$19,0),MATCH('Calc|Opex forecast'!$F78,'Input|Rate of change'!$C$14:$O$14,0)))*IF('Input|Step changes'!$E31="$millions",1000000,IF('Input|Step changes'!$E31="$000",1000,1))/IF($E78="$millions",1000000,IF($E78="$000",1000,1)) -> 0
C80: Total category specific forecasts | D80: Calculated | E80: =$E$8 -> $millions | F80: =$F$8 -> 2016-17 | J80: =SUM(J76:J78) -> 0 | K80: 0 | L80: 0 | M80: 116.3186685 | N80: 116.3186685 | O80: 116.3186685 | P80: 116.3186685 | Q80: 116.3186685 | R80: 0 | S80: 0
B82: Calc | Total forecast operating expenditure
J84: =IF(RIGHT(J$4,2)>=RIGHT('Input|General'!$G$9,2),IF(RIGHT(J$4,2)<=RIGHT('Input|General'!$G$12,2),J$4,""),"") -> 2014-15 | K84: =IF(RIGHT(K$4,2)>=RIGHT('Input|General'!$G$9,2),IF(RIGHT(K$4,2)<=RIGHT('Input|General'!$G$12,2),K$4,""),"") -> 2015-16 | L84: =IF(RIGHT(L$4,2)>=RIGHT('Input|General'!$G$9,2),IF(RIGHT(L$4,2)<=RIGHT('Input|General'!$G$12,2),L$4,""),"") -> 2016-17 | M84: =IF(RIGHT(M$4,2)>=RIGHT('Input|General'!$G$9,2),IF(RIGHT(M$4,2)<=RIGHT('Input|General'!$G$12,2),M$4,""),"") -> 2017-18 | N84: =IF(RIGHT(N$4,2)>=RIGHT('Input|General'!$G$9,2),IF(RIGHT(N$4,2)<=RIGHT('Input|General'!$G$12,2),N$4,""),"") -> 2018-19 | O84: =IF(RIGHT(O$4,2)>=RIGHT('Input|General'!$G$9,2),IF(RIGHT(O$4,2)<=RIGHT('Input|General'!$G$12,2),O$4,""),"") -> 2019-20 | P84: =IF(RIGHT(P$4,2)>=RIGHT('Input|General'!$G$9,2),IF(RIGHT(P$4,2)<=RIGHT('Input|General'!$G$12,2),P$4,""),"") -> 2020-21 | Q84: =IF(RIGHT(Q$4,2)>=RIGHT('Input|General'!$G$9,2),IF(RIGHT(Q$4,2)<=RIGHT('Input|General'!$G$12,2),Q$4,""),"") -> 2021-22 | R84: =IF(RIGHT(R$4,2)>=RIGHT('Input|General'!$G$9,2),IF(RIGHT(R$4,2)<=RIGHT('Input|General'!$G$12,2),R$4,""),"") ->  | S84: =IF(RIGHT(S$4,2)>=RIGHT('Input|General'!$G$9,2),IF(RIGHT(S$4,2)<=RIGHT('Input|General'!$G$12,2),S$4,""),"") -> 
C86: Total forecast opex, excluding debt raising costs | D86: Calculated | E86: =$E$8 -> $millions | F86: =$F$8 -> 2016-17 | J86: =J13 -> 84.77818725 | K86: 0 | L86: =L19 -> 87.75512281 | M86: =IF(RIGHT(M$4,2)>=RIGHT('Input|General'!$G$11,2),IF(RIGHT(M$4,2)<=RIGHT('Input|General'!$G$12,2),IF(ISBLANK(M84),"",PRODUCT(1+$J51:M51)*SUM($J38:$Q38)+M70+M80),""),"") -> 204.1561843 | N86: =IF(RIGHT(N$4,2)>=RIGHT('Input|General'!$G$11,2),IF(RIGHT(N$4,2)<=RIGHT('Input|General'!$G$12,2),IF(ISBLANK(N84),"",PRODUCT(1+$J51:N51)*SUM($J38:$Q38)+N70+N80),""),"") -> 204.4305811 | O86: =IF(RIGHT(O$4,2)>=RIGHT('Input|General'!$G$11,2),IF(RIGHT(O$4,2)<=RIGHT('Input|General'!$G$12,2),IF(ISBLANK(O84),"",PRODUCT(1+$J51:O51)*SUM($J38:$Q38)+O70+O80),""),"") -> 204.7847559 | P86: =IF(RIGHT(P$4,2)>=RIGHT('Input|General'!$G$11,2),IF(RIGHT(P$4,2)<=RIGHT('Input|General'!$G$12,2),IF(ISBLANK(P84),"",PRODUCT(1+$J51:P51)*SUM($J38:$Q38)+P70+P80),""),"") -> 205.1665696 | Q86: =IF(RIGHT(Q$4,2)>=RIGHT('Input|General'!$G$11,2),IF(RIGHT(Q$4,2)<=RIGHT('Input|General'!$G$12,2),IF(ISBLANK(Q84),"",PRODUCT(1+$J51:Q51)*SUM($J38:$Q38)+Q70+Q80),""),"") -> 205.5524209
C87: Total forecast opex, including debt raising costs | D87: Calculated | E87: =$E$8 -> $millions | F87: =$F$8 -> 2016-17 | M87: =M86+'Input|Step changes'!M37 -> 205.768206 | N87: =N86+'Input|Step changes'!N37 -> 206.0341565 | O87: =O86+'Input|Step changes'!O37 -> 206.3633217 | P87: =P86+'Input|Step changes'!P37 -> 206.710583 | Q87: =Q86+'Input|Step changes'!Q37 -> 207.0589476
B89: End

Sheet Output|Models
B1: =Index!$B$1 -> AER opex model | J1: Back to Index | L1: Key: | M1: Input | N1: External Link | O1: Internal Link | R1: Worksheet check: | S1: =IF(COUNTA($W$14:$W$471)=COUNTIF($W$14:$W$471,"OK"),"OK","Check") -> OK | U1: Overall Check: | V1: ='Check|List'!$S$1 -> Ok
B2: =Index!$C$13 -> Output | Models
D4: Source | E4: Unit | F4: Basis | J4: ='Input|General'!$G$8 -> 2014-15 | K4: =IF(OFFSET('Lookup|Tables'!$G$28:$G$43,MATCH('Input|General'!$G$8,'Lookup|Tables'!$G$28:$G$42,0)+1,0,1,1)<='Input|General'!$G$12,OFFSET('Lookup|Tables'!$G$28:$G$43,MATCH('Input|General'!$G$8,'Lookup|Tables'!$G$28:$G$42,0),0,1,1),"") -> 2015-16 | L4: =IF(OFFSET('Lookup|Tables'!$G$28:$G$43,MATCH('Input|General'!$G$8,'Lookup|Tables'!$G$28:$G$42,0)+1,0,1,1)<='Input|General'!$G$12,OFFSET('Lookup|Tables'!$G$28:$G$43,MATCH('Input|General'!$G$8,'Lookup|Tables'!$G$28:$G$42,0)+1,0,1,1),"") -> 2016-17 | M4: =IF(OFFSET('Lookup|Tables'!$G$28:$G$43,MATCH('Input|General'!$G$8,'Lookup|Tables'!$G$28:$G$42,0)+2,0,1,1)<='Input|General'!$G$12,OFFSET('Lookup|Tables'!$G$28:$G$43,MATCH('Input|General'!$G$8,'Lookup|Tables'!$G$28:$G$42,0)+2,0,1,1),"") -> 2017-18 | N4: =IF(OFFSET('Lookup|Tables'!$G$28:$G$43,MATCH('Input|General'!$G$8,'Lookup|Tables'!$G$28:$G$42,0)+3,0,1,1)<='Input|General'!$G$12,OFFSET('Lookup|Tables'!$G$28:$G$43,MATCH('Input|General'!$G$8,'Lookup|Tables'!$G$28:$G$42,0)+3,0,1,1),"") -> 2018-19 | O4: =IF(OFFSET('Lookup|Tables'!$G$28:$G$43,MATCH('Input|General'!$G$8,'Lookup|Tables'!$G$28:$G$42,0)+4,0,1,1)<='Input|General'!$G$12,OFFSET('Lookup|Tables'!$G$28:$G$43,MATCH('Input|General'!$G$8,'Lookup|Tables'!$G$28:$G$42,0)+4,0,1,1),"") -> 2019-20 | P4: =IF(OFFSET('Lookup|Tables'!$G$28:$G$43,MATCH('Input|General'!$G$8,'Lookup|Tables'!$G$28:$G$42,0)+5,0,1,1)<='Input|General'!$G$12,OFFSET('Lookup|Tables'!$G$28:$G$43,MATCH('Input|General'!$G$8,'Lookup|Tables'!$G$28:$G$42,0)+5,0,1,1),"") -> 2020-21 | Q4: =IF(OFFSET('Lookup|Tables'!$G$28:$G$43,MATCH('Input|General'!$G$8,'Lookup|Tables'!$G$28:$G$42,0)+6,0,1,1)<='Input|General'!$G$12,OFFSET('Lookup|Tables'!$G$28:$G$43,MATCH('Input|General'!$G$8,'Lookup|Tables'!$G$28:$G$42,0)+6,0,1,1),"") -> 2021-22 | R4: =IF(OFFSET('Lookup|Tables'!$G$28:$G$43,MATCH('Input|General'!$G$8,'Lookup|Tables'!$G$28:$G$42,0)+7,0,1,1)<='Input|General'!$G$12,OFFSET('Lookup|Tables'!$G$28:$G$43,MATCH('Input|General'!$G$8,'Lookup|Tables'!$G$28:$G$42,0)+7,0,1,1),"") ->  | S4: =IF(OFFSET('Lookup|Tables'!$G$28:$G$43,MATCH('Input|General'!$G$8,'Lookup|Tables'!$G$28:$G$42,0)+8,0,1,1)<='Input|General'!$G$12,OFFSET('Lookup|Tables'!$G$28:$G$43,MATCH('Input|General'!$G$8,'Lookup|Tables'!$G$28:$G$42,0)+8,0,1,1),"") -> 
B8: Inputs for Post Tax Revenue Model | E8: $millions | F8: 2016-17 | J8: Note. The dollar base should be consistent with the post tax revenue model
C11: Operating expenditure | D11: Source | E11: Unit | F11: Basis | J11: =IF(RIGHT(J$4,2)>=RIGHT('Input|General'!$G$11,2),IF(RIGHT(J$4,2)<=RIGHT('Input|General'!$G$12,2),J$4,""),"") ->  | K11: =IF(RIGHT(K$4,2)>=RIGHT('Input|General'!$G$11,2),IF(RIGHT(K$4,2)<=RIGHT('Input|General'!$G$12,2),K$4,""),"") ->  | L11: =IF(RIGHT(L$4,2)>=RIGHT('Input|General'!$G$11,2),IF(RIGHT(L$4,2)<=RIGHT('Input|General'!$G$12,2),L$4,""),"") ->  | M11: =IF(RIGHT(M$4,2)>=RIGHT('Input|General'!$G$11,2),IF(RIGHT(M$4,2)<=RIGHT('Input|General'!$G$12,2),M$4,""),"") -> 2017-18 | N11: =IF(RIGHT(N$4,2)>=RIGHT('Input|General'!$G$11,2),IF(RIGHT(N$4,2)<=RIGHT('Input|General'!$G$12,2),N$4,""),"") -> 2018-19 | O11: =IF(RIGHT(O$4,2)>=RIGHT('Input|General'!$G$11,2),IF(RIGHT(O$4,2)<=RIGHT('Input|General'!$G$12,2),O$4,""),"") -> 2019-20 | P11: =IF(RIGHT(P$4,2)>=RIGHT('Input|General'!$G$11,2),IF(RIGHT(P$4,2)<=RIGHT('Input|General'!$G$12,2),P$4,""),"") -> 2020-21 | Q11: =IF(RIGHT(Q$4,2)>=RIGHT('Input|General'!$G$11,2),IF(RIGHT(Q$4,2)<=RIGHT('Input|General'!$G$12,2),Q$4,""),"") -> 2021-22 | U11: Notes
C12: Forecast operating expenditure (excl. DRC) | D12: Calc | Opex forecast | E12: =$E$8 -> $millions | F12: =$F$8 -> 2016-17 | J12: =IF(J11="",0,'Calc|Opex forecast'!J86*IF('Calc|Opex forecast'!$F$86="nominal",LOOKUP($F12,Nominal_to_Real,'Input|Rate of change'!P$23:P$26),INDEX('Input|Rate of change'!$C$14:$O$19,MATCH('Calc|Opex forecast'!$F$86,'Input|Rate of change'!$C$14:$C$19,0),MATCH('Output|Models'!$F12,'Input|Rate of change'!$C$14:$O$14,0)))*IF('Calc|Opex forecast'!$E$86="$millions",1000000,IF('Output|Models'!B47="$000",1000,1))/IF($E12="$millions",1000000,IF($E12="$000",1000,1))) -> 0 | K12: =IF(K11="",0,'Calc|Opex forecast'!K86*IF('Calc|Opex forecast'!$F$86="nominal",LOOKUP($F12,Nominal_to_Real,'Input|Rate of change'!Q$23:Q$26),INDEX('Input|Rate of change'!$C$14:$O$19,MATCH('Calc|Opex forecast'!$F$86,'Input|Rate of change'!$C$14:$C$19,0),MATCH('Output|Models'!$F12,'Input|Rate of change'!$C$14:$O$14,0)))*IF('Calc|Opex forecast'!$E$86="$millions",1000000,IF('Output|Models'!C47="$000",1000,1))/IF($E12="$millions",1000000,IF($E12="$000",1000,1))) -> 0 | L12: =IF(L11="",0,'Calc|Opex forecast'!L86*IF('Calc|Opex forecast'!$F$86="nominal",LOOKUP($F12,Nominal_to_Real,'Input|Rate of change'!R$23:R$26),INDEX('Input|Rate of change'!$C$14:$O$19,MATCH('Calc|Opex forecast'!$F$86,'Input|Rate of change'!$C$14:$C$19,0),MATCH('Output|Models'!$F12,'Input|Rate of change'!$C$14:$O$14,0)))*IF('Calc|Opex forecast'!$E$86="$millions",1000000,IF('Output|Models'!D47="$000",1000,1))/IF($E12="$millions",1000000,IF($E12="$000",1000,1))) -> 0 | M12: =IF(M11="",0,'Calc|Opex forecast'!M86*IF('Calc|Opex forecast'!$F$86="nominal",LOOKUP($F12,Nominal_to_Real,'Input|Rate of change'!S$23:S$26),INDEX('Input|Rate of change'!$C$14:$O$19,MATCH('Calc|Opex forecast'!$F$86,'Input|Rate of change'!$C$14:$C$19,0),MATCH('Output|Models'!$F12,'Input|Rate of change'!$C$14:$O$14,0)))*IF('Calc|Opex forecast'!$E$86="$millions",1000000,IF('Output|Models'!E47="$000",1000,1))/IF($E12="$millions",1000000,IF($E12="$000",1000,1))) -> 204.1561843 | N12: =IF(N11="",0,'Calc|Opex forecast'!N86*IF('Calc|Opex forecast'!$F$86="nominal",LOOKUP($F12,Nominal_to_Real,'Input|Rate of change'!T$23:T$26),INDEX('Input|Rate of change'!$C$14:$O$19,MATCH('Calc|Opex forecast'!$F$86,'Input|Rate of change'!$C$14:$C$19,0),MATCH('Output|Models'!$F12,'Input|Rate of change'!$C$14:$O$14,0)))*IF('Calc|Opex forecast'!$E$86="$millions",1000000,IF('Output|Models'!F47="$000",1000,1))/IF($E12="$millions",1000000,IF($E12="$000",1000,1))) -> 204.4305811 | O12: =IF(O11="",0,'Calc|Opex forecast'!O86*IF('Calc|Opex forecast'!$F$86="nominal",LOOKUP($F12,Nominal_to_Real,'Input|Rate of change'!U$23:U$26),INDEX('Input|Rate of change'!$C$14:$O$19,MATCH('Calc|Opex forecast'!$F$86,'Input|Rate of change'!$C$14:$C$19,0),MATCH('Output|Models'!$F12,'Input|Rate of change'!$C$14:$O$14,0)))*IF('Calc|Opex forecast'!$E$86="$millions",1000000,IF('Output|Models'!G47="$000",1000,1))/IF($E12="$millions",1000000,IF($E12="$000",1000,1))) -> 204.7847559 | P12: =IF(P11="",0,'Calc|Opex forecast'!P86*IF('Calc|Opex forecast'!$F$86="nominal",LOOKUP($F12,Nominal_to_Real,'Input|Rate of change'!V$23:V$26),INDEX('Input|Rate of change'!$C$14:$O$19,MATCH('Calc|Opex forecast'!$F$86,'Input|Rate of change'!$C$14:$C$19,0),MATCH('Output|Models'!$F12,'Input|Rate of change'!$C$14:$O$14,0)))*IF('Calc|Opex forecast'!$E$86="$millions",1000000,IF('Output|Models'!H47="$000",1000,1))/IF($E12="$millions",1000000,IF($E12="$000",1000,1))) -> 205.1665696 | Q12: =IF(Q11="",0,'Calc|Opex forecast'!Q86*IF('Calc|Opex forecast'!$F$86="nominal",LOOKUP($F12,Nominal_to_Real,'Input|Rate of change'!W$23:W$26),INDEX('Input|Rate of change'!$C$14:$O$19,MATCH('Calc|Opex forecast'!$F$86,'Input|Rate of change'!$C$14:$C$19,0),MATCH('Output|Models'!$F12,'Input|Rate of change'!$C$14:$O$14,0)))*IF('Calc|Opex forecast'!$E$86="$millions",1000000,IF('Output|Models'!I47="$000",1000,1))/IF($E12="$millions",1000000,IF($E12="$000",1000,1))) -> 205.5524209
Q13: =SUM(M12:Q12) -> 1024.090512
B15: End

Sheet Lookup|Tables
B1: =Index!$B$1 -> AER opex model | J1: Back to Index | L1: Key: | M1: Input | N1: External Link | O1: Internal Link | U1: Overall Check: | V1: ='Check|List'!$S$1 -> Ok
B2: =Index!$C$14 -> Lookup | Tables
B7: Unit Denominations
C9: =B7 -> Unit Denominations | D9: Source | G9: Ref
C10: Dollars | D10: AER | G10: $dollars
C11: Thousands | D11: AER | G11: $000
C12: Millions | D12: AER | G12: $millions
C14: Percent | D14: AER | G14: Per cent
C15: Unit | D15: AER | G15: unit
C16: Number | D16: AER | G16: number
C17: Factor | D17: AER | G17: factor
C19: Actual | D19: AER | G19: Actual
C20: Estimate | D20: AER | G20: Estimate
B22: Years
C24: =B22 -> Years | D24: Source | G24: Ref
C25: nominal | D25: AER | G25: nominal
C26: 2007-08 | D26: AER | G26: 2007-08
C27: 2008-09 | D27: AER | G27: 2008-09
C28: 2009-10 | D28: AER | G28: 2009-10
C29: 2010-11 | D29: AER | G29: 2010-11
C30: 2011-12 | D30: AER | G30: 2011-12
C31: 2012-13 | D31: AER | G31: 2012-13
C32: 2013-14 | D32: AER | G32: 2013-14
C33: 2014-15 | D33: AER | G33: 2014-15
C34: 2015-16 | D34: AER | G34: 2015-16
C35: 2016-17 | D35: AER | G35: 2016-17
C36: 2017-18 | D36: AER | G36: 2017-18
C37: 2018-19 | D37: AER | G37: 2018-19
C38: 2019-20 | D38: AER | G38: 2019-20
C39: 2020-21 | D39: AER | G39: 2020-21
C40: 2021-22 | D40: AER | G40: 2021-22
C41: 2022-23 | D41: AER | G41: 2022-23
C42: 2023-24 | D42: AER | G42: 2023-24
B44: End

Sheet Check|List
B1: =Index!$B$1 -> AER opex model | J1: Back to Index | L1: Key: | M1: Input | N1: External Link | O1: Internal Link | R1: Overall Check: | S1: =IF(COUNTIF(G10:G15,"Check")=0,"Ok","Check") -> Ok
B2: =Index!$C$15 -> Check | List
B7: Check List
C9: Sheet | D9: Source | E9: Unit | G9: Status
C10: =Index!C7 -> Input | General | D10: =C10 -> Input | General | E10: Ok/Check | G10: ='Input|General'!S1 -> OK
C11: =Index!C9 -> Input | Reported opex | D11: =C11 -> Input | Reported opex | E11: Ok/Check | G11: ='Input|Reported opex'!S1 -> OK
C12: =Index!C10 -> Input | Rate of change | D12: Input | Rate of change | E12: Ok/Check | G12: ='Input|Rate of change'!T1 -> Ok
C13: =Index!C11 -> Input | Step changes | D13: Input | Step changes | E13: Ok/Check | G13: ='Input|Step changes'!S1 -> OK
C14: =Index!C12 -> Calc | Opex Forecast | D14: Calc | Opex Forecast | E14: Ok/Check | G14: ='Calc|Opex forecast'!S1 -> n/a
C15: =Index!C13 -> Output | Models | D15: Output | Models | E15: Ok/Check | G15: ='Output|Models'!S1 -> OK
B17: End
